Department Family,Entity,Date,Expense Type,Expense Area,Supplier,Transaction No, Amount ,Item Text,Postal Code
Department for Transport,Department for Transport,27/06/2018,Subsidies Private Se,Local,Nottingham Minibuses & Coaches Ltd,2000006014,"25,088.65",Nottingham Minibuses & Coaches Ltd,NG4 1AG
Department for Transport,Department for Transport,08/06/2018,Transport  Consult,DG_RAIL - Network Services,Mott MacDonald Limited,2000004755,"25,302.78",Technical consultancy,CR0 2EE
Department for Transport,Department for Transport,11/06/2018,Research,Transport Security Co-ordination & Response,DSTL,2000004864,"25,396.35",#,PO14 9HL
Department for Transport,Department for Transport,06/06/2018,Research,Local,OVE ARUP & PARTNERS,2000004610,"26,000.00",#,NE1 3PL
Department for Transport,Department for Transport,29/06/2018,Transport  Consult,DG_Rail - Passenger Services,ATKINS LTD (TRANSPORT PLANNING),2000006238,"26,062.88",#,WR5 1TX
Department for Transport,Department for Transport,12/06/2018,Research,Major Rail Development Projects,Frontier Economics,2000004953,"26,302.80",#,WC1V 6DA
Department for Transport,Department for Transport,25/06/2018,IT Ser Running Costs,Group Finance,Basware Holdings Limited,2000005792,"26,402.40",#,EC2N 1AR
Department for Transport,Department for Transport,27/06/2018,Subsidies Private Se,Local,COURTNEY COACHES LTD,2000005899,"27,249.13",COURTNEY COACHES LTD,RG40 4QQ
Department for Transport,Department for Transport,21/06/2018,Research,Strategic Roads,Price Waterhouse Coopers LLP,2000005608,"27,392.67",#,SE1 2RD
Department for Transport,Department for Transport,15/06/2018,Transport  Consult,DG_Rail - Passenger Services,STEER DAVIES & GLEAVE LIMITED,2000005252,"27,786.20",#,SE1 9PD
Department for Transport,Department for Transport,27/06/2018,Subsidies Private Se,Local,Bath Bus Company Ltd,2000005881,"27,925.22",BATH BUS COMPANY LTD,BA1 1LF
Department for Transport,Department for Transport,01/06/2018,Cap Grt NDPBs & CG,Rail NDPB's,Network Rail,2000004348,"28,069.00",MSF2 invoice - 1228015,M60 7WY
Department for Transport,Department for Transport,14/06/2018,Subsidies Private Se,Local,JOHNSONS HENLEY,2000005100,"28,169.67",Johnsons Coach & Bus Travel,B95 5QS
Department for Transport,Department for Transport,14/06/2018,Subsidies Private Se,Local,Buses Excetera,2000005141,"28,607.89",Buses Excetera,RH1 3ED
Department for Transport,Department for Transport,06/06/2018,Support Services,Group Commercial,Cabinet Office,2000004599,"28,904.00",#,FY5 3TA
Department for Transport,Department for Transport,14/06/2018,Subsidies Private Se,Local,UNO BUSES LTD,2000005133,"29,418.87",Uno Buses Ltd,AL10 9BS
Department for Transport,Department for Transport,21/06/2018,Financial Consultanc,DG_Rail - Passenger Services,Price Waterhouse Coopers LLP,2000005608,"29,488.80",#,SE1 2RD
Department for Transport,Department for Transport,20/06/2018,Basic Franchise Pay,DG_Rail - Passenger Services,Rail North,2000005565,"29,863.74",1903 Wk4 Department for Transport Rail North funding,LS1 2DE
Department for Transport,Department for Transport,06/06/2018,Cap Grt Loc Auth,Local,LUTON BOROUGH COUNCIL,2000004635,"30,000.00", research,LU1 2BQ
Department for Transport,Department for Transport,14/06/2018,Mobile Phone charges,Group Assurance,EE Ltd,2000005192,"30,366.94",#,S98 1PS
Department for Transport,Department for Transport,07/06/2018,Research,"Road Safety, Standards and Services",TRL Limited,2000004687,"30,385.47",#,RG40 3GA
Department for Transport,Department for Transport,08/06/2018,Cap Grt Pri Sec-Cos.,Programme Integration,Eversheds Sutherland (Inter-,2000004774,"30,600.00",#,CF10 5BT
Department for Transport,Department for Transport,14/06/2018,Subsidies Private Se,Local,CLARIBEL COACHES LTD,2000005081,"31,325.46",CLARIBEL COACHES LTD,B33 0JT
Department for Transport,Department for Transport,29/06/2018,Printing,Group Communications,Allied Publicity Services,2000006265,"31,345.60",#,SK3 0ZP
Department for Transport,Department for Transport,27/06/2018,Subsidies Private Se,Local,MERSEYCARE TRANSPORT SERVICES LTD,2000006013,"31,464.73",MERSEYCARE TRANSPORT SERVICES LTD,CH46 1DW
Department for Transport,Department for Transport,21/06/2018,Support Services,Aviation,Exeter & Devon Airport Ltd,2000005602,"32,299.80",#,EX5 2BD
Department for Transport,Department for Transport,11/06/2018,Support Services,Aviation,East Midlands International Airport,2000004882,"32,299.80",#,DE74 2SA
Department for Transport,Department for Transport,11/06/2018,Support Services,Aviation,East Midlands International Airport,2000004882,"32,299.80",#,DE74 2SA
Department for Transport,Department for Transport,14/06/2018,Subsidies Private Se,Local,REAYS COACHES LTD,2000005111,"32,589.09",REAYS COACHES LTD,CA7 9NE
Department for Transport,Department for Transport,20/06/2018,Support Services,Aviation,CARDIFF INTNL AIRPORT LTD,2000005529,"33,042.60",#,CF62 3BD
Department for Transport,Department for Transport,19/06/2018,Research,"Road Safety, Standards and Services",WSP UK Limited,2000005438,"33,424.76",#,RG21 4HU
Department for Transport,Department for Transport,29/06/2018,Research,"Energy,Technology & Innovation",WSP UK Limited,2000006248,"33,938.88",#,RG21 4HU
Department for Transport,Department for Transport,08/06/2018,Financial Consultanc,Major Rail Development Projects,Safeguard Finance Limited,2000004784,"34,500.00",#,W6 7BL
Department for Transport,Department for Transport,05/06/2018,Management Consultan,Group Commercial,APS Partnership Limited,2000004554,"35,640.00",#,CA12 4LR
Department for Transport,Department for Transport,07/06/2018,Financial Consultanc,Major Rail Development Projects,Watling Fosse Limited,2000004692,"35,875.00",#,SW19 7DT
Department for Transport,Department for Transport,04/06/2018,Research,"Road Safety, Standards and Services",Systra Ltd,2000004423,"36,240.90",#,GU21 5BH
Department for Transport,Department for Transport,29/06/2018,Agency Staff Costs,DG_Rail - Passenger Services,CAPITA BUSINESS SERVICES LTD,2000006237,"36,956.06",#,DL1 9HN
Department for Transport,Department for Transport,15/06/2018,Childcare Voucher Co,Group Human Resources,Edenred,2000005246,"36,964.27",#,SW1V 2RS
Department for Transport,Department for Transport,28/06/2018,IT Ser Running Costs,Local,CIVICA UK LIMITED,2000006166,"39,424.00",#,DY1 4TD
Department for Transport,Department for Transport,06/06/2018,Rent - L&B (non-PFI),DG_IS - Rail Accident Investigation Branch,Trustees of Major Barnes Ltd,2000004633,"39,525.00",Major & Barnes - 24.06.18 to 28.09.18,MK8 9AS
Department for Transport,Department for Transport,19/06/2018,Cap Grt Pri Sec-Cos.,"Energy,Technology & Innovation",Nissan Motors GB Limited,2000005442,"40,017.70","""PIVG Nissan March 2018 #40,017.70""",WD3 9YS
Department for Transport,Department for Transport,04/06/2018,Recruitment,Group Human Resources,Cabinet Office,100005633,"40,639.55",PO 8000172808,FY5 3TA
Department for Transport,Department for Transport,27/06/2018,Publicity,Group Communications,ABBOTT MEAD VICKERS BBDO LTD,2000006118,"40,698.31",#,SE1 0SW
Department for Transport,Department for Transport,27/06/2018,Subsidies Private Se,Local,VALE TRAVEL LTD,2000006011,"41,346.90",Vale Travel Ltd,HP20 1JA
Department for Transport,Department for Transport,14/06/2018,Other Professional F,Group Human Resources,Arvato Ltd,2000005189,"41,452.28",#,HU10 6DN
Department for Transport,Department for Transport,14/06/2018,Subsidies Private Se,Local,DELAINE BUSES LTD,2000005084,"41,886.10",DELAINE BUSES LIMITED,PE10 9LE
Department for Transport,Department for Transport,25/06/2018,Support Services,Strategic Roads,Teletrac Navman (UK) Ltd,2000005785,"42,000.00",#,MK7 6BZ
Department for Transport,Department for Transport,19/06/2018,Rent - L&B (non-PFI),Corporate Finance,Salisbury Ltd Directors Retirement,2000005429,"43,500.00",Q2 2018/19 Contractual Rent Payment - 306SJS,W1G 9TB
Department for Transport,Department for Transport,26/06/2018,Publicity,Group Communications,Young and Rubicam Ltd,2000005859,"44,275.50",#,NW1 7QP
Department for Transport,Department for Transport,13/06/2018,Software Lic Cap,"Energy,Technology & Innovation",TRIAD GROUP PLC,2000005037,"44,462.24",#,GU7 1XE
Department for Transport,Department for Transport,05/06/2018,Subscriptions to Pro,Analysis & Strategy,HM Treasury,2000004540,"44,861.21",#,NR1 0HS
Department for Transport,Department for Transport,20/06/2018,CurrGrtPriSec-P&NPIS,"Energy,Technology & Innovation",LOW CARBON VEHICLE PARTNERSHIP,2000005545,"45,000.00","""LowCVP May 2018-19 #45,000""",SW1H 9JJ
Department for Transport,Department for Transport,22/06/2018,Cap Grt Pri Sec-Cos.,Programme Integration,DLA Piper UK LLP (Compulsory,2000005676,"45,155.50",Phase 1 CPO Recycling - ,LS1 1BA
Department for Transport,Department for Transport,07/06/2018,CurrGrt Las in AEF/A,"Energy,Technology & Innovation",Sheffield City Council,2000004690,"45,293.19",Sheffield Council - FCEV Fleet Support Scheme,S9 3GZ
Department for Transport,Department for Transport,19/06/2018,Legal Consultancy,Major Projects,HOGAN LOVELLS,100007448,"45,824.69",Legal services,EC1A 2FG
Department for Transport,Department for Transport,11/06/2018,Legal Consultancy,DG_Rail - Passenger Services,Fieldfisher LLP,2000004874,"47,695.04",#,EC4R 3T
Department for Transport,Department for Transport,05/06/2018,Apprentice Levy C/A,#NoData,PAYE,2000004524,"48,477.00",Third Party Payments - May 2018,#
Department for Transport,Department for Transport,11/06/2018,Cap Grt Pri Sec-Cos.,"Energy,Technology & Innovation",McNally Electrical Yorkshire,2000004855,"48,500.00",Grant Payment SR9632478,BD22 7AA
Department for Transport,Department for Transport,01/06/2018,CurrGrtPriSec-P&NPIS,"Road Safety, Standards and Services",ROSPA ENTERPRISES LTD,2000004346,"48,759.00",Road Safety Grant,B15 1RP
Department for Transport,Department for Transport,29/06/2018,Research,Strategic Roads,WSP UK Limited,2000006248,"49,135.91",#,RG21 4HU
Department for Transport,Department for Transport,14/06/2018,Subsidies Private Se,Local,AVON COACHES,2000005074,"49,148.93",AVON BUSES LTD,CH43 3DT
Department for Transport,Department for Transport,20/06/2018,Deed Of Amendment -,DG_Rail - Passenger Services,FIRST GREATER WESTERN,2000005538,"49,242.71",1903 Wk4 Electrification Change Advance Works_P181,SN1 1HL
Department for Transport,Department for Transport,13/06/2018,IT Ser Running Costs,Local,CIVICA UK LIMITED,100007181,"50,000.00",Project CRASH - service and maint - 30.04.2018,DY1 4TD
Department for Transport,Department for Transport,04/06/2018,Support Services,Maritime,HOME OFFICE SHARED SERVICE CENTRE,2000004459,"50,000.00",#,NP20 9BB
Department for Transport,Department for Transport,29/06/2018,Research,"Energy,Technology & Innovation",WSP UK Limited,2000006248,"50,908.32",#,RG21 4HU
Department for Transport,Department for Transport,21/06/2018,L&B Excl Dwellings,DG_IS - Rail Accident Investigation Branch,Innes England,2000005604,"51,363.72",#,DE24 8JN
Department for Transport,Department for Transport,05/06/2018,Prog&ProjMgmt Consul,Heathrow Expansion and AMA,Costain Ltd,2000004561,"51,873.82",#,SL6 4UB
Department for Transport,Department for Transport,21/06/2018,Cap Grt Pri Sec-Cos.,Programme Integration,Motorsense Ltd,2000005630,"52,476.75",Contractual Pre-Funding,NW10 6ND
Department for Transport,Department for Transport,14/06/2018,Support Services,Corporate Finance,Driver & Vehicle Standards Agency,2000005199,"52,530.00",#,NG1 6LP
Department for Transport,Department for Transport,05/06/2018,Transport  Consult,DG_Rail - Passenger Services,ATKINS LTD (TRANSPORT PLANNING),2000004536,"54,107.26",#,WR5 1TX
Department for Transport,Department for Transport,27/06/2018,Subsidies Private Se,Local,KENT COACH TRAVEL LTD,2000006005,"54,176.75",Kent Coach Travel Ltd T/A Travelmasters,ME12 1LT
Department for Transport,Department for Transport,01/06/2018,Support Services,Group Finance,Irwin Mitchell,2000004356,"54,415.60",Industrial Injury Claim - SR630613,S3 8DT
Department for Transport,Department for Transport,15/06/2018,Financial Consultanc,DG_Rail - Passenger Services,Grant Thornton UK LLP,2000005258,"55,091.70",#,NN4 7YE
Department for Transport,Department for Transport,27/06/2018,Subsidies Private Se,Local,Mike de Courcey Travel Ltd,2000005940,"56,178.58",MIKE DE COURCEY TRAVEL LTD,CV3 4FG
Department for Transport,Department for Transport,13/06/2018,Research,"DG_RAIL -Rail Strategy, Reform & Analysis",Transport Focus,100007182,"57,480.00",#,M1 2WD
Department for Transport,Department for Transport,08/06/2018,Research,"DG_RAIL -Rail Strategy, Reform & Analysis",Transport Focus,2000004773,"57,480.00",#,M1 2WD
Department for Transport,Department for Transport,08/06/2018,Cap Grt Pri Sec-Cos.,"Energy,Technology & Innovation",Norcroft Energy,2000004778,"57,962.50",EVHS Apr 18 Multivendor payment 2,S36 7JA
Department for Transport,Department for Transport,14/06/2018,Small Software,Group Assurance,Automated Intelligence Limited,2000005191,"60,300.00",#,BT3 9DT
Department for Transport,Department for Transport,28/06/2018,Research,Aviation & Maritime Analysis,Civil Aviation Authority,2000006157,"60,500.00",#,RH6 0YR
Department for Transport,Department for Transport,14/06/2018,Transport  Consult,"DG_RAIL -Rail Strategy, Reform & Analysis",LeighFisher Ltd,2000005188,"61,960.48",#,SE1 9RS
Department for Transport,Department for Transport,04/06/2018,Legal Consultancy,DG_Rail - Passenger Services,Eversheds Sutherland (Inter-,2000004432,"62,865.12",#,EC2V 7WS
Department for Transport,Department for Transport,13/06/2018,Research,Analysis & Strategy,Ove Arup & Partners Limited,2000005047,"62,875.00",#,W1T 4BQ
Department for Transport,Department for Transport,19/06/2018,Cap Grt Pri Sec-Cos.,"Energy,Technology & Innovation",The Colt Car Company Limited,2000005441,"63,691.42","""PIVG Mitsubishi May 2018 #63,691.42""",GL7 1LF
Department for Transport,Department for Transport,11/06/2018,Support Services,Aviation,East Midlands International Airport,2000004882,"64,599.60",#,DE74 2SA
Department for Transport,Department for Transport,11/06/2018,Support Services,Aviation,East Midlands International Airport,2000004882,"64,599.60",#,DE74 2SA
Department for Transport,Department for Transport,01/06/2018,Cap Grt Pri Sec-Cos.,"Energy,Technology & Innovation",NSN Electrical Ltd,2000004362,"65,500.00",EVHS Grant Feb 18 Multivendor,TR20 8HX
Department for Transport,Department for Transport,14/06/2018,Subsidies Private Se,Local,BRYLAINE TRAVEL,2000005078,"65,562.24",BRYLAINE TRAVEL LTD,PE21 7DD
Department for Transport,Department for Transport,05/06/2018,Research,"Road Safety, Standards and Services",Atkins CH2M Joint Venture (ACJV),2000004559,"65,667.46",#,W6 7EF
Department for Transport,Department for Transport,20/06/2018,Cap Grt Loc Auth,HSR Phase 1 Sponsor,West Midlands Trains,2000005567,"66,075.00",HS2 land purchase,B4 6GA
Department for Transport,Department for Transport,18/06/2018,Support Services,Aviation,HUMBERSIDE INT AIRPORT LTD,2000005355,"66,085.20",#,DN39 6YH
Department for Transport,Department for Transport,04/06/2018,IT Ser Running Costs,Group Assurance,EE Ltd,2000004449,"67,081.00",#,S98 1PS
Department for Transport,Department for Transport,20/06/2018,Basic Franchise Pay,DG_Rail - Passenger Services,WEST YORKSHIRE PTA,2000005543,"67,538.46",1903 Wk4 18/19 Rail Admin Grant + Indexation - Wes,LS1 2DE
Department for Transport,Department for Transport,20/06/2018,Cap Grt Loc Auth,Local,LIVERPOOL CITY COUNCIL,2000005536,"69,760.00",Local Major Schemes 2018-19 Grant Paymentsv1,L2 2DH
Department for Transport,Department for Transport,20/06/2018,Infrastructure Maint,Group Assurance,BT Global Services,2000005525,"69,870.53",#,RH10 9JY
Department for Transport,Department for Transport,14/06/2018,Subsidies Private Se,Local,Stephensons Coaches,2000005121,"72,589.64",Stephensons Coaches,SS4 1BS
Department for Transport,Department for Transport,12/06/2018,Cap Grt Pri Sec-Cos.,Programme Integration,High Speed 2 (HS2) Ltd,2000004949,"73,200.00",Home Loss Payment Q4 ,B4 6GA
Department for Transport,Department for Transport,05/06/2018,Research,"Road Safety, Standards and Services",Atkins CH2M Joint Venture (ACJV),2000004559,"73,332.76",#,W6 7EF
Department for Transport,Department for Transport,26/06/2018,Cap Grt Pri Sec-Cos.,Programme Integration,DLA Piper UK LLP (Compulsory,2000005862,"76,537.50",Compulsory Purch Ph1 ,LS1 1BA
Department for Transport,Department for Transport,15/06/2018,Support Services,Group Finance,Thompsons Solicitors,2000005267,"80,000.00",Industrial Injury Claim - SR 9000633887,HA1 3AP
Department for Transport,Department for Transport,04/06/2018,Traffic Survey & Cou,Local,CIVICA UK LIMITED,2000004431,"80,000.00",#,DY1 4TD
Department for Transport,Department for Transport,12/06/2018,Cap Grt Pri Sec-Cos.,"Energy,Technology & Innovation",Renew Electrical,2000004988,"80,361.23",EVHS Mar 18 Payments,CW5 7HA
Department for Transport,Department for Transport,14/06/2018,Subsidies Private Se,Local,Konectbus Ltd,2000005102,"82,511.30",KONECTBUS LTD,NR19 1SY
Department for Transport,Department for Transport,26/06/2018,Other Professional F,"Road Safety, Standards and Services",Kainos Software Ltd,2000005843,"85,415.60",#,BT7 1NT
Department for Transport,Department for Transport,29/06/2018,CurrGrtPriSec-P&NPIS,Local,Chartered Institution of Highways,2000006251,"85,798.15",WRA UK Secretariat & First Delegate Support,N1 7JE
Department for Transport,Department for Transport,27/06/2018,Subsidies Private Se,Local,BARTON BUSES,2000005880,"86,719.44",BARTON BUSES LTD,DE75 7BG
Department for Transport,Department for Transport,20/06/2018,Basic Franchise Pay,DG_Rail - Passenger Services,SOUTH YORKSHIRE PTE,2000005541,"89,230.77",1903 Wk4 18/19 Rail Admin Grant + Indexation - Sou,S2 5YT
Department for Transport,Department for Transport,25/06/2018,IT Consultancy,"Road Safety, Standards and Services",Valtech Ltd,2000005802,"89,737.50",#,N1 8AF
Department for Transport,Department for Transport,05/06/2018,Legal Consultancy,HSR Phase 2 Sponsor,WINCKWORTH SHERWOOD,2000004543,"91,354.26",Parliamentary agents for HS2 Bill,SE1 9BB
Department for Transport,Department for Transport,05/06/2018,Recruitment,Analysis & Strategy,HM Treasury,2000004540,"91,550.00",#,NR1 0HS
Department for Transport,Department for Transport,14/06/2018,Subsidies Private Se,Local,ENSIGN BUS COMPANY LTD,2000005088,"92,301.90",Ensign Bus Company Ltd,RM15 4YF
Department for Transport,Department for Transport,28/06/2018,Storage & Distributi,Group Assurance,Communities & Local Government,2000006180,"93,759.66",#,SW1P 4DF
Department for Transport,Department for Transport,29/06/2018,Legal Consultancy,DG_Rail - Passenger Services,Eversheds Sutherland (Inter-,2000006253,"93,858.54",#,EC2V 7WS
Department for Transport,Department for Transport,27/06/2018,Subsidies Private Se,Local,Kinchbus Ltd,2000005930,"95,233.60",KINCHBUS LTD,DE75 7BG
Department for Transport,Department for Transport,27/06/2018,Subsidies Private Se,Local,Thandi Transport Ltd,2000006040,"96,258.50",Thandi Transport Ltd,B66 2QL
Department for Transport,Department for Transport,15/06/2018,Prog&ProjMgmt Consul,DG_Rail - Passenger Services,CPC Project Services LLP,2000005272,"96,627.60",#,WC2A 1HP
Department for Transport,Department for Transport,12/06/2018,Legal Consultancy,Heathrow Expansion and AMA,DLA PIPER UK LLP,2000004940,"99,179.88",#,M2 3DL
Department for Transport,Department for Transport,29/06/2018,Transport  Consult,DG_Rail - Passenger Services,ATKINS LTD (TRANSPORT PLANNING),2000006238,"100,083.75",#,WR5 1TX
Department for Transport,Department for Transport,14/06/2018,Subsidies Private Se,Local,Centrebus Ltd,2000005080,"101,214.11",Centrebus Ltd,LE4 9HU
Department for Transport,Department for Transport,25/06/2018,Transport  Consult,DG_Rail - Passenger Services,ATKINS LTD (TRANSPORT PLANNING),2000005779,"101,306.25",#,WR5 1TX
Department for Transport,Department for Transport,05/06/2018,Financial Consultanc,DG_Rail - Passenger Services,Price Waterhouse Coopers LLP,2000004542,"101,736.00",#,SE1 2RD
Department for Transport,Department for Transport,26/06/2018,Cap Grt Pri Sec-Cos.,Programme Integration,Eversheds Sutherland (Inter-,2000005838,"103,548.46",HS2 land purchase,CF10 5BT
Department for Transport,Department for Transport,01/06/2018,Cap Grt Pri Sec-Cos.,Programme Integration,Eversheds Sutherland (Inter-,2000004357,"104,095.48",HS2 land purchase,CF10 5BT
Department for Transport,Department for Transport,27/06/2018,Support Services,Group Finance,Nhlex Limited T/A Novum Law,2000006149,"104,307.50",HS2 land purchase,SN3 3LL
Department for Transport,Department for Transport,14/06/2018,Rent - L&B (non-PFI),Marine Accident Investigation Branch,Maritime & Coastguard Agency,2000005200,"106,044.00",HS2 land purchase,SO15 1EG
Department for Transport,Department for Transport,27/06/2018,Basic Franchise Rec,DG_Rail - Passenger Services,ARRIVA TRAINS WALES,2000006138,"109,996.68",HS2 land purchase,CF10 5DJ
Department for Transport,Department for Transport,13/06/2018,Support Services,Group Finance,Irwin Mitchell,2000005043,"111,006.71",HS2 land purchase,S3 8DT
Department for Transport,Department for Transport,21/06/2018,Transport  Consult,Major Projects,JACOBS UK LTD,2000005605,"114,481.35",HS2 land purchase,G2 7HX
Department for Transport,Department for Transport,20/06/2018,Basic Franchise Pay,DG_Rail - Passenger Services,Transport for Greater Manchester,2000005542,"114,846.15",HS2 land purchase,M1 3BG
Department for Transport,Department for Transport,29/06/2018,Cap Grt Pri Sec-Cos.,Programme Integration,DLA Piper UK LLP (Compulsory,2000006266,"117,124.00",HS2 land purchase,LS1 1BA
Department for Transport,Department for Transport,19/06/2018,Cap Grt Pri Sec-Cos.,"Energy,Technology & Innovation",API Electrical Limited,2000005458,"117,447.50",EVHS Mar 18 claim wc 11 Jun payment #117447.50,M28 1UG
Department for Transport,Department for Transport,29/06/2018,Financial Consultanc,DG_Rail - Passenger Services,Price Waterhouse Coopers LLP,2000006245,"124,534.80",#,SE1 2RD
Department for Transport,Department for Transport,27/06/2018,Support Services,Group Finance,Birchall Blackburn Solicitors,2000006143,"124,637.40",Industrial Injury Claims Handling Process SR636323,PR13 8N
Department for Transport,Department for Transport,15/06/2018,Support Services,Group Finance,Birchall Blackburn Solicitors,2000005268,"127,914.80",Industrial Injury Claim - SR 9000633890,PR13 8N
Department for Transport,Department for Transport,08/06/2018,Research,Local,NATIONAL CENTRE FOR SOCIAL RESEARCH,2000004757,"129,974.00",#,EC1V 0AX
Department for Transport,Department for Transport,08/06/2018,Agents Fees,"Road Safety, Standards and Services",Highways England,2000004801,"130,856.81",#,B1 1RN
Department for Transport,Department for Transport,07/06/2018,Cap Grt Pri Sec-Cos.,Programme Integration,Eversheds Sutherland (Inter-,2000004699,"131,250.00",HS2 land purchase,CF10 5BT
Department for Transport,Department for Transport,01/06/2018,Cap Grt Pri Sec-Cos.,Programme Integration,DLA Piper UK LLP (Compulsory,2000004365,"134,375.00",PROPERTY PURCHASE UNDER HS2 PHASE ONE INTERIM,LS1 1BA
Department for Transport,Department for Transport,05/06/2018,Recruitment,Group Human Resources,Cabinet Office,2000004564,"134,458.00",#,FY5 3TA
Department for Transport,Department for Transport,14/06/2018,Subsidies Private Se,Local,University Bus Ltd,2000005128,"140,086.97",Universitybus,AL10 9BS
Department for Transport,Department for Transport,27/06/2018,Subsidies Private Se,Local,Stagecoach Midland Red South Ltd,2000005939,"142,533.42",STAGECOACH MIDLAND RED (SOUTH) LTD,NN4 8ES
Department for Transport,Department for Transport,27/06/2018,Basic Franchise Rec,DG_Rail - Passenger Services,ARRIVA TRAINS WALES,2000006138,"143,725.51",1903 Wk4 CP2SR 1609-1612 Clause 18.1 Adj - ARRIVA,CF10 5DJ
Department for Transport,Department for Transport,18/06/2018,Cap Grt Pri Sec-Cos.,Programme Integration,Eversheds Sutherland (Inter-,2000005357,"147,500.00",Prop purch HS2 P2b Rural Support Zone ,CF10 5BT
Department for Transport,Department for Transport,01/06/2018,Cap Grt Pri Sec-Cos.,Programme Integration,Eversheds Sutherland (Inter-,2000004357,"148,872.26",Prop purch HS2 P2b ,CF10 5BT
Department for Transport,Department for Transport,15/06/2018,Grt Aid to NDPBs,Strategic Roads,RAIL PASSENGER COUNCIL,2000005284,"150,000.00",Payment May Roads,M1 2WD
Department for Transport,Department for Transport,01/06/2018,Cap Grt Pri Sec-Cos.,Programme Integration,Eversheds Sutherland (Inter-,2000004357,"150,454.71",Prop purch HS2 P2b ,CF10 5BT
Department for Transport,Department for Transport,19/06/2018,Rent - L&B (non-PFI),Corporate Finance,EUROSTAR (UK) LTD,2000005428,"152,740.20",#,SE1 8SE
Department for Transport,Department for Transport,29/06/2018,Financial Consultanc,DG_Rail - Passenger Services,Price Waterhouse Coopers LLP,2000006245,"157,568.40",#,SE1 2RD
Department for Transport,Department for Transport,20/06/2018,Sprs Indexation Pay-,DG_Rail - Passenger Services,West Midlands Trains,2000005567,"158,186.74",1903 Wk4 Franchise subsidy indexation 2018-19 P190,B4 6GA
Department for Transport,Department for Transport,14/06/2018,IT Consultancy,Local,DELOITTE LLP,2000005179,"159,995.00",#,MK9 1FD
Department for Transport,Department for Transport,08/06/2018,Other Professional F,Group Finance,Arvato Ltd,2000004771,"160,477.24",#,HU10 6DN
Department for Transport,Department for Transport,12/06/2018,Cap Grt Pri Sec-Cos.,Programme Integration,Eversheds Sutherland (Inter-,2000004934,"163,758.99",HS2 safeguarding,CF10 5BT
Department for Transport,Department for Transport,06/06/2018,Legal Consultancy,HSR Phase 2 Sponsor,WINCKWORTH SHERWOOD,2000004612,"165,149.88",Parliamentary agents for HS2 Bill,SE1 9BB
Department for Transport,Department for Transport,27/06/2018,CurrGrt Las in AEF/A,Local,EAST RIDING OF YORKSHIRE COUNCIL,2000006127,"168,750.00",Access Funding 1st Payment 18-19,HU17 9BA
Department for Transport,Department for Transport,28/06/2018,Management Consultan,Major Rail Development Projects,DELOITTE LLP,2000006156,"175,968.00",#,MK9 1FD
Department for Transport,Department for Transport,29/06/2018,NLF Principal Paid,#N/A,HM Treasury - National Loans Fund,2000006267,"175,999.85",Principal amount,SW1A 2HQ
Department for Transport,Department for Transport,01/06/2018,Cap Grt Pri Sec-Cos.,Programme Integration,Eversheds Sutherland (Inter-,2000004357,"176,250.00",Prop purch HS2 P2b ,CF10 5BT
Department for Transport,Department for Transport,27/06/2018,Subsidies Private Se,Local,Arriva Durham County,2000005876,"177,520.69",ARRIVA DURHAM COUNTY,SR3 3XP
Department for Transport,Department for Transport,04/06/2018,Traffic Survey & Cou,Local,CIVICA UK LIMITED,2000004431,"180,000.00",#,DY1 4TD
Department for Transport,Department for Transport,26/06/2018,Cap Grt Pri Sec-Cos.,Programme Integration,Eversheds Sutherland (Inter-,2000005856,"180,500.00",RURAL SUPPORT ZONE PHASE 2B,CF10 5BT
Department for Transport,Department for Transport,27/06/2018,Subsidies Private Se,Local,Arriva Midlands Ltd,2000005877,"181,705.88",ARRIVA MIDLANDS LTD,LE4 8PH
Department for Transport,Department for Transport,14/06/2018,Subsidies Private Se,Local,FIRST LEICESTER,2000005092,"183,460.78",First Leicester,LE4 0DA
Department for Transport,Department for Transport,15/06/2018,Transport  Consult,DG_Rail - Passenger Services,Mott MacDonald Limited,2000005250,"195,994.29",#,CR0 2EE
Department for Transport,Department for Transport,06/06/2018,Purchasing Card Char,Group Finance,The Royal Bank of Scotland plc,2000004624,"198,320.10",Natwest  - EPCS - May 2018,EC2M 4RB
Department for Transport,Department for Transport,28/06/2018,Management Consultan,Major Rail Development Projects,DELOITTE LLP,2000006156,"200,484.00",#,MK9 1FD
Department for Transport,Department for Transport,29/06/2018,Cap Grt Pri Sec-Cos.,Programme Integration,Eversheds Sutherland (Inter-,2000006269,"201,682.76",HS2 land purchase,CF10 5BT
Department for Transport,Department for Transport,11/06/2018,Cap Grt Pri Sec-Cos.,Programme Integration,Eversheds Sutherland (Inter-,2000004854,"202,699.63",Prop purch HS2 P2b ,CF10 5BT
Department for Transport,Department for Transport,01/06/2018,Cap Grt Pri Sec-Cos.,Programme Integration,Eversheds Sutherland (Inter-,2000004357,"203,910.39",Prop purch HS2 P2b,CF10 5BT
Department for Transport,Department for Transport,14/06/2018,Subsidies Private Se,Local,Stagecoach Transit,2000005119,"207,040.33",Stagecoach Transit,SR5 1AQ
Department for Transport,Department for Transport,08/06/2018,Transport  Consult,DG_Rail - Passenger Services,STEER DAVIES & GLEAVE LIMITED,2000004763,"211,188.42",#,SE1 9PD
Department for Transport,Department for Transport,14/06/2018,Services prov by OGD,Group Assurance,Cabinet Office,2000005201,"215,231.00",Department for Transport Faststreamers Costs 2016-17,FY5 3TA
Department for Transport,Department for Transport,01/06/2018,Cap Grt Pri Sec-Cos.,Programme Integration,Eversheds Sutherland (Inter-,2000004357,"219,221.98",Prop purch HS2 P2b ,CF10 5BT
Department for Transport,Department for Transport,27/06/2018,Transport  Consult,Group Finance,Moore Stephens Insight Ltd,2000006145,"220,600.12",#,EC1A 4AB
Department for Transport,Department for Transport,25/06/2018,Cap Grt Pri Sec-Cos.,Programme Integration,Eversheds Sutherland (Inter-,2000005728,"225,000.00",Rural Support Zone Phase 2B,CF10 5BT
Department for Transport,Department for Transport,25/06/2018,IT Consultancy,"Road Safety, Standards and Services",Valtech Ltd,2000005802,"234,275.00",#,N1 8AF
Department for Transport,Department for Transport,08/06/2018,Transport  Consult,Programme Integration,KPMG,2000004754,"234,611.75",Supporting development Baseline 2.0 for Phase 2b,WD17 1DE
Department for Transport,Department for Transport,27/06/2018,CurrGrt Las in AEF/A,Local,NORTH YORKSHIRE CC,2000006131,"242,250.00",Access Funding 1st Payment 18-19 2,DL7 8AL
Department for Transport,Department for Transport,04/06/2018,Cap Grt Pri Sec-Cos.,Programme Integration,Eversheds Sutherland (Inter-,2000004440,"242,500.00",HS2 9 Nascot Close/PEARSEN,CF10 5BT
Department for Transport,Department for Transport,04/06/2018,Cap Grt Pri Sec-Cos.,Programme Integration,Eversheds Sutherland (Inter-,2000004440,"245,000.00",HS2 1 Windsor Way/PEARSEN,CF10 5BT
Department for Transport,Department for Transport,27/06/2018,CurrGrt Las in AEF/A,Local,Lincolnshire County Council,2000006144,"245,250.00",Access Funding 1st Payment 18-19 2,LN1 1YL
Department for Transport,Department for Transport,15/06/2018,CurrGrtPriSec-P&NPIS,DG_Rail - Passenger Services,ASSOCIATION OF COMMUNITY,2000005257,"248,694.00",Q1 & Q2-annual support grant 18/19,HD1 1JF
Department for Transport,Department for Transport,27/06/2018,Subsidies Private Se,Local,First Devon & Cornwall Ltd,2000005912,"264,325.52",FIRST DEVON & CORNWALL LTD,SA5 7BN
Department for Transport,Department for Transport,27/06/2018,Subsidies Private Se,Local,Accessible Transport Group Ltd,2000005991,"274,929.69",ACCESSIBLE TRANSPORT GROUP LTD,B6 5PL
Department for Transport,Department for Transport,19/06/2018,Cap Grt Pri Sec-Cos.,"Energy,Technology & Innovation",Audi UK,2000005452,"277,500.00","""PICG Audi  May 2018 #277,500.00""",MK14 5AN
Department for Transport,Department for Transport,27/06/2018,CurrGrt Las in AEF/A,Local,Nottinghamshire County Council,2000006132,"282,750.00",Access Funding 1st Payment 18-19 2,NG2 7QP
Department for Transport,Department for Transport,12/06/2018,Cap Grt Pri Sec-Cos.,Programme Integration,Eversheds Sutherland (Inter-,2000004952,"288,760.32",PROPERTY PURCHASE UNDER HS2 PHASE 2B,CF10 5BT
Department for Transport,Department for Transport,04/06/2018,Cap Grt Pri Sec-Cos.,"Energy,Technology & Innovation",Bluebuild Energy Ltd,2000004450,"295,500.00",EVHS Mar 18 Multivendor payment,BT23 7SZ
Department for Transport,Department for Transport,15/06/2018,Grt Aid to NDPBs,Rail NDPB's,RAIL PASSENGER COUNCIL,2000005284,"300,000.00",Payment May Rail,M1 2WD
Department for Transport,Department for Transport,28/06/2018,Cap Grt Pri Sec-Cos.,Programme Integration,Eversheds Sutherland (Inter-,2000006170,"305,000.00",HS2 land purchase,CF10 5BT
Department for Transport,Department for Transport,14/06/2018,Subsidies Private Se,Local,NOTTINGHAM CITY TRANSPORT LTD,2000005109,"680,369.98",HS2 land purchase,N61 1GG
Department for Transport,Department for Transport,29/06/2018,Traffic Survey & Cou,Strategic Roads,WSP UK Ltd T/A Parsons Brinckerhoff,2000006243,"692,698.99",HS2 land purchase,RG21 4HJ
Department for Transport,Department for Transport,21/06/2018,CurrGrtOth to NDPBs,Aviation,Flybe Ltd,2000005625,"693,382.52",HS2 land purchase,EX5 2BA
Department for Transport,Department for Transport,29/06/2018,Traffic Survey & Cou,Strategic Roads,WSP UK Ltd T/A Parsons Brinckerhoff,2000006243,"700,000.00",HS2 land purchase,RG21 4HJ
Department for Transport,Department for Transport,26/06/2018,Cap Grt Pri Sec-Cos.,Programme Integration,DLA Piper UK LLP (Compulsory,2000005862,"707,400.00",HS2 land purchase,LS1 1BA
Department for Transport,Department for Transport,14/06/2018,Subsidies Private Se,Local,Stagecoach Busways,2000005118,"744,546.45",HS2 land purchase,SR5 1AQ
Department for Transport,Department for Transport,27/06/2018,CurrGrt Las in AEF/A,Local,NOTTINGHAM CITY COUNCIL,2000006139,"746,250.00",HS2 land purchase,NG1 5NT
Department for Transport,Department for Transport,27/06/2018,CurrGrt Las in AEF/A,Local,SOUTHEND-ON-SEA BC,2000006134,"763,760.00",HS2 land purchase,SS2 6AN
Department for Transport,Department for Transport,12/06/2018,Cap Grt Pri Sec-Cos.,Programme Integration,High Speed 2 (HS2) Ltd,2000004949,"777,482.00",HS2 land purchase,B4 6GA
Department for Transport,Department for Transport,14/06/2018,Subsidies Private Se,Local,Stagecoach Merseyside,2000005120,"783,078.81",STAGECOACH MERSEYSIDE,L11 0BB
Department for Transport,Department for Transport,27/06/2018,CurrGrt Las in AEF/A,Local,Leicester City Council,2000006109,"798,750.00",Access Funding 1st Payment 18-19 2,LE1 1FZ
Department for Transport,Department for Transport,15/06/2018,Traffic Survey & Cou,Strategic Roads,WSP UK Ltd T/A Parsons Brinckerhoff,2000005251,"820,996.28",#,RG21 4HJ
Department for Transport,Department for Transport,27/06/2018,CurrGrt Las in AEF/A,Local,Tees Valley Combined Authority,2000006148,"831,750.00",Access Funding 1st Payment 18-19 2,TS17 6QY
Department for Transport,Department for Transport,22/06/2018,Cap Grt Pri Sec-Cos.,Programme Integration,Eversheds Sutherland (Inter-,2000005678,"867,309.27",Advance Payment  IM GROUP,CF10 5BT
Department for Transport,Department for Transport,26/06/2018,Cap Grt Pri Sec-Cos.,Programme Integration,Eversheds Sutherland (Inter-,2000005856,"873,994.98",HS2 land purchase,CF10 5BT
Department for Transport,Department for Transport,01/06/2018,Cap Grt Pri Sec-Cos.,Programme Integration,Eversheds Sutherland (Inter-,2000004357,"907,583.98",Prop purch HS2 P2b ,CF10 5BT
Department for Transport,Department for Transport,12/06/2018,Cap Grt Pri Sec-Cos.,Programme Integration,High Speed 2 (HS2) Ltd,2000004949,"914,125.00",Cash Offer Q4 17/18 ,B4 6GA
Department for Transport,Department for Transport,19/06/2018,Cap Grt Pri Sec-Cos.,"Energy,Technology & Innovation",Tesla Motors Limited,2000005450,"1,008,000.00","""PICG Tesla  May  2018 #1,008,000.00""",UB7 8JD
Department for Transport,Department for Transport,14/06/2018,Transport  Consult,DG_Rail - Passenger Services,OVE ARUP & PARTNERS,2000005181,"1,033,606.86",#,NE1 3PL
Department for Transport,Department for Transport,20/06/2018,Cap Grt Loc Auth,Local,BUCKINGHAMSHIRE CC (REVENUE),2000005572,"1,049,272.00",Local Major Schemes 2018-19 Grant Payments,HP20 1UD
Department for Transport,Department for Transport,05/06/2018,Cap Grt NDPBs & CG,Rail NDPB's,Network Rail,2000004548,"1,062,682.28",Wigan Bolton invoice - 1228515,M60 7WY
Department for Transport,Department for Transport,21/06/2018,Cap Grt Loc Auth,DG_RAIL - Network Services,NEXUS,2000005612,"1,118,000.00",NEXUSP1 Capital for April,NE1 4AX
Department for Transport,Department for Transport,22/06/2018,Transport  Consult,DG_Rail - Passenger Services,OVE ARUP & PARTNERS,2000005684,"1,185,311.69",#,NE1 3PL
Department for Transport,Department for Transport,20/06/2018,Cap Grt Loc Auth,Local,HALTON BC,2000005574,"1,220,000.00",Local Major Schemes 2018-19 Grant Paymentsv1,WA8 6NB
Department for Transport,Department for Transport,11/06/2018,Cap Grt Pri Sec-Cos.,"Energy,Technology & Innovation",Rochford District Council,2000004885,"1,258,000.00","""Early Measures 2017-18, Rochford District Council",SS4 1BW
Department for Transport,Department for Transport,20/06/2018,Sprs Indexation Pay-,DG_Rail - Passenger Services,Arriva Rail North Limited,2000005560,"1,270,150.59",1903 Wk4 Indexation on Basic Franchise Payment P19,M1 2NF
Department for Transport,Department for Transport,01/06/2018,Cap Grt NDPBs & CG,Rail NDPB's,Network Rail,2000004348,"1,297,267.00",SCPF invoice - 1228016,M60 7WY
Department for Transport,Department for Transport,19/06/2018,Cap Grt Pri Sec-Cos.,"Energy,Technology & Innovation",The Colt Car Company Limited,2000005441,"1,415,000.00","""PICG Mitsubishi May 2018 #1,415,000.00""",GL7 1LF
Department for Transport,Department for Transport,26/06/2018,Cap Grt Pri Sec-Cos.,Programme Integration,DLA Piper UK LLP (Compulsory,2000005862,"1,418,700.00",HS2 land purchase,LS1 1BA
Department for Transport,Department for Transport,14/06/2018,Subsidies Private Se,Local,Go Northern Go North East,2000005094,"1,473,517.92",Go North East,NE8 2UA
Department for Transport,Department for Transport,18/06/2018,Cap Grt Pri Sec-Cos.,Programme Integration,Eversheds Sutherland (Inter-,2000005357,"1,480,000.00",Need to sell Scheme Phase 1 -,CF10 5BT
Department for Transport,Department for Transport,14/06/2018,Subsidies Private Se,Local,Arriva Durham County,2000005073,"1,516,039.47",ARRIVA DURHAM COUNTY,SR3 3XP
Department for Transport,Department for Transport,01/06/2018,Cap Grt Loc Auth,"Energy,Technology & Innovation",Newcastle Upon Tyne City Council,2000004349,"1,700,000.00","""Early Measures 2017-18, Newcastle(Tyneside) #1.7m",NE1 8QH
Department for Transport,Department for Transport,27/06/2018,CurrGrt Las in AEF/A,Local,BRISTOL CITY COUNCIL,2000006103,"1,828,051.00",Access Funding 1st Payment 18-19,BS99 7BL
Department for Transport,Department for Transport,14/06/2018,Subsidies Private Se,Local,First Leeds,2000005091,"1,868,866.19",FIRST LEEDS,LS10 1PL
Department for Transport,Department for Transport,27/06/2018,CurrGrt Las in AEF/A,Local,BLACKPOOL BC,2000006101,"1,875,000.00",Access Funding 1st Payment 18-19,FY1 1LZ
Department for Transport,Department for Transport,27/06/2018,CurrGrt Las in AEF/A,Local,Sheffield City Region,2000006133,"1,875,000.00",Access Funding 1st Payment 2018-19 (Sheffield),S1 4PL
Department for Transport,Department for Transport,01/06/2018,Cap Grt Pri Sec-Cos.,Programme Integration,Eversheds Sutherland (Inter-,2000004357,"1,878,750.00",HS2 land purchase,CF10 5BT
Department for Transport,Department for Transport,06/06/2018,Cap Grt Pri Sec-Cos.,Programme Integration,Eversheds Sutherland (Inter-,2000004581,"2,059,304.89",Property purchase HS2 P1 IM Group ,CF10 5BT
Department for Transport,Department for Transport,21/06/2018,CurrGrt Las in AEF/A,DG_RAIL - Network Services,NEXUS,2000005612,"2,142,589.00",NEXUSP2 Resource for May,NE1 4AX
Department for Transport,Department for Transport,06/06/2018,CurrGrt Las in AEF/A,DG_RAIL - Network Services,NEXUS,2000004613,"2,142,589.00",NEXUSP1 Resource for April18,NE1 4AX
Department for Transport,Department for Transport,27/06/2018,Research Grant-PS,DG_RAIL - One Railway & Security,Rail Safety & Standard Board,2000006135,"2,400,000.00",RSSB Main Research and Development Grant Q1  2018,EC2M 2RB
Department for Transport,Department for Transport,20/06/2018,Cap Grt Loc Auth,Local,NORTH YORKSHIRE CC,2000005537,"3,000,000.00",Local Major Schemes 2018-19 Grant Paymentsv1,DL7 8AL
Department for Transport,Department for Transport,19/06/2018,Cap Grt Loc Auth,Local,WORCESTERSHIRE COUNTY COUNCIL,2000005425,"3,000,000.00",A4440 SLR Phase 4 18-19 Grant,WR5 2NP
Department for Transport,Department for Transport,19/06/2018,Cap Grt Pri Sec-Cos.,"Energy,Technology & Innovation",Nissan Motors GB Limited,2000005442,"3,195,000.00","""PICG Nissan March 2018 #3,195,000.00""",WD3 9YS
Department for Transport,Department for Transport,20/06/2018,Cap Grt Loc Auth,Local,LINCOLNSHIRE COUNTY COUNCIL,2000005535,"3,230,602.00",Local Major Schemes 2018-19 Grant Paymentsv1,LN1 1YT
Department for Transport,Department for Transport,20/06/2018,Cap Grt Loc Auth,Local,ESSEX COUNTY COUNCIL,2000005573,"3,474,020.00",Local Major Schemes 2018-19 Grant Payments,CM1 1LX
Department for Transport,Department for Transport,26/06/2018,Cap Grt NDPBs & CG,Rail NDPB's,Network Rail,2000005852,"3,887,000.00",Dig Cab fit - 1228787,M60 7WY
Department for Transport,Department for Transport,04/06/2018,Cap Grt Pri Sec-Cos.,Programme Integration,DLA Piper UK LLP (Compulsory,2000004416,"4,168,777.14",HS2 land purchase,LS1 1BA
Department for Transport,Department for Transport,01/06/2018,Cap Grt NDPBs & CG,Rail NDPB's,Network Rail,2000004348,"4,822,761.01",Access for All Invoice 1228014,M60 7WY
Department for Transport,Department for Transport,05/06/2018,Eurotunnel Admin Pay,DG_Rail - Passenger Services,EUROTUNNEL,2000004461,"5,381,276.77",Eurotunnel Opex & Usage Charges May 2018 GBP,CT18 8XY
Department for Transport,Department for Transport,05/06/2018,Eurotunnel Admin Pay,DG_Rail - Passenger Services,Eurotunnel,2000004462,"5,666,194.88",Eurotunnel - Opex & Usage Charges May 2018 EUROS,CT18 8XX
Department for Transport,Department for Transport,28/06/2018,Funding - Agencies,#NoData,DVLA,2000006204,"6,000,000.00",#,SA6 7JL
Department for Transport,Department for Transport,04/06/2018,Eurotunnel Admin Pay,DG_Rail - Passenger Services,SNCF Caisse Generale,2000004368,"6,180,182.13",SNCF GBP May 2018 - SR 630861,93633
Department for Transport,Department for Transport,22/06/2018,CurrGrt Las in AEF/A,Major Rail Development Projects,GREATER LONDON AUTHORITY,2000005677,"6,291,000.00",TDF Transfer to cover period April-July 2018/19,SE1 2UT
Department for Transport,Department for Transport,04/06/2018,Eurotunnel Admin Pay,DG_Rail - Passenger Services,SNCF TRESORERIE ENC RHT VFE,2000004367,"6,297,770.62",SNCF Euro June 2018 - SR 630861,75014
Department for Transport,Department for Transport,20/06/2018,Pte Cost Of Servs Ch,DG_Rail - Passenger Services,MERSEYTRAVEL,2000005539,"6,694,880.83",1903 Wk4 18/19 rail grant and admin fee - Mersey T,L3 2AN
Department for Transport,Department for Transport,20/06/2018,Cap Grt Loc Auth,Local,LUTON BOROUGH COUNCIL,2000005575,"8,000,000.00",Local Major Schemes 2018-19 Grant Paymentsv1,LU1 2BQ
Department for Transport,Department for Transport,20/06/2018,Basic Franchise Pay,DG_Rail - Passenger Services,FIRST GREATER WESTERN,2000005538,"9,207,979.25",1903 Wk4 Franchise Payment_FM V10 - FIRST GREATER,SN1 1HL
Department for Transport,Department for Transport,20/06/2018,Basic Franchise Pay,DG_Rail - Passenger Services,West Midlands Trains,2000005567,"9,598,044.48",1903 Wk4 Franchise subsidy 18-19 P1903 - West Midl,B4 6GA
Department for Transport,Department for Transport,20/06/2018,Cap Grt Loc Auth,Local,West Midlands Combined Authority,2000005544,"9,600,000.00",Local Major Schemes 2018-19 Grant Paymentsv1,B19 3SD
Department for Transport,Department for Transport,15/06/2018,Cap Grt Pri Sec-Cos.,Programme Integration,DLA Piper UK LLP (Compulsory,2000005286,"12,765,000.00",Phase 1 CPO - Advance Payment ,LS1 1BA
Department for Transport,Department for Transport,20/06/2018,Cap Grt Loc Auth,Local,Greater Manchester Combined,2000005555,"14,311,904.00",Local Major Schemes 2018-19 Grant Payments,M60 2LA
Department for Transport,Department for Transport,20/06/2018,Basic Franchise Pay,DG_Rail - Passenger Services,Arriva Rail North Limited,2000005560,"20,572,165.03",1903 Wk4 Basic Franchise Payment - P1903 - Arriva,M1 2NF
Department for Transport,Department for Transport,05/06/2018,CurrGrtOth to NDPBs,Group Finance,"HSBC BANK PLC, LONDON",2000004549,"37,125,000.00",#,E14 5HQ
Department for Transport,Department for Transport,14/06/2018,Basic Franchise Pay,DG_Rail - Passenger Services,LONDON & SOUTH EASTERN RAILWAY,2000005186,"41,542,692.85",#,SE1 8PG
Department for Transport,Department for Transport,18/06/2018,CurrGrt Las in AEF/A,DG_Rail - Passenger Services,Department for Transport OLR Holdings Ltd,2000005365,"50,000,000.00",Working Capital grant to DOHL,SW1P 4DR
Department for Transport,Department for Transport,12/06/2018,CurrGrt Las in AEF/A,Local,Communities & Local Government,2000004936,"80,786,855.00",Transfer of Department for Transport PFI grant for payment to LAs,SW1P 4DF
Department for Transport,Department for Transport,25/06/2018,Grt Aid to NDPBs,Rail NDPB's,Network Rail Istre (Capital Grants),2000005788,"291,222,189.18",NR Grant May 4th Payment,NW1 2DN
Department for Transport,Department for Transport,29/06/2018,Grt Aid to NDPBs,Strategic Roads,Highways England,2000006268,"350,000,000.00",Highways England GiA No.4 - July 18 Payment,B1 1RN
Department for Transport,Highways England,14/06/2018,Consultants Costs,"SAFETY, ENGINEERING AND STANDARDS",TRL LTD,739045,"25,000.00",Support General Other,RG40 3GA
Department for Transport,Highways England,19/06/2018,TA Renewal of Roads - Capital,OPERATIONS DIRECTORATE,WILSON & SCOTT (HIGHWAYS) LTD,CONF9074850241162476,"25,065.02",Renewals of Roads,SL3 0HQ
Department for Transport,Highways England,07/06/2018,TA Cost AUC - Programme,MAJOR PROJECTS,GENESYS TELECOMMUNICATIONS LTD,738416,"25,211.84",SR13 Smart Motorway Scheme,GU14 7BF
Department for Transport,Highways England,11/06/2018,TA Cost AUC - Programme,MAJOR PROJECTS,DENTONS UKMEA LLP,738567,"25,257.30",RIS 1 Schemes,EC4M 7WS
Department for Transport,Highways England,15/06/2018,TA Cost AUC - Programme,IT DIRECTORATE,CAPITA PROPERTY & INFRASTRUCTURE LTD,739094,"25,273.58",Renewals of Technology,RH19 1UU
Department for Transport,Highways England,25/06/2018,CM - Lump Sum Fees,OPERATIONS DIRECTORATE,AMEY HIGHWAYS LIMITED,CONF9070001241177656,"25,298.07",Routine Maintenance,CB25 9PG
Department for Transport,Highways England,12/06/2018,TA Renewal of Structures - Capital,OPERATIONS DIRECTORATE,KIER HIGHWAYS LIMITED,APC200616,"25,328.67",Renewals of Structures,SG19 2BD
Department for Transport,Highways England,25/06/2018,"Contingent Labour,",COMMERCIAL & PROCUREMENT,LA INTERNATIONAL COMPUTER CONSULTANTS LTD,739692,"25,332.48",Support General Corporate Services,ST1 5UB
Department for Transport,Highways England,15/06/2018,TA Cost AUC - Programme,IT DIRECTORATE,CAPITA PROPERTY & INFRASTRUCTURE LTD,739095,"25,375.91",Renewals of Technology,RH19 1UU
Department for Transport,Highways England,27/06/2018,Payroll service provider charges,HUMAN RESOURCES,LIBERATA UK LIMITED,739885,"25,393.97",Support General Corporate Services,CR0 6SR
Department for Transport,Highways England,29/06/2018,Consultants Costs,OPERATIONS DIRECTORATE,JC PEACOCK AND COMPANY LIMITED,740205,"25,416.57",Protocol Strategic Salt,KA8 8AE
Department for Transport,Highways England,20/06/2018,Telephony - Service Charge,IT DIRECTORATE,GENESYS TELECOMMUNICATIONS LTD,738029,"25,450.92",Support General Corporate Services,GU14 7BF
Department for Transport,Highways England,22/06/2018,TA Renewal of Roads - Capital,OPERATIONS DIRECTORATE,JOINTLINE LIMITED,CONF9074750341160799,"25,483.86",Renewals of Roads,LN6 9TW
Department for Transport,Highways England,15/06/2018,TA Cost AUC - Programme,OPERATIONS DIRECTORATE,BALFOUR BEATTY MOTT MACDONALD AREA 10 ASC,APC200647,"25,544.48",TM - Network Resilience,WA3 7PG
Department for Transport,Highways England,15/05/2018,CM - Time Based Charges,OPERATIONS DIRECTORATE,A-ONE + INTEGRATED HIGHWAY SERVICES (CIS),APC200574,"25,650.24",Winter Maintenance,DL1 1TJ
Department for Transport,Highways England,26/06/2018,ICT Consultancy Costs,IT DIRECTORATE,CIVICA UK LIMITED,739789,"25,657.60",Support General ICT Programme,BA1 5LR
Department for Transport,Highways England,11/06/2018,TA Cost AUC - Programme,MAJOR PROJECTS,MOTT MACDONALD SWECO,738667,"25,726.51",RIS 1 Schemes,SO50 9NW
Department for Transport,Highways England,25/06/2018,TA Renewal of Roads - Capital,OPERATIONS DIRECTORATE,AGGREGATE INDUSTRIES UK LTD,CONF9215001040017481,"25,791.73",Renewals of Roads,LE67 1TL
Department for Transport,Highways England,28/06/2018,TA Cost AUC - Programme,MAJOR PROJECTS,UK POWER NETWORKS (OPERATIONS) LTD (CIS) DIVERT/CONNECT,740013,"25,903.20",Complex Schemes,EN6 1AG
Department for Transport,Highways England,15/06/2018,CM - Compensation / Variation Costs,OPERATIONS DIRECTORATE,KIER HIGHWAYS LIMITED,APC200720,"25,936.44",Routine Maintenance,SG19 2BD
Department for Transport,Highways England,14/06/2018,TA Renewal of Roads - Capital,OPERATIONS DIRECTORATE,A-ONE + INTEGRATED HIGHWAY SERVICES (CIS),APC200692,"26,069.72",Renewals of Roads,DL1 1TJ
Department for Transport,Highways England,26/06/2018,TA Renewal of Roads - Capital,OPERATIONS DIRECTORATE,GEOFFREY OSBORNE LTD,739815,"26,115.00",Renewals of Roads,RH2 9PY
Department for Transport,Highways England,04/06/2018,TA Renewal of Structures - Capital,OPERATIONS DIRECTORATE,FOREST TRAFFIC SERVICES LTD,CONF9214600940016837,"26,203.22",Renewals of Structures,NP19 4PN
Department for Transport,Highways England,15/06/2018,TA Cost AUC - Programme,OPERATIONS DIRECTORATE,BALFOUR BEATTY MOTT MACDONALD AREA 10 ASC,APC200647,"26,219.68",LNMS Safety,WA3 7PG
Department for Transport,Highways England,13/06/2018,TA Cost AUC - Programme,MAJOR PROJECTS,MOTT MACDONALD SWECO,738916,"26,221.68",RIS 1 Schemes,SO50 9NW
Department for Transport,Highways England,12/06/2018,TA Cost AUC - Programme,OPERATIONS DIRECTORATE,KIER HIGHWAYS LIMITED,APC200618,"26,305.50",Winter Maintenance - Assets,SG19 2BD
Department for Transport,Highways England,06/06/2018,TA Cost AUC - Programme,"SAFETY, ENGINEERING AND STANDARDS",CONNECT PLUS (M25) LTD,738354,"26,344.37",Innovation Safety Delivery,EN6 3NP
Department for Transport,Highways England,08/06/2018,TA Cost AUC - Programme,MAJOR PROJECTS,FAITHFUL & GOULD,738562,"26,443.95",SR10 Schemes,WR5 1TX
Department for Transport,Highways England,27/06/2018,Consultants Costs,"SAFETY, ENGINEERING AND STANDARDS",WSP UK LIMITED,739884,"26,470.24",Support General Research and Development,WC2A 1AF
Department for Transport,Highways England,08/06/2018,CM - Time Based Charges,OPERATIONS DIRECTORATE,THE POLICE AND CRIME COMMISSIONER FOR WARWICKSHIRE,738553,"26,544.00",Maintenance Other,CV35 7QB
Department for Transport,Highways England,18/06/2018,Consultants Costs,MAJOR PROJECTS,JACOBS UK LTD,739202,"26,596.42",Innovation Safety Delivery,G2 7HX
Department for Transport,Highways England,29/06/2018,Contractor Costs,IT DIRECTORATE,ATKINS-CH2M JOINT VENTURE,740245,"26,633.44",TM - Other,W6 7EF
Department for Transport,Highways England,08/06/2018,TA Renewal of Roads - Capital,OPERATIONS DIRECTORATE,ROUTE ONE INFRASTRUCTURE LTD,CONF9134400641195473,"26,638.96",Renewals of Roads,WF7 6NX
Department for Transport,Highways England,25/06/2018,CM - Third Party Damage,OPERATIONS DIRECTORATE,AMEY HIGHWAYS LIMITED,CONF9072008441169960,"26,833.02",Routine Maintenance,CB25 9PG
Department for Transport,Highways England,15/06/2018,TA Cost AUC - Programme,OPERATIONS DIRECTORATE,BALFOUR BEATTY MOTT MACDONALD AREA 10 ASC,APC200679,"26,858.12",Innovation Safety Delivery,WA3 7PG
Department for Transport,Highways England,15/06/2018,TA Cost AUC - Programme,OPERATIONS DIRECTORATE,KIER HIGHWAYS LIMITED,APC200623,"26,919.03",LNMS Safety,SG19 2BD
Department for Transport,Highways England,15/06/2018,TA Renewal of Roads - Capital,OPERATIONS DIRECTORATE,CH2M COSTAIN JOINT VENTURE (CHC) (AREA 14 M&C),CONF9144500341110699,"26,955.51",Renewals of Roads,DL17 0LG
Department for Transport,Highways England,20/06/2018,TA Cost AUC - Programme,IT DIRECTORATE,BORIS SOFTWARE LTD,739476,"27,000.00",Support General ICT Programme,BS4 2DB
Department for Transport,Highways England,25/06/2018,RM Cost Reimbursable,OPERATIONS DIRECTORATE,AMEY HIGHWAYS LIMITED,CONF9072008441179733,"27,149.71",Routine Maintenance,CB25 9PG
Department for Transport,Highways England,25/06/2018,TA Renewal of Roads - Capital,OPERATIONS DIRECTORATE,W J SOUTH WEST LIMITED,CONF9214401040013228,"27,156.05",Renewals of Roads,TA21 9AD
Department for Transport,Highways England,28/06/2018,TA Cost AUC - Programme,MAJOR PROJECTS,JACOBS UK LTD,740048,"27,162.82",RIS 1 Schemes,G2 7HX
Department for Transport,Highways England,12/06/2018,TA Cost AUC - Programme,OPERATIONS DIRECTORATE,KIER HIGHWAYS LIMITED,APC200629,"27,277.94",Environment Water Quality Delivery,SG19 2BD
Department for Transport,Highways England,19/06/2018,Contractor Costs,OPERATIONS DIRECTORATE,TARMAC TRADING LIMITED,CONF9076050341180409,"27,295.14",Routine Maintenance,B37 7BQ
Department for Transport,Highways England,15/06/2018,TA Cost AUC - Programme,OPERATIONS DIRECTORATE,KIER HIGHWAYS LIMITED,APC200623,"27,400.99",Environment Carbon Delivery,SG19 2BD
Department for Transport,Highways England,15/06/2018,TA Cost AUC - Programme,OPERATIONS DIRECTORATE,KIER HIGHWAYS LIMITED,APC200681,"27,409.48",Cycling Delivery,SG19 2BD
Department for Transport,Highways England,19/06/2018,TA Renewal of Roads - Capital,OPERATIONS DIRECTORATE,GROUND CONTROL LIMITED,CONF9074650341162169,"27,447.10",Renewals of Roads,TF11 9JB
Department for Transport,Highways England,15/06/2018,TA Renewal of Roads - Capital,OPERATIONS DIRECTORATE,CH2M COSTAIN JOINT VENTURE (CHC) (AREA 14 M&C),CONF9144500341109272,"27,447.91",Renewals of Roads,DL17 0LG
Department for Transport,Highways England,14/06/2018,CM - Time Based Charges,OPERATIONS DIRECTORATE,A-ONE + INTEGRATED HIGHWAY SERVICES (CIS),APC200733,"27,488.23",Operate General Other,DL1 1TJ
Department for Transport,Highways England,29/06/2018,Consultants Costs,"SAFETY, ENGINEERING AND STANDARDS",MOTT MACDONALD GROUP LTD,740149,"27,496.00",Support General Other,CR0 2EE
Department for Transport,Highways England,11/06/2018,Contractor Costs,IT DIRECTORATE,MOZAIC SERVICES LIMITED,738657,"27,500.00",TM - Other,EC2R 7HG
Department for Transport,Highways England,15/06/2018,Contractor Costs,IT DIRECTORATE,GENESYS TELECOMMUNICATIONS LTD,739085,"27,500.00",Customer Operations Technology PFI,GU14 7BF
Department for Transport,Highways England,15/06/2018,CM - Time Based Charges,OPERATIONS DIRECTORATE,THE POLICE AND CRIME COMMISSIONER FOR WEST MIDLANDS,739101,"27,530.56",Maintenance Other,B4 6NQ
Department for Transport,Highways England,21/06/2018,TA Cost AUC - ICT (A),MAJOR PROJECTS,EVERSHEDS SUTHERLAND (INTERNATIONAL) LLP (TR140),LOMD264905,"27,600.00",RIS 2 Schemes,CF10 5BT
Department for Transport,Highways England,15/06/2018,Consultants Costs,OPERATIONS DIRECTORATE,KIER HIGHWAYS LIMITED,APC200681,"27,637.01",LNMS Safety,SG19 2BD
Department for Transport,Highways England,25/06/2018,CM - Compensation / Variation Costs,OPERATIONS DIRECTORATE,AMEY HIGHWAYS LIMITED,CONF9073301641163879,"27,689.00",Routine Maintenance,CB25 9PG
Department for Transport,Highways England,24/06/2018,Travel - Rail - Standard,MAJOR PROJECTS,REDFERN TRAVEL LTD,6627,"27,778.90",Support General Corporate Services,BD1 3AZ
Department for Transport,Highways England,19/06/2018,Consultants Costs,OPERATIONS DIRECTORATE,COMPUTER SYSTEMS INTEGRATION LTD,739359,"27,791.66",Protocol SRC (Severn River Crossing),B46 1DL
Department for Transport,Highways England,25/06/2018,RM Cost Reimbursable,OPERATIONS DIRECTORATE,AMEY HIGHWAYS LIMITED,CONF9072008441172204,"27,885.09",Routine Maintenance,CB25 9PG
Department for Transport,Highways England,25/06/2018,CM - Third Party Damage,OPERATIONS DIRECTORATE,AMEY HIGHWAYS LIMITED,CONF9073005541178060,"27,900.33",Routine Maintenance,CB25 9PG
Department for Transport,Highways England,31/05/2018,TA Cost AUC - Programme,MAJOR PROJECTS,SISK LAGAN JOINT VENTURE,4091335-3,"27,939.15",SR13 RIP Schemes,AL2 2DD
Department for Transport,Highways England,20/06/2018,Operational Vehicle rental,OPERATIONS DIRECTORATE,LEX AUTOLEASE LIMITED,739459,"27,956.96",Customer Operations Traffic Management,SK3 0RB
Department for Transport,Highways England,25/06/2018,TA Cost AUC - Programme,OPERATIONS DIRECTORATE,FOREST TRAFFIC SERVICES LTD,CONF9214601140017775,"28,081.99",Renewals of Technology,NP19 4PN
Department for Transport,Highways England,20/06/2018,TA Renewal of Roads - Capital,OPERATIONS DIRECTORATE,WSP UK LIMITED,739388,"28,085.22",Renewals of Roads,WC2A 1AF
Department for Transport,Highways England,13/06/2018,Facilities Management Charges,FINANCE & BUSINESS SERVICES,INTERSERVE (FACILITIES MANAGEMENT)LTD,738815,"28,154.78",Operate General Management Costs,B70 1DA
Department for Transport,Highways England,11/06/2018,TA Cost AUC - Programme,OPERATIONS DIRECTORATE,OVE ARUP & PARTNERS,738587,"28,296.71",Renewals of Technology,W1T 4BQ
Department for Transport,Highways England,14/06/2018,CM - Lump Sum Fees,OPERATIONS DIRECTORATE,KIER HIGHWAYS LIMITED,CONF9130015941264506,"28,355.22",Routine Maintenance,SG19 2BD
Department for Transport,Highways England,29/06/2018,Consultants Costs,OPERATIONS DIRECTORATE,WSP UK LIMITED,740188,"28,401.67",Operate General Other,WC2A 1AF
Department for Transport,Highways England,11/06/2018,TA Cost AUC - Programme,OPERATIONS DIRECTORATE,OVE ARUP & PARTNERS,738586,"28,453.68",Renewals of Technology,W1T 4BQ
Department for Transport,Highways England,28/06/2018,TA Cost AUC - Programme,MAJOR PROJECTS,UK POWER NETWORKS (OPERATIONS) LTD (CIS) DIVERT/CONNECT,3002222,"28,639.49",Complex Schemes,EN6 1AG
Department for Transport,Highways England,25/06/2018,Contractor Costs,IT DIRECTORATE,COSTAIN INTEGRATED TECHNOLOGY SOLUTIONS LTD,739727,"28,649.12",Technology Maintenance,BS49 4RF
Department for Transport,Highways England,12/06/2018,TA Renewal of Structures - Capital,OPERATIONS DIRECTORATE,WSP UK LIMITED,738735,"28,700.85",Renewals of Structures,WC2A 1AF
Department for Transport,Highways England,11/06/2018,TA Renewal of Roads - Capital,OPERATIONS DIRECTORATE,H W MARTIN (TRAFFIC MANAGEMENT) LTD,CONF9134301241216772,"28,842.13",Renewals of Roads,DE55 5JY
Department for Transport,Highways England,26/06/2018,TA Cost AUC - Programme,MAJOR PROJECTS,WSP UK LIMITED,739775,"28,916.09",Feasibility,WC2A 1AF
Department for Transport,Highways England,28/06/2018,TA Cost AUC - Programme,MAJOR PROJECTS,ATKINS LTD,740003,"29,024.14",RIS 2 Schemes,KT18 5BW
Department for Transport,Highways England,26/06/2018,TA Cost AUC - Programme,OPERATIONS DIRECTORATE,JOHN GRAHAM CONSTRUCTION LTD,739820,"29,032.89",Safety Delivery,BT26 6HX
Department for Transport,Highways England,04/06/2018,TA Cost AUC - Programme,OPERATIONS DIRECTORATE,PELL FRISCHMANN,738173,"29,129.47",Renewals of Technology,WF1 1LY
Department for Transport,Highways England,22/06/2018,Consultants Costs,STRATEGY & PLANNING DIR,AECOM,739658,"29,212.21",Support General Other,B4 6AT
Department for Transport,Highways England,12/06/2018,TA Cost AUC - Programme,MAJOR PROJECTS,DENTONS UKMEA LLP,738747,"29,281.50",RIS 1 Schemes,EC4M 7WS
Department for Transport,Highways England,14/06/2018,Contractor Costs,FINANCE & BUSINESS SERVICES,BRITISH GAS TRADING LIMITED,739005,"29,295.80",Support General Ex Admin,GU95 1AW
Department for Transport,Highways England,11/06/2018,TA Cost AUC - Programme,MAJOR PROJECTS,COWI A/S ARCADIS CH2M JV,738606,"29,412.15",RIS 2 Schemes,W6 7EF
Department for Transport,Highways England,14/06/2018,TA Cost AUC - Programme,OPERATIONS DIRECTORATE,A-ONE + INTEGRATED HIGHWAY SERVICES (CIS),APC200733,"29,426.45",Safety Delivery,DL1 1TJ
Department for Transport,Highways England,29/06/2018,TEC - Technology Maintenance,IT DIRECTORATE,REDFLEX TRAFFIC SYSTEMS LIMITED,740273,"29,446.90",Technology Maintenance,SL1 4TU
Department for Transport,Highways England,14/06/2018,CM - Time Based Charges,OPERATIONS DIRECTORATE,A-ONE + INTEGRATED HIGHWAY SERVICES (CIS),APC200733,"29,568.42",Routine Maintenance,DL1 1TJ
Department for Transport,Highways England,15/06/2018,Contractor Costs,IT DIRECTORATE,GENESYS TELECOMMUNICATIONS LTD,739086,"29,610.23",Customer Operations Technology PFI,GU14 7BF
Department for Transport,Highways England,29/06/2018,Consultants Costs,"SAFETY, ENGINEERING AND STANDARDS",OVE ARUP & PARTNERS,740184,"29,946.48",Support General Other,W1T 4BQ
Department for Transport,Highways England,15/06/2018,RM Cost Reimbursable,OPERATIONS DIRECTORATE,CH2M COSTAIN JOINT VENTURE (CHC) (AREA 14 M&C),CONF9142013841109202,"29,967.09",Routine Maintenance,DL17 0LG
Department for Transport,Highways England,29/06/2018,TA Cost AUC - Programme,OPERATIONS DIRECTORATE,TRACSIS TRAFFIC DATA LIMITED,740171,"29,995.00",Cycling Feasibility,LS22 7BA
Department for Transport,Highways England,04/06/2018,TA Cost AUC - ICT (A),MAJOR PROJECTS,WSP UK LIMITED,LOMD264619,"30,000.00",RIS 1 Schemes,WC2A 1AF
Department for Transport,Highways England,07/06/2018,Consultants Costs,OPERATIONS DIRECTORATE,CH2M HILL UNITED KINGDOM,738410,"30,002.15",Operate General Other,W6 7EF
Department for Transport,Highways England,20/06/2018,TA Cost AUC - Programme,MAJOR PROJECTS,GOWLING WLG (UK) LLP (PO),739473,"30,024.50",Feasibility,B4 6GA
Department for Transport,Highways England,17/06/2018,Travel - Rail - Standard,MAJOR PROJECTS,REDFERN TRAVEL LTD,6607,"30,065.06",Support General Corporate Services,BD1 3AZ
Department for Transport,Highways England,14/06/2018,TA Cost AUC - Programme,MAJOR PROJECTS,JCP CONSULTANCY LTD,738941,"30,134.83",Support Enhancements,S11 8FT
Department for Transport,Highways England,15/05/2018,TA Cost AUC - Programme,OPERATIONS DIRECTORATE,A-ONE + INTEGRATED HIGHWAY SERVICES (CIS),APC200574,"30,196.31",Integration Feasibility,DL1 1TJ
Department for Transport,Highways England,15/05/2018,CM - Time Based Charges,OPERATIONS DIRECTORATE,A-ONE + INTEGRATED HIGHWAY SERVICES (CIS),APC200574,"30,355.66",Routine Maintenance,DL1 1TJ
Department for Transport,Highways England,19/06/2018,RM Cost Reimbursable,OPERATIONS DIRECTORATE,RINGWAY INFRASTRUCTURE SERVICES LTD,CONF9212003840012532,"30,356.93",Routine Maintenance,EN1 1TH
Department for Transport,Highways England,19/06/2018,CM - Compounds Maintenance,OPERATIONS DIRECTORATE,RINGWAY INFRASTRUCTURE SERVICES LTD,CONF9212003840010243,"30,359.43",Routine Maintenance,EN1 1TH
Department for Transport,Highways England,25/06/2018,RM Cost Reimbursable,OPERATIONS DIRECTORATE,AMEY HIGHWAYS LIMITED,CONF9072008441178887,"30,519.96",Routine Maintenance,CB25 9PG
Department for Transport,Highways England,14/06/2018,ICT Consultancy Costs,IT DIRECTORATE,MOZAIC SERVICES LIMITED,4099226-2,"30,667.63",Operate General Management Costs,EC2R 7HG
Department for Transport,Highways England,11/06/2018,TA Cost AUC - Programme,FINANCE & BUSINESS SERVICES,SAVILLS (UK) LTD,LOMD264707,"30,722.79",Support General Lands,M2 4AW
Department for Transport,Highways England,04/06/2018,TA Cost AUC - Programme,MAJOR PROJECTS,TURNER & TOWNSEND,738165,"30,730.19",SR13 Smart Motorway Scheme,LS18 4GH
Department for Transport,Highways England,25/06/2018,RM Cost Reimbursable,OPERATIONS DIRECTORATE,AMEY HIGHWAYS LIMITED,CONF9072008441169951,"30,823.05",Routine Maintenance,CB25 9PG
Department for Transport,Highways England,20/06/2018,TA Cost AUC - Programme,OPERATIONS DIRECTORATE,MOTT MACDONALD SWECO,739398,"30,890.18",LNMS Safety,SO50 9NW
Department for Transport,Highways England,05/06/2018,Contractor Costs,OPERATIONS DIRECTORATE,NETWORK INFORMATION SERVICES LTD,738243,"30,993.00",Customer Operations Traffic Management,B32 1AF
Department for Transport,Highways England,01/06/2018,TA Cost AUC - Programme,MAJOR PROJECTS,AECOM INFRASTRUCTURE & ENVIRONMENT UK LIMITED,738131,"31,022.79",Cycling Delivery,RG21 7PP
Department for Transport,Highways England,21/06/2018,"Contingent Labour,",OPERATIONS DIRECTORATE,CAPITA GROUP,LO10275530,"31,046.72",Operate General Management Costs,S4 7TL
Department for Transport,Highways England,31/05/2018,"Contingent Labour,",OPERATIONS DIRECTORATE,KIER HIGHWAYS LIMITED,10052018,"31,084.80",Operate S274/S278,SG19 2BD
Department for Transport,Highways England,12/06/2018,Consultants Costs,CORP AFFAIRS & COMMS DIR,THE LIVE GROUP,738749,"31,094.00",Support General Other,KT1 2SZ
Department for Transport,Highways England,11/06/2018,TA Renewal of Roads - Capital,OPERATIONS DIRECTORATE,H W MARTIN (TRAFFIC MANAGEMENT) LTD,CONF9134301241262367,"31,122.37",Renewals of Roads,DE55 5JY
Department for Transport,Highways England,15/05/2018,TA Cost AUC - Programme,OPERATIONS DIRECTORATE,A-ONE + INTEGRATED HIGHWAY SERVICES (CIS),APC200574,"31,167.28",Renewals of Technology,DL1 1TJ
Department for Transport,Highways England,31/05/2018,TA Cost AUC - ICT (A),MAJOR PROJECTS,EVERSHEDS SUTHERLAND (INT) LLP (PO),LOMD264612,"31,332.39",RIS 2 Schemes,CG10 5BT
Department for Transport,Highways England,27/06/2018,TA Cost AUC - Programme,MAJOR PROJECTS,BALFOUR BEATTY CIVIL ENGINEERING LTD,739984,"31,357.00",RIS 1 Schemes,SW1V 1LQ
Department for Transport,Highways England,25/06/2018,TA Renewal of Roads - Capital,MAJOR PROJECTS,AECOM INFRASTRUCTURE & ENVIRONMENT UK LIMITED,739713,"31,407.69",Renewals of Roads,RG21 7PP
Department for Transport,Highways England,29/06/2018,Consultants Costs,COMMERCIAL & PROCUREMENT,BRYAN CAVE LEIGHTON PAISNER LLP,740210,"31,411.88",Support General Other,EC4R 9HA
Department for Transport,Highways England,07/06/2018,CM - Time Based Charges,OPERATIONS DIRECTORATE,THE POLICE AND CRIME COMMISSIONER FOR BEDFORDSHIRE,738396,"31,456.42",Routine Maintenance,MK43 9AX
Department for Transport,Highways England,15/06/2018,TA Cost AUC - Programme,OPERATIONS DIRECTORATE,KIER HIGHWAYS LIMITED,APC200623,"31,550.05",Safety Delivery,SG19 2BD
Department for Transport,Highways England,19/06/2018,TA Cost AUC - Programme,MAJOR PROJECTS,MOTT MACDONALD SWECO,739334,"31,571.87",RIS 1 Schemes,SO50 9NW
Department for Transport,Highways England,14/06/2018,CM - Lump Sum Fees,OPERATIONS DIRECTORATE,KIER HIGHWAYS LIMITED,CONF9130015741261415,"31,702.52",Routine Maintenance,SG19 2BD
Department for Transport,Highways England,22/06/2018,TA Cost AUC - Programme,OPERATIONS DIRECTORATE,J MCCANN & CO (NOTTM) LIMITED,CONF9074650341163404,"31,799.31",LNMS Other Economy,NG9 6DQ
Department for Transport,Highways England,16/05/2018,TA Cost AUC - Programme,OPERATIONS DIRECTORATE,CONNECT PLUS (M25) LTD,APC200510,"31,868.68",LNMS Safety,EN6 3NP
Department for Transport,Highways England,05/06/2018,TA Cost AUC - Programme,MAJOR PROJECTS,AECOM,738301,"32,150.48",Feasibility,B4 6AT
Department for Transport,Highways England,29/06/2018,Consultants Costs,OPERATIONS DIRECTORATE,OVE ARUP & PARTNERS,740221,"32,168.28",Operate General Other,W1T 4BQ
Department for Transport,Highways England,27/06/2018,TA Cost AUC - Programme,MAJOR PROJECTS,TURNER & TOWNSEND,739916,"32,195.29",Support Enhancements,LS18 4GH
Department for Transport,Highways England,25/06/2018,TA Renewal of Roads - Capital,OPERATIONS DIRECTORATE,FOREST TRAFFIC SERVICES LTD,CONF9214601140016797,"32,283.04",Renewals of Roads,NP19 4PN
Department for Transport,Highways England,04/06/2018,TA Cost AUC - Programme,MAJOR PROJECTS,AECOM,738192,"32,295.78",Feasibility,B4 6AT
Department for Transport,Highways England,20/06/2018,TA Cost AUC - Programme,MAJOR PROJECTS,AECOM,739483,"32,295.78",Feasibility,B4 6AT
Department for Transport,Highways England,19/06/2018,Contractor Costs,OPERATIONS DIRECTORATE,KIER HIGHWAYS LIMITED,CONF9074350441177599,"32,381.38",Routine Maintenance,SG19 2BD
Department for Transport,Highways England,06/06/2018,CM - Compensation / Variation Costs,OPERATIONS DIRECTORATE,BALFOUR BEATTY CIVIL ENGINEERING LTD,738328,"32,656.69",Technology Maintenance,SW1V 1LQ
Department for Transport,Highways England,25/06/2018,CM - Lump Sum Fees,OPERATIONS DIRECTORATE,AMEY HIGHWAYS LIMITED,CONF9070001200000003,"32,676.00",Routine Maintenance,CB25 9PG
Department for Transport,Highways England,25/06/2018,TA Renewal of Roads - Capital,OPERATIONS DIRECTORATE,SOUTH WEST HIGHWAYS LTD,CONF9214300640017762,"32,864.94",Renewals of Roads,EX5 2HB
Department for Transport,Highways England,06/06/2018,TA Cost AUC - Programme,"SAFETY, ENGINEERING AND STANDARDS",CONNECT PLUS (M25) LTD,738355,"32,944.33",Innovation Safety Delivery,EN6 3NP
Department for Transport,Highways England,25/06/2018,TA Cost AUC - Programme,OPERATIONS DIRECTORATE,FOREST TRAFFIC SERVICES LTD,CONF9214601140017985,"32,978.29",Environment Landscape Delivery,NP19 4PN
Department for Transport,Highways England,27/06/2018,TA Cost AUC - Programme,MAJOR PROJECTS,AECOM INFRASTRUCTURE & ENVIRONMENT UK LIMITED,739895,"33,014.02",SR13 Smart Motorway Scheme,RG21 7PP
Department for Transport,Highways England,14/06/2018,TA Cost AUC - Programme,OPERATIONS DIRECTORATE,A-ONE + INTEGRATED HIGHWAY SERVICES (CIS),APC200733,"33,026.22",Innovation Safety Delivery,DL1 1TJ
Department for Transport,Highways England,19/06/2018,RM Cost Reimbursable,OPERATIONS DIRECTORATE,RINGWAY INFRASTRUCTURE SERVICES LTD,CONF9212003840012734,"33,036.02",Routine Maintenance,EN1 1TH
Department for Transport,Highways England,27/06/2018,TA Cost AUC - Programme,OPERATIONS DIRECTORATE,JACOBS UK LTD,739919,"33,370.67",LNMS Safety,G2 7HX
Department for Transport,Highways England,19/06/2018,TA Renewal of Roads - Capital,OPERATIONS DIRECTORATE,CARNELL SUPPORT SERVICES,CONF9076250341173471,"33,686.83",Renewals of Roads,ST19 5DJ
Department for Transport,Highways England,20/06/2018,ICT Software Purchase,IT DIRECTORATE,PITNEY BOWES SOFTWARE EUROPE LIMITED,739411,"33,702.00",Support General Corporate Services,AL10 9UJ
Department for Transport,Highways England,27/06/2018,TA Renewal of Structures - Capital,OPERATIONS DIRECTORATE,JACOBS UK LTD,739919,"33,741.09",Renewals of Structures,G2 7HX
Department for Transport,Highways England,07/06/2018,Consultants Costs,OPERATIONS DIRECTORATE,CARNELL SUPPORT SERVICES,738403,"33,952.63",Routine Maintenance,ST19 5DJ
Department for Transport,Highways England,18/06/2018,TA Cost AUC - Programme,MAJOR PROJECTS,ATKINS-CH2M JOINT VENTURE,739189,"33,958.24",RIS 1 Schemes,W6 7EF
Department for Transport,Highways England,18/06/2018,TA Cost AUC - Programme,MAJOR PROJECTS,ATKINS-CH2M JOINT VENTURE,739191,"33,958.25",RIS 1 Schemes,W6 7EF
Department for Transport,Highways England,04/06/2018,TA Renewal of Roads - Capital,OPERATIONS DIRECTORATE,FOREST TRAFFIC SERVICES LTD,CONF9214600940016797,"33,992.54",Renewals of Roads,NP19 4PN
Department for Transport,Highways England,07/06/2018,Consultants Costs,OPERATIONS DIRECTORATE,CH2M HILL UNITED KINGDOM,738407,"34,003.24",Operate General Other,W6 7EF
Department for Transport,Highways England,14/06/2018,TA Cost AUC - Programme,OPERATIONS DIRECTORATE,A-ONE + INTEGRATED HIGHWAY SERVICES (CIS),APC200696,"34,106.29",Winter Maintenance - Assets,DL1 1TJ
Department for Transport,Highways England,25/06/2018,CM - Lump Sum Fees,OPERATIONS DIRECTORATE,AMEY HIGHWAYS LIMITED,CONF9070001241177653,"34,142.88",Routine Maintenance,CB25 9PG
Department for Transport,Highways England,25/06/2018,ICT Consultancy Costs,IT DIRECTORATE,LEIDOS INNOVATIONS UK LTD,737683,"34,269.00",Support General Corporate Services,G3 8EP
Department for Transport,Highways England,25/06/2018,RM Cost Reimbursable,OPERATIONS DIRECTORATE,AMEY HIGHWAYS LIMITED,CONF9072008441176600,"34,283.75",Routine Maintenance,CB25 9PG
Department for Transport,Highways England,08/06/2018,TA Cost AUC - Programme,MAJOR PROJECTS,CADENT GAS LIMITED (CIS) DIVERT/CONNECT,738556,"34,289.43",Complex Schemes,WV1 9AW
Department for Transport,Highways England,26/06/2018,TA Cost AUC - Programme,OPERATIONS DIRECTORATE,JOHN GRAHAM CONSTRUCTION LTD,739820,"34,363.02",Environment Landscape Delivery,BT26 6HX
Department for Transport,Highways England,30/03/2018,Contractor Costs,OPERATIONS DIRECTORATE,PRO-TECT SAFETY SIGNS,4097905-1,"34,674.39",Routine Maintenance,BS24 6TA
Department for Transport,Highways England,19/06/2018,TA Cost AUC - Programme,MAJOR PROJECTS,OVE ARUP & PARTNERS,739358,"34,692.08",RIS 1 Schemes,W1T 4BQ
Department for Transport,Highways England,19/06/2018,TA Cost AUC - Programme,MAJOR PROJECTS,OVE ARUP & PARTNERS,739360,"34,692.08",RIS 2 Schemes,W1T 4BQ
Department for Transport,Highways England,25/06/2018,TA Cost AUC - Programme,MAJOR PROJECTS,JACOBS UK LTD,739699,"34,703.09",RIS 2 Schemes,G2 7HX
Department for Transport,Highways England,19/06/2018,TA Cost AUC - Programme,MAJOR PROJECTS,ATKINS LTD,739252,"34,732.43",RIS 2 Schemes,KT18 5BW
Department for Transport,Highways England,14/06/2018,CM - Time Based Charges,OPERATIONS DIRECTORATE,A-ONE + INTEGRATED HIGHWAY SERVICES (CIS),APC200733,"34,784.27",Winter Maintenance,DL1 1TJ
Department for Transport,Highways England,04/06/2018,Lands Costs,FINANCE & BUSINESS SERVICES,CARTER JONAS LLP,LOMD264627,"34,800.00",Support General Lands,W1G 0BG
Department for Transport,Highways England,15/06/2018,RM TM for RTMC,OPERATIONS DIRECTORATE,BALFOUR BEATTY MOTT MACDONALD AREA 10 ASC,APC200645,"34,922.40",Routine Maintenance,WA3 7PG
Department for Transport,Highways England,07/06/2018,CM - Lump Sum Fees,OPERATIONS DIRECTORATE,NETWORK RAIL,738429,"34,934.95",Routine Maintenance,M60 7WY
Department for Transport,Highways England,27/06/2018,TA Cost AUC - Programme,OPERATIONS DIRECTORATE,VAISALA TMI LTD,739956,"35,016.00",Renewals of Technology,B5 7SW
Department for Transport,Highways England,11/06/2018,TA Cost AUC - Programme,MAJOR PROJECTS,BURGES SALMON,738669,"35,174.69",Feasibility,BS2 0ZX
Department for Transport,Highways England,11/06/2018,TA Renewal of Roads - Capital,OPERATIONS DIRECTORATE,H W MARTIN (TRAFFIC MANAGEMENT) LTD,CONF9134301241240212,"35,411.48",Renewals of Roads,DE55 5JY
Department for Transport,Highways England,19/06/2018,TA Renewal of Roads - Capital,OPERATIONS DIRECTORATE,TARMAC TRADING LIMITED,CONF9076050341164615,"35,468.49",Renewals of Roads,B37 7BQ
Department for Transport,Highways England,16/05/2018,TA Cost AUC - Programme,OPERATIONS DIRECTORATE,CONNECT PLUS (M25) LTD,APC200519,"35,705.07",Renewals of Technology,EN6 3NP
Department for Transport,Highways England,21/06/2018,TA Renewal of Roads - Capital,OPERATIONS DIRECTORATE,H W MARTIN (TRAFFIC MANAGEMENT) LTD,CONF9143701741104304,"35,740.47",Renewals of Roads,DE55 5JY
Department for Transport,Highways England,11/06/2018,TA Cost AUC - Programme,OPERATIONS DIRECTORATE,H W MARTIN (TRAFFIC MANAGEMENT) LTD,CONF9134301241257660,"35,755.64",Environment Biod. Delivery,DE55 5JY
Department for Transport,Highways England,26/06/2018,TEC - Technology Maintenance,IT DIRECTORATE,CAPITA PROPERTY & INFRASTRUCTURE LTD,739833,"35,829.94",Maintenance Other,RH19 1UU
Department for Transport,Highways England,19/06/2018,TA Renewal of Roads - Capital,OPERATIONS DIRECTORATE,TARMAC TRADING LIMITED,CONF9076050341168165,"35,840.57",Renewals of Roads,B37 7BQ
Department for Transport,Highways England,14/06/2018,Contractor Costs,FINANCE & BUSINESS SERVICES,BRITISH GAS TRADING LIMITED,739014,"35,867.92",Support General Ex Admin,GU95 1AW
Department for Transport,Highways England,14/06/2018,TA Cost AUC - Programme,OPERATIONS DIRECTORATE,A-ONE + INTEGRATED HIGHWAY SERVICES (CIS),APC200733,"35,890.94",Renewals of Technology,DL1 1TJ
Department for Transport,Highways England,12/06/2018,TA Renewal of Roads - Capital,OPERATIONS DIRECTORATE,KIER HIGHWAYS LIMITED,APC200629,"35,970.18",Renewals of Roads,SG19 2BD
Department for Transport,Highways England,13/06/2018,TA Cost AUC - Programme,MAJOR PROJECTS,DENTONS UKMEA LLP,738880,"36,123.40",SR13 RIP Schemes,EC4M 7WS
Department for Transport,Highways England,13/06/2018,TA Cost AUC - Programme,MAJOR PROJECTS,TURNER & TOWNSEND,738918,"36,235.00",Feasibility,LS18 4GH
Department for Transport,Highways England,12/06/2018,TA Cost AUC - Programme,OPERATIONS DIRECTORATE,GEOFFREY OSBORNE LTD,738782,"36,239.13",Environment Landscape Delivery,RH2 9PY
Department for Transport,Highways England,22/06/2018,TA Cost AUC - Programme,STRATEGY & PLANNING DIR,WSP UK LIMITED,739648,"36,254.46",Support General Other,WC2A 1AF
Department for Transport,Highways England,27/06/2018,TEC - Technology Maintenance,IT DIRECTORATE,ULTRA ELECTRONICS CONTROLS,739945,"36,539.61",Technology Maintenance,UB6 8UE
Department for Transport,Highways England,15/06/2018,TA Cost AUC - ICT (A),FINANCE & BUSINESS SERVICES,SENATOR INTERNATIONAL LTD,739147,"36,643.80",Support General Corporate Services,BB5 5YE
Department for Transport,Highways England,12/06/2018,TA Cost AUC - Programme,OPERATIONS DIRECTORATE,CONNECT PLUS (M25) LTD,APC200639,"36,688.00",Renewals of Technology,EN6 3NP
Department for Transport,Highways England,25/06/2018,TA Cost AUC - Programme,MAJOR PROJECTS,ATKINS LTD,739672,"36,717.21",RIS 1 Schemes,KT18 5BW
Department for Transport,Highways England,08/06/2018,CM - Lump Sum Fees,OPERATIONS DIRECTORATE,KIER HIGHWAYS LIMITED,CONF9130015341199863,"36,816.49",Routine Maintenance,SG19 2BD
Department for Transport,Highways England,12/06/2018,TA Cost AUC - ICT (A),IT DIRECTORATE,MOORE STEPHENS INSIGHT LTD,738725,"36,841.83",Support General Corporate Services,EC1A 4AB
Department for Transport,Highways England,08/06/2018,TA Cost AUC - Programme,OPERATIONS DIRECTORATE,KIER HIGHWAYS LIMITED,APC200606,"36,867.15",LNMS Other Economy,SG19 2BD
Department for Transport,Highways England,14/06/2018,CM - Lump Sum Fees,OPERATIONS DIRECTORATE,A-ONE + INTEGRATED HIGHWAY SERVICES (CIS),APC200733,"36,899.16",Technology Maintenance,DL1 1TJ
Department for Transport,Highways England,07/06/2018,Consultants Costs,OPERATIONS DIRECTORATE,CH2M HILL UNITED KINGDOM,738406,"36,929.71",Operate General Other,W6 7EF
Department for Transport,Highways England,15/06/2018,TA Cost AUC - Programme,MAJOR PROJECTS,AECOM INFRASTRUCTURE & ENVIRONMENT UK LIMITED,739102,"36,995.62",RIS 2 Schemes,RG21 7PP
Department for Transport,Highways England,06/06/2018,TA Cost AUC - Programme,MAJOR PROJECTS,WSP UK LIMITED,738349,"37,111.28",Major Projects Pipeline Schemes,WC2A 1AF
Department for Transport,Highways England,11/06/2018,TA Renewal of Roads - Capital,OPERATIONS DIRECTORATE,H W MARTIN (TRAFFIC MANAGEMENT) LTD,CONF9134301241242765,"37,124.57",Renewals of Roads,DE55 5JY
Department for Transport,Highways England,11/06/2018,Prepaid expenses - programme,FINANCE & BUSINESS SERVICES,EXETER CITY COUNCIL,738608,"37,221.50",Corporate,EX1 1JN
Department for Transport,Highways England,21/06/2018,TA Cost AUC - Programme,MAJOR PROJECTS,TURNER & TOWNSEND,739524,"37,313.70",Support Enhancements,LS18 4GH
Department for Transport,Highways England,19/06/2018,Prepaid expenses - programme,FINANCE & BUSINESS SERVICES,CBRE LIMITED,739348,"37,439.71",Corporate,G2 6UA
Department for Transport,Highways England,14/06/2018,Contractor Costs,FINANCE & BUSINESS SERVICES,BRITISH GAS TRADING LIMITED,739004,"37,763.02",Support General Ex Admin,GU95 1AW
Department for Transport,Highways England,15/06/2018,TA Cost AUC - Programme,OPERATIONS DIRECTORATE,KIER HIGHWAYS LIMITED,APC200683,"37,880.77",Winter Maintenance - Assets,SG19 2BD
Department for Transport,Highways England,14/06/2018,TA Cost AUC - Programme,MAJOR PROJECTS,A-ONE + INTEGRATED HIGHWAY SERVICES (CIS),APC200701,"37,964.24",SR10 Schemes,DL1 1TJ
Department for Transport,Highways England,22/06/2018,Other external training costs,HUMAN RESOURCES,QA LIMITED,739585,"38,058.26",Support General Corporate Services,LS12 6BD
Department for Transport,Highways England,06/06/2018,ICT Consultancy Costs,IT DIRECTORATE,TRIAD GROUP PLC,738368,"38,091.90",Support General Corporate Services,GU7 1XE
Department for Transport,Highways England,08/06/2018,CM - Compensation / Variation Costs,IT DIRECTORATE,AMEY OW LIMITED,APC200601,"38,250.94",Maintenance Other,OX4 4DQ
Department for Transport,Highways England,29/06/2018,TA Cost AUC - Programme,MAJOR PROJECTS,DLA PIPER UK LLP,740190,"38,306.24",RIS 2 Schemes,EC2V 7EE
Department for Transport,Highways England,08/06/2018,Consultants Costs,OPERATIONS DIRECTORATE,AECOM,738522,"38,397.23",Operate General Other,B4 6AT
Department for Transport,Highways England,15/06/2018,TA Cost AUC - Programme,OPERATIONS DIRECTORATE,KIER HIGHWAYS LIMITED,APC200654,"38,400.22",RIS 1 Schemes,SG19 2BD
Department for Transport,Highways England,19/06/2018,Contractor Costs,OPERATIONS DIRECTORATE,JACOBS UK LTD,739248,"38,428.88",Protocol HRE,G2 7HX
Department for Transport,Highways England,25/06/2018,TA Cost AUC - Programme,OPERATIONS DIRECTORATE,DYER & BUTLER LTD,CONF9215300240017616,"38,561.28",Renewals of Technology,SO16 0AH
Department for Transport,Highways England,01/06/2018,Consultants Costs,OPERATIONS DIRECTORATE,JC PEACOCK AND COMPANY LIMITED,738145,"38,610.00",Protocol Strategic Salt,KA8 8AE
Department for Transport,Highways England,25/06/2018,RM Cost Reimbursable,OPERATIONS DIRECTORATE,AMEY HIGHWAYS LIMITED,CONF9072008441180041,"38,632.97",Routine Maintenance,CB25 9PG
Department for Transport,Highways England,25/06/2018,TA Renewal of Roads - Capital,OPERATIONS DIRECTORATE,CHEVRON TRAFFIC MANAGEMENT LIMITED,CONF9213500940017766,"38,642.28",Renewals of Roads,OX9 3XA
Department for Transport,Highways England,26/06/2018,TA Cost AUC - Programme,OPERATIONS DIRECTORATE,GEOFFREY OSBORNE LTD,739842,"38,861.90",LNMS Safety,RH2 9PY
Department for Transport,Highways England,06/06/2018,TA Cost AUC - Programme,MAJOR PROJECTS,WSP UK LIMITED,738363,"39,018.82",Major Projects Pipeline Schemes,WC2A 1AF
Department for Transport,Highways England,29/06/2018,ICT Software Maintenance,IT DIRECTORATE,FUJITSU SERVICES LTD,740280,"39,150.00",Support General Corporate Services,W1U 3W
Department for Transport,Highways England,23/05/2018,TA Renewal of Roads - Capital,OPERATIONS DIRECTORATE,W J SOUTH WEST LIMITED,CONF9214400940012851,"39,219.57",Renewals of Roads,TA21 9AD
Department for Transport,Highways England,14/06/2018,TA Cost AUC - Programme,OPERATIONS DIRECTORATE,JACOBS UK LTD,738962,"39,480.65",LNMS Safety,G2 7HX
Department for Transport,Highways England,20/06/2018,TA Cost AUC - Programme,MAJOR PROJECTS,WSP UK LIMITED,739387,"39,520.23",RIS 1 Schemes,WC2A 1AF
Department for Transport,Highways England,05/06/2018,Lands Costs,FINANCE & BUSINESS SERVICES,SAVILLS (UK) LTD,LOMD264633,"39,590.46",Support General Lands,M2 4AW
Department for Transport,Highways England,19/06/2018,TA Renewal of Roads - Capital,OPERATIONS DIRECTORATE,KIER HIGHWAYS LIMITED,CONF9074350441177410,"39,600.09",Renewals of Roads,SG19 2BD
Department for Transport,Highways England,18/06/2018,TA Cost AUC - Programme,MAJOR PROJECTS,WSP UK LIMITED,739181,"39,625.79",SR13 Smart Motorway Scheme,WC2A 1AF
Department for Transport,Highways England,29/06/2018,TEC - Technology Maintenance,IT DIRECTORATE,BALFOUR BEATTY CIVIL ENGINEERING LTD,740220,"39,772.74",Maintenance Other,SW1V 1LQ
Department for Transport,Highways England,28/06/2018,TA Cost AUC - Programme,MAJOR PROJECTS,GEORGE CORDEROY & CO,740133,"39,869.80",RIS 1 Schemes,ME18 5NN
Department for Transport,Highways England,26/06/2018,TEC - Technology Maintenance,IT DIRECTORATE,CAPITA PROPERTY & INFRASTRUCTURE LTD,739838,"39,890.48",Maintenance Other,RH19 1UU
Department for Transport,Highways England,15/06/2018,TA Renewal of Roads - Capital,OPERATIONS DIRECTORATE,CH2M COSTAIN JOINT VENTURE (CHC) (AREA 14 M&C),CONF9144500341109269,"40,075.57",Renewals of Roads,DL17 0LG
Department for Transport,Highways England,04/06/2018,TA Cost AUC - Programme,MAJOR PROJECTS,INTERSERVE CONSTRUCTION LIMITED,738191,"40,085.42",RIS 1 Schemes,B37 7HQ
Department for Transport,Highways England,30/05/2018,TA Renewal of Roads - Capital,OPERATIONS DIRECTORATE,CHEVRON TRAFFIC MANAGEMENT LIMITED,CONF9075450341155660,"40,517.96",Renewals of Roads,OX9 3XA
Department for Transport,Highways England,29/06/2018,TA Cost AUC - Programme,"SAFETY, ENGINEERING AND STANDARDS",ATKINS-CH2M JOINT VENTURE,740225,"40,759.33",Air Quality,W6 7EF
Department for Transport,Highways England,18/06/2018,TA Cost AUC - Programme,MAJOR PROJECTS,JACOBS UK LTD,739215,"40,767.14",Support Enhancements,G2 7HX
Department for Transport,Highways England,29/06/2018,Consultants Costs,STRATEGY & PLANNING DIR,WSP UK LIMITED,740212,"40,841.00",Support General Other,WC2A 1AF
Department for Transport,Highways England,27/06/2018,Consultants Costs,"SAFETY, ENGINEERING AND STANDARDS",WSP UK LIMITED,739906,"40,997.87",Support General Other,WC2A 1AF
Department for Transport,Highways England,12/06/2018,TA Cost AUC - Programme,OPERATIONS DIRECTORATE,KIER HIGHWAYS LIMITED,APC200621,"41,035.46",Renewals of Technology,SG19 2BD
Department for Transport,Highways England,04/06/2018,ICT Consultancy Costs,IT DIRECTORATE,LEIDOS INNOVATIONS UK LTD,738215,"41,234.45",Support General ICT Programme,G3 8EP
Department for Transport,Highways England,08/06/2018,TA Renewal of Roads - Capital,OPERATIONS DIRECTORATE,KIER HIGHWAYS LIMITED,APC200603,"41,304.53",Renewals of Roads,SG19 2BD
Department for Transport,Highways England,15/06/2018,TA Cost AUC - Programme,OPERATIONS DIRECTORATE,CONNECT PLUS (M25) LTD,APC200728,"41,463.55",LNMS Other Economy,EN6 3NP
Department for Transport,Highways England,20/06/2018,Consultants Costs,OPERATIONS DIRECTORATE,WSP UK LIMITED,739460,"42,080.14",Operate Roads PFI Management Cost,WC2A 1AF
Department for Transport,Highways England,18/06/2018,"Contingent Labour,",OPERATIONS DIRECTORATE,DLA PIPER UK LLP,739225,"42,516.73",Operate General Management Costs,EC2V 7EE
Department for Transport,Highways England,19/06/2018,TA Renewal of Roads - Capital,OPERATIONS DIRECTORATE,H W MARTIN SAFETY FENCING LIMITED,CONF9074950341163060,"42,586.69",Renewals of Roads,DE55 5JY
Department for Transport,Highways England,05/06/2018,TA Cost AUC - Programme,MAJOR PROJECTS,AECOM,738304,"42,600.30",Feasibility,B4 6AT
Department for Transport,Highways England,15/06/2018,TA Cost AUC - Programme,OPERATIONS DIRECTORATE,KIER HIGHWAYS LIMITED,APC200658,"42,655.45",Funding Contribution Schemes,SG19 2BD
Department for Transport,Highways England,27/06/2018,ICT Consultancy Costs,IT DIRECTORATE,LEIDOS INNOVATIONS UK LTD,739903,"42,663.00",Support General Corporate Services,G3 8EP
Department for Transport,Highways England,25/06/2018,TA Renewal of Roads - Capital,OPERATIONS DIRECTORATE,AGGREGATE INDUSTRIES UK LTD,CONF9215001040016631,"42,776.49",Renewals of Roads,LE67 1TL
Department for Transport,Highways England,06/06/2018,Prepaid expenses - admin,FINANCE & BUSINESS SERVICES,CBRE LIMITED,738379,"43,168.24",Corporate,G2 6UA
Department for Transport,Highways England,27/06/2018,PFI Service Payments,OPERATIONS DIRECTORATE,CONNECT A50 LIMITED,739979,"43,192.58",Operate Roads PFI Service Payments,NW1 3AX
Department for Transport,Highways England,15/06/2018,TA Cost AUC - Programme,OPERATIONS DIRECTORATE,KIER HIGHWAYS LIMITED,APC200705,"43,220.37",Environment Biod. Feasibility,SG19 2BD
Department for Transport,Highways England,20/06/2018,TA Renewal of Roads - Capital,OPERATIONS DIRECTORATE,MOTT MACDONALD SWECO,739398,"43,391.60",Renewals of Roads,SO50 9NW
Department for Transport,Highways England,19/06/2018,TA Renewal of Roads - Capital,OPERATIONS DIRECTORATE,NORTH MIDLAND CONST PLC,CONF9074550341158826,"43,409.49",Renewals of Roads,NG17 2HW
Department for Transport,Highways England,25/06/2018,Consultants Costs,OPERATIONS DIRECTORATE,AECOM,739689,"43,590.21",Operate General Other,B4 6AT
Department for Transport,Highways England,19/06/2018,CM - Compounds Maintenance,OPERATIONS DIRECTORATE,RINGWAY INFRASTRUCTURE SERVICES LTD,CONF9212003840010202,"43,783.08",Routine Maintenance,EN1 1TH
Department for Transport,Highways England,12/06/2018,TA Renewal of Structures - Capital,OPERATIONS DIRECTORATE,KIER HIGHWAYS LIMITED,APC200620,"43,814.00",Renewals of Structures,SG19 2BD
Department for Transport,Highways England,04/06/2018,Contractor Costs,IT DIRECTORATE,WORKMAN LLP,738168,"43,982.00",Customer Operations Technology PFI,BS1 6AL
Department for Transport,Highways England,23/05/2018,Consultants Costs,"SAFETY, ENGINEERING AND STANDARDS",BOE FOREIGN CURRENCY,2100047057,"44,006.59",Support General Research and Development,EC2R 8AH
Department for Transport,Highways England,19/06/2018,TA Renewal of Roads - Capital,OPERATIONS DIRECTORATE,JOE ROOCROFT & SONS LTD,CONF9075050341168134,"44,240.19",Renewals of Roads,PR26 7UX
Department for Transport,Highways England,15/06/2018,TA Cost AUC - Programme,OPERATIONS DIRECTORATE,BALFOUR BEATTY MOTT MACDONALD AREA 10 ASC,APC200679,"44,385.14",Environment Noise Delivery,WA3 7PG
Department for Transport,Highways England,06/06/2018,TA Cost AUC - Programme,MAJOR PROJECTS,MOTT MACDONALD SWECO,738343,"44,493.34",SR13 RIP Schemes,SO50 9NW
Department for Transport,Highways England,04/06/2018,PFI Service Payments,OPERATIONS DIRECTORATE,CONNECT A50 LIMITED,738169,"44,753.75",Operate Roads PFI Service Payments,NW1 3AX
Department for Transport,Highways England,19/06/2018,TA Renewal of Structures - Capital,OPERATIONS DIRECTORATE,BALVAC LIMITED,CONF9075150341171330,"44,977.80",Renewals of Structures,DE21 7BG
Department for Transport,Highways England,15/06/2018,Consultants Costs,OPERATIONS DIRECTORATE,KIER HIGHWAYS LIMITED,APC200681,"45,246.88",Renewals of Roads,SG19 2BD
Department for Transport,Highways England,08/06/2018,TA Cost AUC - Programme,OPERATIONS DIRECTORATE,INTERSERVE CONSTRUCTION LIMITED,CONF9134650741257659,"45,252.07",Environment Biod. Delivery,B37 7HQ
Department for Transport,Highways England,18/06/2018,CM - Compensation / Variation Costs,OPERATIONS DIRECTORATE,CH2M COSTAIN JOINT VENTURE (CHC) (AREA 14 M&C),CONF9142013341102879,"45,331.95",Routine Maintenance,DL17 0LG
Department for Transport,Highways England,15/06/2018,TA Cost AUC - Programme,OPERATIONS DIRECTORATE,CONNECT PLUS (M25) LTD,APC200728,"45,392.97",Renewals of Technology,EN6 3NP
Department for Transport,Highways England,19/04/2018,TA Cost AUC - ICT (A),IT DIRECTORATE,XMA LIMITED,3000294,"45,401.53",Operate General Management Costs,NG11 7EP
Department for Transport,Highways England,25/06/2018,TA Cost AUC - Programme,MAJOR PROJECTS,DYNNIQ,739679,"45,406.72",SR10 Schemes,RG24 8WZ
Department for Transport,Highways England,29/06/2018,TA Cost AUC - Programme,MAJOR PROJECTS,AECOM INFRASTRUCTURE & ENVIRONMENT UK LIMITED,740166,"45,421.95",SR13 Smart Motorway Scheme,RG21 7PP
Department for Transport,Highways England,19/06/2018,Consultants Costs,OPERATIONS DIRECTORATE,MOTT MACDONALD GROUP LTD,739275,"45,707.19",Operate General Other,CR0 2EE
Department for Transport,Highways England,14/06/2018,CM - Lump Sum Fees,OPERATIONS DIRECTORATE,KIER HIGHWAYS LIMITED,CONF9130015700000001,"46,095.33",Routine Maintenance,SG19 2BD
Department for Transport,Highways England,25/06/2018,TA Renewal of Roads - Capital,OPERATIONS DIRECTORATE,CHEVRON TRAFFIC MANAGEMENT LIMITED,CONF9213500940012839,"46,321.64",Renewals of Roads,OX9 3XA
Department for Transport,Highways England,15/06/2018,TA Renewal of Roads - Capital,OPERATIONS DIRECTORATE,INTERSERVE CONSTRUCTION LIMITED,739170,"46,432.00",Renewals of Roads,B37 7HQ
Department for Transport,Highways England,27/06/2018,CM - Time Based Charges,"SAFETY, ENGINEERING AND STANDARDS",WSP UK LIMITED,739892,"46,500.00",TM - Other,WC2A 1AF
Department for Transport,Highways England,25/06/2018,RM Cost Reimbursable,OPERATIONS DIRECTORATE,AMEY HIGHWAYS LIMITED,CONF9072008441179049,"46,548.62",Routine Maintenance,CB25 9PG
Department for Transport,Highways England,07/06/2018,ICT Hardware Maintenance,IT DIRECTORATE,XEROX (UK) LTD,738390,"46,567.21",Support General Corporate Services,UB8 1HS
Department for Transport,Highways England,15/06/2018,TA Renewal of Structures - Capital,OPERATIONS DIRECTORATE,KIER HIGHWAYS LIMITED,APC200653,"47,400.78",Renewals of Structures,SG19 2BD
Department for Transport,Highways England,22/06/2018,TA Cost AUC - Programme,STRATEGY & PLANNING DIR,ATKINS-CH2M JOINT VENTURE,739640,"47,630.57",Support General Other,W6 7EF
Department for Transport,Highways England,08/06/2018,Other external training costs,HUMAN RESOURCES,AA DRIVETECH,738497,"48,101.20",Support General Corporate Services,RG21 4EA
Department for Transport,Highways England,19/06/2018,RM Cost Reimbursable,OPERATIONS DIRECTORATE,RINGWAY INFRASTRUCTURE SERVICES LTD,CONF9212003840009679,"48,217.86",Routine Maintenance,EN1 1TH
Department for Transport,Highways England,12/06/2018,RM Cost Reimbursable,OPERATIONS DIRECTORATE,KIER HIGHWAYS LIMITED,APC200612,"48,432.15",Routine Maintenance,SG19 2BD
Department for Transport,Highways England,25/06/2018,CM - Lump Sum Fees,OPERATIONS DIRECTORATE,AMEY HIGHWAYS LIMITED,CONF9070001341177655,"48,554.52",Routine Maintenance,CB25 9PG
Department for Transport,Highways England,19/06/2018,TA Renewal of Structures - Capital,OPERATIONS DIRECTORATE,CHEVRON TRAFFIC MANAGEMENT LIMITED,CONF9075450441171329,"48,683.17",Renewals of Structures,OX9 3XA
Department for Transport,Highways England,26/06/2018,TA Cost AUC - Programme,MAJOR PROJECTS,GEORGE CORDEROY & CO,739755,"48,784.83",SR13 RIP Schemes,ME18 5NN
Department for Transport,Highways England,08/06/2018,PFI Service Payments,OPERATIONS DIRECTORATE,CONNECT A30/A35 LTD,738514,"48,863.50",Operate Roads PFI Service Payments,NW1 3AX
Department for Transport,Highways England,25/06/2018,TA Cost AUC - Programme,OPERATIONS DIRECTORATE,WSP UK LIMITED,739685,"49,018.55",Environment Noise Delivery,WC2A 1AF
Department for Transport,Highways England,12/06/2018,CM - Time Based Charges,OPERATIONS DIRECTORATE,AECOM,738697,"49,399.12",Operate General Other,B4 6AT
Department for Transport,Highways England,15/06/2018,Telephony - Service Charge,IT DIRECTORATE,UNIFY ENTERPRISE COMMUNICATIONS LTD,739088,"49,935.75",Support General Corporate Services,WC1V 6EA
Department for Transport,Highways England,15/06/2018,Telephony - Service Charge,IT DIRECTORATE,UNIFY ENTERPRISE COMMUNICATIONS LTD,739089,"49,935.75",Support General Corporate Services,WC1V 6EA
Department for Transport,Highways England,12/06/2018,TA Cost AUC - ICT (A),IT DIRECTORATE,ATOS IT SERVICES UK LIMITED,738732,"49,945.47",Support General Corporate Services,WV10 6UH
Department for Transport,Highways England,20/06/2018,TA Cost AUC - Programme,MAJOR PROJECTS,OVE ARUP & PARTNERS,739390,"50,000.00",Environment Other,W1T 4BQ
Department for Transport,Highways England,15/06/2018,TA Cost AUC - Programme,OPERATIONS DIRECTORATE,KIER HIGHWAYS LIMITED,APC200681,"50,398.05",LNMS Safety,SG19 2BD
Department for Transport,Highways England,29/06/2018,Consultants Costs,"SAFETY, ENGINEERING AND STANDARDS",WSP UK LIMITED,740180,"50,516.00",Support General Research and Development,WC2A 1AF
Department for Transport,Highways England,08/06/2018,TA Renewal of Roads - Capital,OPERATIONS DIRECTORATE,W J NORTH LIMITED,CONF9135100641195532,"50,618.75",Renewals of Roads,ST5 6AZ
Department for Transport,Highways England,06/06/2018,TA Renewal of Roads - Capital,OPERATIONS DIRECTORATE,DEANGELO BROTHERS UK LIMITED,CONF9134700841242990,"50,735.37",Renewals of Roads,YO51 9HY
Department for Transport,Highways England,12/06/2018,TA Cost AUC - Programme,STRATEGY & PLANNING DIR,KIER HIGHWAYS LIMITED,CONF9213603440016192,"51,001.18",Growth and Housing Delivery,SG19 2BD
Department for Transport,Highways England,07/06/2018,Consultants Costs,OPERATIONS DIRECTORATE,CH2M HILL UNITED KINGDOM,738409,"51,163.14",Operate General Other,W6 7EF
Department for Transport,Highways England,22/06/2018,TA Cost AUC - Programme,STRATEGY & PLANNING DIR,ATKINS-CH2M JOINT VENTURE,739643,"51,232.58",Support General Other,W6 7EF
Department for Transport,Highways England,19/06/2018,Contractor Costs,OPERATIONS DIRECTORATE,BALFOUR BEATTY RAIL LIMITED,739287,"51,289.00",Protocol HRE,SW1V 1LQ
Department for Transport,Highways England,26/06/2018,TA Cost AUC - Programme,MAJOR PROJECTS,MOTT MACDONALD SWECO,739787,"51,357.55",SR13 RIP Schemes,SO50 9NW
Department for Transport,Highways England,22/06/2018,TA Cost AUC - Programme,IT DIRECTORATE,CUBIC TRANSPORTATION SYSTEMS (ITMS) LIMITED,739577,"51,368.35",Technology Projects - Economy,RH1 5LA
Department for Transport,Highways England,07/06/2018,TA Cost AUC - Programme,MAJOR PROJECTS,WSP UK LIMITED,738433,"51,394.31",Support Enhancements,WC2A 1AF
Department for Transport,Highways England,29/06/2018,TA Cost AUC - Programme,MAJOR PROJECTS,DLA PIPER UK LLP,740187,"51,862.01",RIS 2 Schemes,EC2V 7EE
Department for Transport,Highways England,20/06/2018,TA Cost AUC - Programme,MAJOR PROJECTS,GOWLING WLG (UK) LLP (PO),739475,"52,100.00",Feasibility,B4 6GA
Department for Transport,Highways England,29/06/2018,Consultants Costs,STRATEGY & PLANNING DIR,WSP UK LIMITED,740240,"52,105.00",Support General Other,WC2A 1AF
Department for Transport,Highways England,25/06/2018,TA Renewal of Roads - Capital,OPERATIONS DIRECTORATE,W J SOUTH WEST LIMITED,CONF9214401040017622,"52,110.56",Renewals of Roads,TA21 9AD
Department for Transport,Highways England,26/06/2018,TA Cost AUC - Programme,MAJOR PROJECTS,PARSONS BRINCKERHOFF LIMITED (WSP),739873,"52,192.21",SR13 RIP Schemes,NE4 7YQ
Department for Transport,Highways England,25/06/2018,TA Cost AUC - Programme,MAJOR PROJECTS,DENTONS UKMEA LLP,739683,"52,403.80",RIS 2 Schemes,EC4M 7WS
Department for Transport,Highways England,04/06/2018,Consultants Costs,STRATEGY & PLANNING DIR,WSP UK LIMITED,738176,"52,676.70",Support General Other,WC2A 1AF
Department for Transport,Highways England,14/06/2018,CM - Lump Sum Fees,OPERATIONS DIRECTORATE,KIER HIGHWAYS LIMITED,CONF9130015700000002,"52,751.94",Routine Maintenance,SG19 2BD
Department for Transport,Highways England,27/06/2018,Consultants Costs,"SAFETY, ENGINEERING AND STANDARDS",OVE ARUP & PARTNERS,739890,"52,774.03",Support General Other,W1T 4BQ
Department for Transport,Highways England,11/06/2018,TA Cost AUC - Programme,MAJOR PROJECTS,AECOM INFRASTRUCTURE & ENVIRONMENT UK LIMITED,738659,"52,788.45",SR13 Smart Motorway Scheme,RG21 7PP
Department for Transport,Highways England,12/06/2018,TA Cost AUC - Programme,MAJOR PROJECTS,ATKINS LTD,738745,"52,821.16",SR10 Schemes,KT18 5BW
Department for Transport,Highways England,08/06/2018,Consultants Costs,OPERATIONS DIRECTORATE,AECOM,738518,"52,959.08",Operate General Other,B4 6AT
Department for Transport,Highways England,15/06/2018,Consultants Costs,OPERATIONS DIRECTORATE,BALFOUR BEATTY MOTT MACDONALD AREA 10 ASC,APC200647,"53,093.45",Renewals of Structures,WA3 7PG
Department for Transport,Highways England,22/06/2018,Consultants Costs,OPERATIONS DIRECTORATE,CIVICA UK LIMITED,739578,"53,700.00",TM - Other,BA1 5LR
Department for Transport,Highways England,29/06/2018,Contractor Costs,IT DIRECTORATE,COSTAIN INTEGRATED TECHNOLOGY SOLUTIONS LTD,740264,"53,707.63",Technology Maintenance,BS49 4RF
Department for Transport,Highways England,26/06/2018,Contractor Costs,IT DIRECTORATE,COSTAIN INTEGRATED TECHNOLOGY SOLUTIONS LTD,739830,"54,038.48",Technology Maintenance,BS49 4RF
Department for Transport,Highways England,27/06/2018,TA Cost AUC - Programme,MAJOR PROJECTS,GEORGE CORDEROY & CO,739992,"54,158.65",SR13 Smart Motorway Scheme,ME18 5NN
Department for Transport,Highways England,25/06/2018,Business rates,FINANCE & BUSINESS SERVICES,NORTHUMBERLAND COUNTY COUNCIL,739708,"54,271.06",Support General Ex Admin,NE61 2EF
Department for Transport,Highways England,19/06/2018,TA Renewal of Roads - Capital,OPERATIONS DIRECTORATE,H W MARTIN (TRAFFIC MANAGEMENT) LTD,CONF9075550441165238,"54,333.83",Renewals of Roads,DE55 5JY
Department for Transport,Highways England,08/06/2018,TA Renewal of Roads - Capital,OPERATIONS DIRECTORATE,INTERSERVE CONSTRUCTION LIMITED,CONF9134650741262307,"54,414.29",Renewals of Roads,B37 7HQ
Department for Transport,Highways England,14/06/2018,TA Renewal of Structures - Capital,OPERATIONS DIRECTORATE,A-ONE + INTEGRATED HIGHWAY SERVICES (CIS),APC200693,"54,668.29",Renewals of Structures,DL1 1TJ
Department for Transport,Highways England,25/06/2018,TA Cost AUC - Programme,OPERATIONS DIRECTORATE,CHEVRON TRAFFIC MANAGEMENT LIMITED,CONF9213500940014929,"54,689.31",Cycling Delivery,OX9 3XA
Department for Transport,Highways England,25/06/2018,CM - Compensation / Variation Costs,OPERATIONS DIRECTORATE,AMEY HIGHWAYS LIMITED,CONF9073005541163878,"55,356.00",Routine Maintenance,CB25 9PG
Department for Transport,Highways England,19/06/2018,TA Renewal of Roads - Capital,OPERATIONS DIRECTORATE,W J NORTH LIMITED,CONF9074950341162170,"55,406.65",Renewals of Roads,ST5 6AZ
Department for Transport,Highways England,25/06/2018,Contractor Costs,IT DIRECTORATE,ACTICA CONSULTING LIMITED,739748,"55,743.49",Customer Operations Traffic Management,GU2 7RF
Department for Transport,Highways England,15/06/2018,TA Renewal of Structures - Capital,OPERATIONS DIRECTORATE,KIER HIGHWAYS LIMITED,APC200707,"55,906.87",Renewals of Structures,SG19 2BD
Department for Transport,Highways England,15/06/2018,TA Cost AUC - Programme,OPERATIONS DIRECTORATE,KIER HIGHWAYS LIMITED,APC200683,"55,952.44",TM - Network Resilience,SG19 2BD
Department for Transport,Highways England,14/06/2018,TA Renewal of Structures - Capital,OPERATIONS DIRECTORATE,A-ONE + INTEGRATED HIGHWAY SERVICES (CIS),APC200696,"56,470.50",Renewals of Structures,DL1 1TJ
Department for Transport,Highways England,14/06/2018,Contractor Costs,FINANCE & BUSINESS SERVICES,BRITISH GAS TRADING LIMITED,739007,"56,986.61",Support General Ex Admin,GU95 1AW
Department for Transport,Highways England,14/06/2018,Prepaid expenses - programme,FINANCE & BUSINESS SERVICES,THE TBF AND KL THOMPSON TRUST,738985,"57,028.50",Corporate,BT51 5JZ
Department for Transport,Highways England,27/06/2018,TA Cost AUC - ICT (A),MAJOR PROJECTS,GOWLING WLG (UK) LLP (TR140),LOMD264999,"57,192.19",Legacy Schemes,SE1 2AU
Department for Transport,Highways England,05/06/2018,TA Cost AUC - Programme,MAJOR PROJECTS,WSP UK LIMITED,738298,"57,298.74",Support Enhancements,WC2A 1AF
Department for Transport,Highways England,13/06/2018,"Admin building refurbishment, maintenance, repairs, inspections and advice",FINANCE & BUSINESS SERVICES,INTERSERVE (FACILITIES MANAGEMENT)LTD,738815,"57,396.50",Support General Ex Admin,B70 1DA
Department for Transport,Highways England,04/06/2018,Consultants Costs,STRATEGY & PLANNING DIR,OVE ARUP & PARTNERS,738218,"57,431.92",Protocol SRC (Severn River Crossing),W1T 4BQ
Department for Transport,Highways England,19/06/2018,TA Cost AUC - Programme,MAJOR PROJECTS,GEORGE CORDEROY & CO,739330,"57,444.36",SR13 Smart Motorway Scheme,ME18 5NN
Department for Transport,Highways England,08/06/2018,TA Cost AUC - Programme,IT DIRECTORATE,GENESYS TELECOMMUNICATIONS LTD,738541,"57,491.00",Technology Projects - Economy,GU14 7BF
Department for Transport,Highways England,11/06/2018,TA Renewal of Roads - Capital,OPERATIONS DIRECTORATE,CARNELL SUPPORT SERVICES,CONF9134100841195078,"57,582.73",Renewals of Roads,ST19 5DJ
Department for Transport,Highways England,27/06/2018,RM - Utilities,OPERATIONS DIRECTORATE,NETWORK RAIL,739947,"57,674.70",Routine Maintenance,M60 7WY
Department for Transport,Highways England,22/06/2018,TA Cost AUC - Programme,STRATEGY & PLANNING DIR,WSP UK LIMITED,739647,"57,805.16",Support General Other,WC2A 1AF
Department for Transport,Highways England,14/06/2018,TA Cost AUC - Programme,OPERATIONS DIRECTORATE,KIER HIGHWAYS LIMITED,APC200682,"57,820.16",Environment Water Quality Delivery,SG19 2BD
Department for Transport,Highways England,15/06/2018,CM - Lump Sum Fees,OPERATIONS DIRECTORATE,BALFOUR BEATTY MOTT MACDONALD AREA 10 ASC,APC200647,"57,889.80",Routine Maintenance,WA3 7PG
Department for Transport,Highways England,11/06/2018,TA Cost AUC - Programme,OPERATIONS DIRECTORATE,GENESYS TELECOMMUNICATIONS LTD,738583,"58,037.26",Environment Noise Delivery,GU14 7BF
Department for Transport,Highways England,27/06/2018,TA Cost AUC - Programme,OPERATIONS DIRECTORATE,JACOBS UK LTD,739919,"58,141.18",Safety Delivery,G2 7HX
Department for Transport,Highways England,19/06/2018,CM - Compounds Maintenance,OPERATIONS DIRECTORATE,RINGWAY INFRASTRUCTURE SERVICES LTD,CONF9212003840006818,"58,379.07",Routine Maintenance,EN1 1TH
Department for Transport,Highways England,25/06/2018,Contractor Costs,OPERATIONS DIRECTORATE,CH2M HILL UNITED KINGDOM,739743,"58,466.01",Operate General Other,W6 7EF
Department for Transport,Highways England,25/06/2018,TA Cost AUC - Programme,COMMERCIAL & PROCUREMENT,GEORGE CORDEROY & CO,739723,"58,490.51",Support General Other,ME18 5NN
Department for Transport,Highways England,27/06/2018,TA Renewal of Roads - Capital,OPERATIONS DIRECTORATE,JACOBS UK LTD,739987,"58,663.49",Renewals of Roads,G2 7HX
Department for Transport,Highways England,25/06/2018,Consultants Costs,OPERATIONS DIRECTORATE,AECOM,739694,"58,831.15",Operate General Other,B4 6AT
Department for Transport,Highways England,19/06/2018,TA Cost AUC - Programme,OPERATIONS DIRECTORATE,CONNECT PLUS (M25) LTD,APC200729,"58,844.08",LNMS Safety,EN6 3NP
Department for Transport,Highways England,13/06/2018,TA Cost AUC - Programme,COMMERCIAL & PROCUREMENT,ARCADIS LLP,738908,"59,400.87",Support General Other,M60 3NT
Department for Transport,Highways England,15/06/2018,TA Cost AUC - ICT (A),IT DIRECTORATE,UNIFY ENTERPRISE COMMUNICATIONS LTD,739097,"59,443.78",Support General Corporate Services,WC1V 6EA
Department for Transport,Highways England,08/06/2018,PFI Service Payments,OPERATIONS DIRECTORATE,CONNECT M1-A1 LTD,738495,"59,694.75",Operate Roads PFI Service Payments,NW1 3AX
Department for Transport,Highways England,19/06/2018,TA Renewal of Roads - Capital,OPERATIONS DIRECTORATE,TARMAC TRADING LIMITED,CONF9076050341163055,"59,861.44",Renewals of Roads,B37 7BQ
Department for Transport,Highways England,14/06/2018,Consultants Costs,MAJOR PROJECTS,ARCADIS LLP,738974,"60,071.51",Support General Other,M60 3NT
Department for Transport,Highways England,15/06/2018,TA Cost AUC - Programme,MAJOR PROJECTS,JACOBS UK LTD,739125,"60,214.37",Support Enhancements,G2 7HX
Department for Transport,Highways England,14/06/2018,CM - Lump Sum Fees,OPERATIONS DIRECTORATE,KIER HIGHWAYS LIMITED,CONF9130015741262271,"60,352.26",Routine Maintenance,SG19 2BD
Department for Transport,Highways England,26/06/2018,TEC - Technology Maintenance,IT DIRECTORATE,REDFLEX TRAFFIC SYSTEMS LIMITED,739823,"60,385.00",Technology Maintenance,SL1 4TU
Department for Transport,Highways England,28/06/2018,ICT Consultancy Costs,IT DIRECTORATE,WSP UK LIMITED,740026,"60,687.06",Support General ICT Programme,WC2A 1AF
Department for Transport,Highways England,15/06/2018,CM - Third Party Damage,OPERATIONS DIRECTORATE,BALFOUR BEATTY MOTT MACDONALD AREA 10 ASC,APC200647,"60,737.01",Routine Maintenance,WA3 7PG
Department for Transport,Highways England,19/06/2018,TA Renewal of Roads - Capital,OPERATIONS DIRECTORATE,CARNELL SUPPORT SERVICES,CONF9076350341168076,"60,871.16",Renewals of Roads,ST19 5DJ
Department for Transport,Highways England,25/06/2018,CM - Lump Sum Fees,OPERATIONS DIRECTORATE,AMEY HIGHWAYS LIMITED,CONF9070001241177648,"60,894.07",Routine Maintenance,CB25 9PG
Department for Transport,Highways England,01/06/2018,CM - Time Based Charges,"SAFETY, ENGINEERING AND STANDARDS",CH2M HILL UNITED KINGDOM,738139,"60,943.16",TM - Other,W6 7EF
Department for Transport,Highways England,20/06/2018,TA Cost AUC - Programme,MAJOR PROJECTS,CUBIC TRANSPORTATION SYSTEMS (ITMS) LIMITED,739406,"61,116.17",SR10 Schemes,RH1 5LA
Department for Transport,Highways England,25/06/2018,RM Cost Reimbursable,OPERATIONS DIRECTORATE,AMEY HIGHWAYS LIMITED,CONF9072008441180042,"61,140.92",Routine Maintenance,CB25 9PG
Department for Transport,Highways England,15/06/2018,TA Cost AUC - Programme,MAJOR PROJECTS,KIER HIGHWAYS LIMITED,APC200705,"61,200.56",SR10 Schemes,SG19 2BD
Department for Transport,Highways England,13/06/2018,TA Cost AUC - Programme,MAJOR PROJECTS,AECOM INFRASTRUCTURE & ENVIRONMENT UK LIMITED,738886,"61,261.02",RIS 1 Schemes,RG21 7PP
Department for Transport,Highways England,22/06/2018,TA Cost AUC - Programme,STRATEGY & PLANNING DIR,ATKINS-CH2M JOINT VENTURE,739639,"61,350.70",Support General Other,W6 7EF
Department for Transport,Highways England,07/06/2018,ICT Hardware Maintenance,IT DIRECTORATE,XEROX (UK) LTD,738392,"61,874.76",Support General Corporate Services,UB8 1HS
Department for Transport,Highways England,08/06/2018,TA Cost AUC - Programme,MAJOR PROJECTS,AECOM INFRASTRUCTURE & ENVIRONMENT UK LIMITED,738531,"61,995.56",SR13 RIP Schemes,RG21 7PP
Department for Transport,Highways England,15/06/2018,Consultants Costs,OPERATIONS DIRECTORATE,KIER HIGHWAYS LIMITED,APC200705,"62,221.73",Operate S274/S278,SG19 2BD
Department for Transport,Highways England,19/06/2018,TA Cost AUC - ICT (A),MAJOR PROJECTS,EVERSHEDS SUTHERLAND (INTERNATIONAL) LLP (TR140),LOMD264874,"62,250.00",RIS 2 Schemes,CF10 5BT
Department for Transport,Highways England,01/06/2018,Prepaid expenses - programme,FINANCE & BUSINESS SERVICES,LONDON & SCOTTISH PROPERTY MANAGEMENT LIMITED,738143,"62,253.61",Corporate,G2 4NQ
Department for Transport,Highways England,05/06/2018,TA Cost AUC - Programme,MAJOR PROJECTS,AECOM INFRASTRUCTURE & ENVIRONMENT UK LIMITED,738277,"62,292.36",SR13 Smart Motorway Scheme,RG21 7PP
Department for Transport,Highways England,11/06/2018,TA Renewal of Structures - Capital,OPERATIONS DIRECTORATE,H W MARTIN (TRAFFIC MANAGEMENT) LTD,CONF9134301241195123,"62,443.21",Renewals of Structures,DE55 5JY
Department for Transport,Highways England,07/06/2018,CM - Lump Sum Fees,OPERATIONS DIRECTORATE,TRANSPORT FOR GREATER MANCHESTER,738387,"62,955.01",Routine Maintenance,M60 1HX
Department for Transport,Highways England,08/06/2018,TA Cost AUC - Programme,MAJOR PROJECTS,CH2M HILL UNITED KINGDOM,738551,"63,018.18",RIS 2 Schemes,W6 7EF
Department for Transport,Highways England,22/06/2018,Other external training costs,HUMAN RESOURCES,QA LIMITED,739576,"63,934.82",Support General Corporate Services,LS12 6BD
Department for Transport,Highways England,27/06/2018,TA Renewal of Roads - Capital,OPERATIONS DIRECTORATE,JACOBS UK LTD,739919,"64,099.11",Renewals of Roads,G2 7HX
Department for Transport,Highways England,20/06/2018,Contractor Costs,IT DIRECTORATE,LUCID SUPPORT SERVICES LIMITED,739495,"64,325.00",TM - Other,MK8 8ED
Department for Transport,Highways England,25/06/2018,TA Renewal of Roads - Capital,OPERATIONS DIRECTORATE,W J SOUTH WEST LIMITED,CONF9214401040016789,"64,421.35",Renewals of Roads,TA21 9AD
Department for Transport,Highways England,14/06/2018,ICT Consultancy Costs,IT DIRECTORATE,MOZAIC SERVICES LIMITED,738963,"64,669.60",Operate General Management Costs,EC2R 7HG
Department for Transport,Highways England,25/06/2018,RM Cost Reimbursable,OPERATIONS DIRECTORATE,AMEY HIGHWAYS LIMITED,CONF9072008441180040,"64,813.16",Routine Maintenance,CB25 9PG
Department for Transport,Highways England,21/06/2018,TA Cost AUC - Programme,OPERATIONS DIRECTORATE,INDRA,739518,"65,095.68",Renewals of Technology,SPAIN
Department for Transport,Highways England,24/04/2018,CM - Compensation / Variation Costs,OPERATIONS DIRECTORATE,TELENT TECHNOLOGY SERVICES LIMITED,APC200286,"65,158.80",Technology Maintenance,CV34 5AH
Department for Transport,Highways England,14/06/2018,TA Renewal of Structures - Capital,OPERATIONS DIRECTORATE,JACOBS UK LTD,738962,"65,259.03",Renewals of Structures,G2 7HX
Department for Transport,Highways England,15/06/2018,TA Renewal of Structures - Capital,OPERATIONS DIRECTORATE,BALFOUR BEATTY MOTT MACDONALD AREA 10 ASC,APC200646,"65,321.81",Renewals of Structures,WA3 7PG
Department for Transport,Highways England,12/06/2018,TA Cost AUC - Programme,MAJOR PROJECTS,PARSONS BRINCKERHOFF LIMITED (WSP),738789,"65,373.39",SR13 Smart Motorway Scheme,NE4 7YQ
Department for Transport,Highways England,08/06/2018,TA Renewal of Roads - Capital,OPERATIONS DIRECTORATE,HANSON CONTRACTING,CONF9133200941196815,"65,401.36",Renewals of Roads,SL6 4JJ
Department for Transport,Highways England,05/04/2018,Prepaid expenses - admin,FINANCE & BUSINESS SERVICES,EDDISONS COMMERCIAL PROPERTY MANAGEMENT LIMITED,4089022-1,"65,693.42",Corporate,WC2H 0AU
Department for Transport,Highways England,07/06/2018,TA Cost AUC - Programme,MAJOR PROJECTS,BYTES SOFTWARE SERVICES LTD,738454,"65,808.00",Feasibility,KT22 7TW
Department for Transport,Highways England,22/06/2018,TA Cost AUC - Programme,MAJOR PROJECTS,COSTAIN LIMITED,4094101-2,"65,826.56",SR13 RIP Schemes,SL6 4UB
Department for Transport,Highways England,19/06/2018,TA Cost AUC - Programme,OPERATIONS DIRECTORATE,CONNECT PLUS (M25) LTD,APC200729,"65,951.42",LNMS Other Economy,EN6 3NP
Department for Transport,Highways England,28/06/2018,TA Cost AUC - Programme,MAJOR PROJECTS,ARCADIS-CH2M JOINT VENTURE,740046,"66,184.21",Support Enhancements,W6 7EF
Department for Transport,Highways England,14/06/2018,TA Cost AUC - Programme,OPERATIONS DIRECTORATE,JACOBS UK LTD,738962,"66,292.81",Safety Delivery,G2 7HX
Department for Transport,Highways England,11/06/2018,TA Cost AUC - Programme,MAJOR PROJECTS,WSP UK LIMITED,738660,"66,329.87",Support Enhancements,WC2A 1AF
Department for Transport,Highways England,26/06/2018,Consultants Costs,"SAFETY, ENGINEERING AND STANDARDS",WSP UK LIMITED,739765,"66,393.50",Support General Other,WC2A 1AF
Department for Transport,Highways England,22/06/2018,Other external training costs,HUMAN RESOURCES,QA LIMITED,739579,"66,540.05",Support General Corporate Services,LS12 6BD
Department for Transport,Highways England,25/06/2018,TA Renewal of Roads - Capital,OPERATIONS DIRECTORATE,HANSON CONTRACTING,CONF9214800940012956,"66,693.15",Renewals of Roads,SL6 4JJ
Department for Transport,Highways England,15/05/2018,CM - Third Party Damage,OPERATIONS DIRECTORATE,A-ONE + INTEGRATED HIGHWAY SERVICES (CIS),APC200574,"67,025.67",Routine Maintenance,DL1 1TJ
Department for Transport,Highways England,19/06/2018,TA Cost AUC - Programme,OPERATIONS DIRECTORATE,CARNELL SUPPORT SERVICES,CONF9076350341163413,"67,463.37",LNMS Other Economy,ST19 5DJ
Department for Transport,Highways England,08/06/2018,TA Cost AUC - Programme,MAJOR PROJECTS,OVE ARUP & PARTNERS,738529,"67,510.62",RIS 1 Schemes,W1T 4BQ
Department for Transport,Highways England,15/06/2018,TA Renewal of Structures - Capital,OPERATIONS DIRECTORATE,BALFOUR BEATTY MOTT MACDONALD AREA 10 ASC,APC200647,"67,540.15",Renewals of Structures,WA3 7PG
Department for Transport,Highways England,15/06/2018,Consultants Costs,OPERATIONS DIRECTORATE,OVE ARUP & PARTNERS,739119,"67,661.30",Protocol SRC (Severn River Crossing),W1T 4BQ
Department for Transport,Highways England,14/06/2018,TA Cost AUC - Programme,OPERATIONS DIRECTORATE,A-ONE + INTEGRATED HIGHWAY SERVICES (CIS),APC200733,"67,734.03",Air Quality,DL1 1TJ
Department for Transport,Highways England,28/06/2018,TA Cost AUC - Programme,MAJOR PROJECTS,CH2M HILL UNITED KINGDOM,740095,"68,217.26",RIS 1 Schemes,W6 7EF
Department for Transport,Highways England,08/06/2018,Legal advice,FINANCE & BUSINESS SERVICES,GOWLING WLG (UK) LLP (PO),738533,"68,575.00",Support General Ex Admin,B4 6GA
Department for Transport,Highways England,01/06/2018,TEC - Technology Maintenance,IT DIRECTORATE,CAPITA PROPERTY & INFRASTRUCTURE LTD,738151,"68,643.78",Maintenance Other,RH19 1UU
Department for Transport,Highways England,19/06/2018,Contractor Costs,IT DIRECTORATE,CAPITA SECURE INFORMATION SOLUTIONS LIMITED,739346,"68,823.65",Customer Operations Traffic Management,SW1P 1QT
Department for Transport,Highways England,21/06/2018,Contractor Costs,IT DIRECTORATE,CAPITA SECURE INFORMATION SOLUTIONS LIMITED,739522,"68,823.65",Customer Operations Traffic Management,SW1P 1QT
Department for Transport,Highways England,15/05/2018,TA Renewal of Structures - Capital,OPERATIONS DIRECTORATE,CONNECT PLUS (M25) LTD,APC200508,"69,081.66",Renewals of Structures,EN6 3NP
Department for Transport,Highways England,15/06/2018,Contractor Costs,IT DIRECTORATE,GENESYS TELECOMMUNICATIONS LTD,739084,"69,197.00",Customer Operations Technology PFI,GU14 7BF
Department for Transport,Highways England,15/06/2018,TA Cost AUC - Programme,OPERATIONS DIRECTORATE,CONNECT PLUS (M25) LTD,APC200728,"69,279.32",LNMS Safety,EN6 3NP
Department for Transport,Highways England,20/06/2018,TA Cost AUC - Programme,MAJOR PROJECTS,AECOM,739492,"69,304.15",Feasibility,B4 6AT
Department for Transport,Highways England,19/06/2018,TA Renewal of Roads - Capital,OPERATIONS DIRECTORATE,CHEVRON TRAFFIC MANAGEMENT LIMITED,CONF9075450441155660,"69,578.04",Renewals of Roads,OX9 3XA
Department for Transport,Highways England,20/06/2018,Other external training costs,HUMAN RESOURCES,QA LIMITED,739452,"69,784.31",Support General Corporate Services,LS12 6BD
Department for Transport,Highways England,12/06/2018,Contractor Costs,OPERATIONS DIRECTORATE,KIER HIGHWAYS LIMITED,CONF9213603440017235,"70,189.96",Protocol SRC (Severn River Crossing),SG19 2BD
Department for Transport,Highways England,14/06/2018,Consultants Costs,OPERATIONS DIRECTORATE,ERNST & YOUNG LLP,738990,"70,261.90",Operate Roads PFI Management Cost,SE1 2AF
Department for Transport,Highways England,22/06/2018,Consultants Costs,OPERATIONS DIRECTORATE,COSTAIN LIMITED,739599,"70,680.63",Protocol Abnormal & Indivisible Loads,SL6 4UB
Department for Transport,Highways England,29/06/2018,Prepaid expenses - programme,FINANCE & BUSINESS SERVICES,BRISTOL CITY COUNCIL,740238,"70,992.00",Corporate,BS99 7BL
Department for Transport,Highways England,08/06/2018,TA Cost AUC - Programme,MAJOR PROJECTS,SISK LAGAN JOINT VENTURE,738559,"71,067.51",Feasibility,AL2 2DD
Department for Transport,Highways England,26/06/2018,TEC - Technology Maintenance,IT DIRECTORATE,MOTT MACDONALD GROUP LTD,739778,"71,282.48",Maintenance Other,CR0 2EE
Department for Transport,Highways England,29/06/2018,Contractor Costs,IT DIRECTORATE,LUCID SUPPORT SERVICES LIMITED,740256,"71,485.00",TM - Other,MK8 8ED
Department for Transport,Highways England,13/06/2018,Protective clothing & uniforms,OPERATIONS DIRECTORATE,BURLINGTON UNIFORMS LTD,738806,"72,382.18",Customer Operations Traffic Management,EN3 7PX
Department for Transport,Highways England,15/06/2018,TA Renewal of Roads - Capital,OPERATIONS DIRECTORATE,KIER HIGHWAYS LIMITED,APC200623,"72,589.03",Renewals of Roads,SG19 2BD
Department for Transport,Highways England,19/06/2018,TA Renewal of Structures - Capital,OPERATIONS DIRECTORATE,VOLKERLASER LIMITED,CONF9076150441065909,"73,588.48",Renewals of Structures,WR4 9TB
Department for Transport,Highways England,08/06/2018,Consultants Costs,STRATEGY & PLANNING DIR,OVE ARUP & PARTNERS,738555,"73,763.07",Protocol SRC (Severn River Crossing),W1T 4BQ
Department for Transport,Highways England,07/06/2018,ICT Consultancy Costs,IT DIRECTORATE,DAISY IT MANAGED SERVICES LTD,738428,"73,998.33",Support General Corporate Services,BB9 5SR
Department for Transport,Highways England,12/06/2018,Consultants Costs,OPERATIONS DIRECTORATE,KIER HIGHWAYS LIMITED,APC200624,"74,184.10",Renewals of Structures,SG19 2BD
Department for Transport,Highways England,25/06/2018,TA Cost AUC - Programme,MAJOR PROJECTS,ATKINS LTD,739671,"74,410.06",Major Projects Pipeline Schemes,KT18 5BW
Department for Transport,Highways England,27/06/2018,TA Cost AUC - Programme,MAJOR PROJECTS,INTERSERVE CONSTRUCTION LIMITED,739982,"74,599.47",RIS 1 Schemes,B37 7HQ
Department for Transport,Highways England,15/05/2018,TA Cost AUC - Programme,OPERATIONS DIRECTORATE,A-ONE + INTEGRATED HIGHWAY SERVICES (CIS),APC200574,"74,613.96",LNMS Other Economy,DL1 1TJ
Department for Transport,Highways England,08/06/2018,CM - Lump Sum Fees,OPERATIONS DIRECTORATE,KIER HIGHWAYS LIMITED,CONF9130015341199841,"74,807.45",Routine Maintenance,SG19 2BD
Department for Transport,Highways England,04/06/2018,TA Cost AUC - Programme,MAJOR PROJECTS,AECOM,738195,"75,012.26",Feasibility,B4 6AT
Department for Transport,Highways England,15/06/2018,TA Renewal of Structures - Capital,OPERATIONS DIRECTORATE,CONNECT PLUS (M25) LTD,APC200728,"75,108.01",Renewals of Structures,EN6 3NP
Department for Transport,Highways England,22/06/2018,CM - Lump Sum Fees,OPERATIONS DIRECTORATE,RINGWAY INFRASTRUCTURE SERVICES LTD,CONF9210005740018080,"75,457.59",Routine Maintenance,EN1 1TH
Department for Transport,Highways England,11/06/2018,TA Renewal of Roads - Capital,OPERATIONS DIRECTORATE,H W MARTIN (TRAFFIC MANAGEMENT) LTD,CONF9134301241195528,"75,475.60",Renewals of Roads,DE55 5JY
Department for Transport,Highways England,05/06/2018,CM - Lump Sum Fees,OPERATIONS DIRECTORATE,TELENT TECHNOLOGY SERVICES LIMITED,APC200684,"75,621.51",Technology Maintenance,CV34 5AH
Department for Transport,Highways England,23/05/2018,TA Renewal of Roads - Capital,OPERATIONS DIRECTORATE,AGGREGATE INDUSTRIES UK LTD,CONF9215000940015024,"75,627.36",Renewals of Roads,LE67 1TL
Department for Transport,Highways England,14/06/2018,CM - Compensation / Variation Costs,OPERATIONS DIRECTORATE,KIER HIGHWAYS LIMITED,APC200700,"75,691.14",Routine Maintenance,SG19 2BD
Department for Transport,Highways England,08/06/2018,ICT Consultancy Costs,IT DIRECTORATE,BAE SYSTEMS APPLIED INTELLIGENCE,738528,"76,089.44",Support General ICT Programme,GU2 7YP
Department for Transport,Highways England,15/06/2018,TA Cost AUC - Programme,OPERATIONS DIRECTORATE,KIER HIGHWAYS LIMITED,APC200705,"76,159.36",Safety Feasibility,SG19 2BD
Department for Transport,Highways England,20/06/2018,TA Cost AUC - Programme,OPERATIONS DIRECTORATE,ATKINS LTD,739397,"76,202.32",Innovation Safety Feasibility,KT18 5BW
Department for Transport,Highways England,19/06/2018,TA Cost AUC - Programme,MAJOR PROJECTS,ATKINS LTD,739283,"76,216.25",SR13 Smart Motorway Scheme,KT18 5BW
Department for Transport,Highways England,27/06/2018,ICT Hardware Maintenance,IT DIRECTORATE,BENTLEY SYSTEMS (UK) LTD,739966,"76,317.12",Support General ICT Programme,EC3V 0BG
Department for Transport,Highways England,06/06/2018,CM - Lump Sum Fees,OPERATIONS DIRECTORATE,BALFOUR BEATTY CIVIL ENGINEERING LTD,738328,"77,812.27",Technology Maintenance,SW1V 1LQ
Department for Transport,Highways England,14/06/2018,CM - Third Party Damage,OPERATIONS DIRECTORATE,A-ONE + INTEGRATED HIGHWAY SERVICES (CIS),APC200733,"78,184.24",Routine Maintenance,DL1 1TJ
Department for Transport,Highways England,20/06/2018,TA Cost AUC - Programme,MAJOR PROJECTS,MOTT MACDONALD SWECO,739494,"78,500.95",Feasibility,SO50 9NW
Department for Transport,Highways England,26/06/2018,TA Renewal of Structures - Capital,OPERATIONS DIRECTORATE,GEOFFREY OSBORNE LTD,739800,"78,795.35",Renewals of Structures,RH2 9PY
Department for Transport,Highways England,27/06/2018,TA Cost AUC - Programme,MAJOR PROJECTS,AECOM INFRASTRUCTURE & ENVIRONMENT UK LIMITED,739985,"78,857.52",SR13 RIP Schemes,RG21 7PP
Department for Transport,Highways England,26/06/2018,TA Renewal of Roads - Capital,OPERATIONS DIRECTORATE,WSP UK LIMITED,739808,"78,917.64",Renewals of Roads,WC2A 1AF
Department for Transport,Highways England,21/05/2018,Advances to Third Parties/Suppliers,MAJOR PROJECTS,UK POWER NETWORKS (OPERATIONS) LTD (CIS) DIVERT/CONNECT,91942966,"79,060.92",Complex Schemes,EN6 1AG
Department for Transport,Highways England,25/06/2018,CM - Lump Sum Fees,OPERATIONS DIRECTORATE,AMEY HIGHWAYS LIMITED,CONF9070001341177654,"79,419.05",Routine Maintenance,CB25 9PG
Department for Transport,Highways England,19/06/2018,TA Renewal of Roads - Capital,OPERATIONS DIRECTORATE,H W MARTIN (TRAFFIC MANAGEMENT) LTD,CONF9075550441167872,"79,689.12",Renewals of Roads,DE55 5JY
Department for Transport,Highways England,20/06/2018,Operational Vehicle rental,OPERATIONS DIRECTORATE,LEX AUTOLEASE LIMITED,739458,"79,928.60",Customer Operations Traffic Management,SK3 0RB
Department for Transport,Highways England,28/06/2018,TA Cost AUC - Programme,MAJOR PROJECTS,CONNECT PLUS (M25) LTD,740031,"79,928.73",RIS 1 Schemes,EN6 3NP
Department for Transport,Highways England,15/06/2018,TA Renewal of Roads - Capital,OPERATIONS DIRECTORATE,CH2M COSTAIN JOINT VENTURE (CHC) (AREA 14 M&C),CONF9144500341109785,"80,325.09",Renewals of Roads,DL17 0LG
Department for Transport,Highways England,04/06/2018,Lands Costs,FINANCE & BUSINESS SERVICES,CARTER JONAS LLP,LOMD264626,"80,380.95",Support General Lands,W1G 0BG
Department for Transport,Highways England,11/06/2018,TA Renewal of Roads - Capital,OPERATIONS DIRECTORATE,H W MARTIN (TRAFFIC MANAGEMENT) LTD,CONF9134301241255616,"81,049.89",Renewals of Roads,DE55 5JY
Department for Transport,Highways England,29/06/2018,Consultants Costs,"SAFETY, ENGINEERING AND STANDARDS",TRL LTD,740146,"81,066.00",TM - Other,RG40 3GA
Department for Transport,Highways England,26/06/2018,Contractor Costs,IT DIRECTORATE,MOTT MACDONALD GROUP LTD,739777,"81,161.89",Technology Maintenance,CR0 2EE
Department for Transport,Highways England,25/06/2018,TA Renewal of Roads - Capital,OPERATIONS DIRECTORATE,W J SOUTH WEST LIMITED,CONF9214401040012857,"81,465.28",Renewals of Roads,TA21 9AD
Department for Transport,Highways England,24/04/2018,CM - Lump Sum Fees,OPERATIONS DIRECTORATE,TELENT TECHNOLOGY SERVICES LIMITED,APC200286,"81,675.00",Technology Maintenance,CV34 5AH
Department for Transport,Highways England,19/06/2018,TA Renewal of Roads - Capital,OPERATIONS DIRECTORATE,CHEVRON TRAFFIC MANAGEMENT LIMITED,CONF9075450441167726,"82,211.94",Renewals of Roads,OX9 3XA
Department for Transport,Highways England,04/06/2018,TA Renewal of Roads - Capital,OPERATIONS DIRECTORATE,PAVEMENT TESTING SERVICES LTD,738199,"82,750.00",Renewals of Roads,PR2 5AR
Department for Transport,Highways England,11/05/2018,TA Cost AUC - Programme,OPERATIONS DIRECTORATE,CONNECT PLUS (M25) LTD,APC200543,"82,822.88",LNMS Other Economy,EN6 3NP
Department for Transport,Highways England,14/06/2018,CM - Lump Sum Fees,OPERATIONS DIRECTORATE,KIER HIGHWAYS LIMITED,CONF9130015941264438,"82,871.69",Routine Maintenance,SG19 2BD
Department for Transport,Highways England,11/06/2018,TA Cost AUC - Programme,"SAFETY, ENGINEERING AND STANDARDS",CONNECT PLUS (M25) LTD,738627,"82,882.22",Innovation Safety Delivery,EN6 3NP
Department for Transport,Highways England,01/06/2018,TA Cost AUC - ICT (A),IT DIRECTORATE,UNIFY ENTERPRISE COMMUNICATIONS LTD,3000783,"83,111.22",Support General Corporate Services,WC1V 6EA
Department for Transport,Highways England,15/06/2018,TA Cost AUC - Programme,MAJOR PROJECTS,JACOBS UK LTD,739177,"83,329.10",Support Enhancements,G2 7HX
Department for Transport,Highways England,25/06/2018,CM - Tunnel Maintenance,OPERATIONS DIRECTORATE,TAMAR BRIDGE & TORPOINT FERRY JOINT COMMITTEE,739687,"83,864.90",Routine Maintenance,PL11 2AX
Department for Transport,Highways England,19/06/2018,TA Cost AUC - Programme,OPERATIONS DIRECTORATE,GROUND CONTROL LIMITED,CONF9074650341168044,"83,956.51",Environment Landscape Delivery,TF11 9JB
Department for Transport,Highways England,26/06/2018,TA Renewal of Structures - Capital,OPERATIONS DIRECTORATE,GEOFFREY OSBORNE LTD,739842,"84,238.32",Renewals of Structures,RH2 9PY
Department for Transport,Highways England,01/06/2018,TEC - Technology Maintenance,OPERATIONS DIRECTORATE,JENOPTIK TRAFFIC SOLUTIONS UK LTD,738134,"84,264.54",Routine Maintenance,GU16 7SG
Department for Transport,Highways England,14/06/2018,TA Cost AUC - Programme,MAJOR PROJECTS,ATKINS LTD,738930,"84,369.09",RIS 2 Schemes,KT18 5BW
Department for Transport,Highways England,28/06/2018,Contractor Costs,IT DIRECTORATE,MOUCHEL LIMITED,739999,"85,058.16",Customer Operations Technology Improvments,OL1 9LH
Department for Transport,Highways England,27/06/2018,TA Cost AUC - Programme,MAJOR PROJECTS,GEORGE CORDEROY & CO,739898,"85,758.38",Complex Schemes,ME18 5NN
Department for Transport,Highways England,15/06/2018,TA Renewal of Structures - Capital,OPERATIONS DIRECTORATE,KIER HIGHWAYS LIMITED,APC200623,"86,374.78",Renewals of Structures,SG19 2BD
Department for Transport,Highways England,14/06/2018,TA Renewal of Roads - Capital,OPERATIONS DIRECTORATE,A-ONE + INTEGRATED HIGHWAY SERVICES (CIS),APC200724,"86,811.19",Renewals of Roads,DL1 1TJ
Department for Transport,Highways England,27/06/2018,TA Cost AUC - Programme,MAJOR PROJECTS,CONNECT PLUS (M25) LTD,739994,"87,132.38",RIS 1 Schemes,EN6 3NP
Department for Transport,Highways England,06/06/2018,TA Cost AUC - Programme,MAJOR PROJECTS,CH2M HILL UNITED KINGDOM,738373,"87,186.03",RIS 2 Schemes,W6 7EF
Department for Transport,Highways England,15/06/2018,RM Cost Reimbursable,OPERATIONS DIRECTORATE,BALFOUR BEATTY MOTT MACDONALD AREA 10 ASC,APC200647,"87,368.07",Routine Maintenance,WA3 7PG
Department for Transport,Highways England,01/06/2018,TA Cost AUC - Programme,MAJOR PROJECTS,GEORGE CORDEROY & CO,738133,"87,697.65",SR13 Smart Motorway Scheme,ME18 5NN
Department for Transport,Highways England,20/06/2018,TA Cost AUC - Programme,MAJOR PROJECTS,UK POWER NETWORKS (OPERATIONS) LTD (CIS) DIVERT/CONNECT,739377,"87,757.62",Complex Schemes,EN6 1AG
Department for Transport,Highways England,13/06/2018,TA Cost AUC - Programme,MAJOR PROJECTS,CAMBRIDGESHIRE COUNTY COUNCIL,738870,"88,261.77",Complex Schemes,CB3 0AP
Department for Transport,Highways England,15/05/2018,TA Cost AUC - Programme,OPERATIONS DIRECTORATE,CONNECT PLUS (M25) LTD,APC200508,"88,413.75",LNMS Other Economy,EN6 3NP
Department for Transport,Highways England,19/06/2018,TA Cost AUC - Programme,MAJOR PROJECTS,JACOBS UK LTD,739365,"88,476.80",Support Enhancements,G2 7HX
Department for Transport,Highways England,28/06/2018,TA Cost AUC - Programme,MAJOR PROJECTS,CH2M HILL UNITED KINGDOM,740039,"88,699.13",RIS 2 Schemes,W6 7EF
Department for Transport,Highways England,15/06/2018,TA Cost AUC - Programme,OPERATIONS DIRECTORATE,KIER HIGHWAYS LIMITED,APC200705,"88,738.48",Cycling Feasibility,SG19 2BD
Department for Transport,Highways England,08/06/2018,TA Renewal of Roads - Capital,OPERATIONS DIRECTORATE,TARMAC TRADING LIMITED,CONF9133101341262369,"88,881.06",Renewals of Roads,B37 7BQ
Department for Transport,Highways England,25/06/2018,TA Renewal of Roads - Capital,OPERATIONS DIRECTORATE,AGGREGATE INDUSTRIES UK LTD,CONF9215001040016630,"89,005.98",Renewals of Roads,LE67 1TL
Department for Transport,Highways England,14/06/2018,TA Cost AUC - Programme,MAJOR PROJECTS,ATKINS LTD,738932,"89,243.44",RIS 1 Schemes,KT18 5BW
Department for Transport,Highways England,15/06/2018,TA Renewal of Roads - Capital,OPERATIONS DIRECTORATE,CH2M COSTAIN JOINT VENTURE (CHC) (AREA 14 M&C),CONF9144500341109784,"89,394.35",Renewals of Roads,DL17 0LG
Department for Transport,Highways England,25/06/2018,CM - Lump Sum Fees,OPERATIONS DIRECTORATE,AMEY HIGHWAYS LIMITED,CONF9070001241163870,"89,396.00",Routine Maintenance,CB25 9PG
Department for Transport,Highways England,06/06/2018,TA Cost AUC - Programme,MAJOR PROJECTS,GEORGE CORDEROY & CO,738370,"89,614.99",SR13 Smart Motorway Scheme,ME18 5NN
Department for Transport,Highways England,01/06/2018,TA Cost AUC - Programme,OPERATIONS DIRECTORATE,COSTAIN INTEGRATED TECHNOLOGY SOLUTIONS LTD,738123,"89,877.72",Renewals of Technology,BS49 4RF
Department for Transport,Highways England,18/06/2018,TA Cost AUC - Programme,MAJOR PROJECTS,CH2M HILL UNITED KINGDOM,739188,"89,979.14",RIS 1 Schemes,W6 7EF
Department for Transport,Highways England,15/06/2018,Contractor Costs,IT DIRECTORATE,GENESYS TELECOMMUNICATIONS LTD,739087,"90,000.00",Customer Operations Technology PFI,GU14 7BF
Department for Transport,Highways England,12/06/2018,TA Cost AUC - Programme,OPERATIONS DIRECTORATE,CONNECT PLUS (M25) LTD,APC200673,"90,576.21",TM - Network Resilience,EN6 3NP
Department for Transport,Highways England,15/05/2018,TA Cost AUC - Programme,OPERATIONS DIRECTORATE,A-ONE + INTEGRATED HIGHWAY SERVICES (CIS),APC200574,"91,095.67",TM - Network Resilience,DL1 1TJ
Department for Transport,Highways England,27/06/2018,TA Renewal of Roads - Capital,OPERATIONS DIRECTORATE,GEOFFREY OSBORNE LTD,739891,"91,199.60",Renewals of Roads,RH2 9PY
Department for Transport,Highways England,11/06/2018,TA Cost AUC - Programme,MAJOR PROJECTS,BALFOUR BEATTY CIVIL ENGINEERING LTD,738665,"91,502.64",Major Projects Pipeline Schemes,SW1V 1LQ
Department for Transport,Highways England,11/06/2018,Consultants Costs,"SAFETY, ENGINEERING AND STANDARDS",CACI LTD,738658,"91,537.50",Support General Research and Development,W14 8TS
Department for Transport,Highways England,27/06/2018,Consultants Costs,"SAFETY, ENGINEERING AND STANDARDS",CACI LTD,739983,"91,537.50",Support General Research and Development,W14 8TS
Department for Transport,Highways England,25/06/2018,TA Renewal of Roads - Capital,OPERATIONS DIRECTORATE,VOLKERFITZPATRICK LIMITED,739706,"92,523.83",Renewals of Roads,EN11 9BX
Department for Transport,Highways England,05/06/2018,Contractor Costs,OPERATIONS DIRECTORATE,NETWORK INFORMATION SERVICES LTD,738261,"92,860.00",Customer Operations Traffic Management,B32 1AF
Department for Transport,Highways England,18/06/2018,CM - Third Party Damage,OPERATIONS DIRECTORATE,KIER HIGHWAYS LIMITED,CONF9132008441195423,"93,147.39",Routine Maintenance,SG19 2BD
Department for Transport,Highways England,28/06/2018,TA Cost AUC - Programme,MAJOR PROJECTS,BALFOUR BEATTY CIVIL ENGINEERING LTD,740001,"93,352.00",SR13 RIP Schemes,SW1V 1LQ
Department for Transport,Highways England,14/06/2018,TA Renewal of Roads - Capital,OPERATIONS DIRECTORATE,JACOBS UK LTD,738962,"94,195.36",Renewals of Roads,G2 7HX
Department for Transport,Highways England,19/06/2018,TA Renewal of Roads - Capital,OPERATIONS DIRECTORATE,FORKERS LIMITED,CONF9075650341167871,"94,264.12",Renewals of Roads,B70 0TX
Department for Transport,Highways England,07/06/2018,Contractor Costs,MAJOR PROJECTS,COSTAIN GALLIFORD TRY SM JV,738446,"94,296.99",Operate S274/S278,NN6 7SL
Department for Transport,Highways England,22/06/2018,TA Cost AUC - Programme,MAJOR PROJECTS,GEORGE CORDEROY & CO,739646,"94,850.84",SR13 Smart Motorway Scheme,ME18 5NN
Department for Transport,Highways England,20/06/2018,TA Cost AUC - Programme,MAJOR PROJECTS,INTERSERVE CONSTRUCTION LIMITED,739369,"95,191.73",RIS 1 Schemes,B37 7HQ
Department for Transport,Highways England,22/06/2018,TEC - Technology Maintenance,IT DIRECTORATE,DYNNIQ,739580,"95,975.22",Technology Maintenance,RG24 8WZ
Department for Transport,Highways England,20/06/2018,TA Cost AUC - Programme,MAJOR PROJECTS,AECOM,739491,"96,840.70",Feasibility,B4 6AT
Department for Transport,Highways England,04/06/2018,TA Cost AUC - Programme,MAJOR PROJECTS,AECOM,738194,"96,926.62",Feasibility,B4 6AT
Department for Transport,Highways England,06/06/2018,TA Renewal of Structures - Capital,OPERATIONS DIRECTORATE,CONCRETE REPAIRS LTD,CONF9135000641177005,"96,966.49",Renewals of Structures,CR4 4TU
Department for Transport,Highways England,11/06/2018,TA Cost AUC - Programme,MAJOR PROJECTS,COWI A/S ARCADIS CH2M JV,738620,"97,299.30",RIS 2 Schemes,W6 7EF
Department for Transport,Highways England,18/06/2018,TA Cost AUC - Programme,MAJOR PROJECTS,JACOBS UK LTD,739212,"97,403.30",Support Enhancements,G2 7HX
Department for Transport,Highways England,13/06/2018,Professional advisers - Accommodation,OPERATIONS DIRECTORATE,INTERSERVE (FACILITIES MANAGEMENT)LTD,738815,"97,568.60",Operate General Management Costs,B70 1DA
Department for Transport,Highways England,19/06/2018,TA Cost AUC - Programme,OPERATIONS DIRECTORATE,TARMAC TRADING LIMITED,CONF9076050341163415,"97,840.77",LNMS Other Economy,B37 7BQ
Department for Transport,Highways England,15/06/2018,TA Cost AUC - Programme,MAJOR PROJECTS,JACOBS UK LTD,739135,"98,035.16",Support Enhancements,G2 7HX
Department for Transport,Highways England,08/05/2018,CM - Compensation / Variation Costs,OPERATIONS DIRECTORATE,TELENT TECHNOLOGY SERVICES LIMITED,APC200430,"98,369.54",Technology Maintenance,CV34 5AH
Department for Transport,Highways England,14/06/2018,Contractor Costs,FINANCE & BUSINESS SERVICES,BRITISH GAS TRADING LIMITED,739010,"98,374.45",Support General Ex Admin,GU95 1AW
Department for Transport,Highways England,25/06/2018,Consultants Costs,OPERATIONS DIRECTORATE,WORKING TIME SOLUTIONS LIMITED,739735,"98,445.00",Operate General Other,M1 1JB
Department for Transport,Highways England,28/06/2018,TA Cost AUC - Programme,MAJOR PROJECTS,UK POWER NETWORKS (OPERATIONS) LTD (CIS) DIVERT/CONNECT,740008,"98,493.77",Complex Schemes,EN6 1AG
Department for Transport,Highways England,20/06/2018,TA Cost AUC - Programme,MAJOR PROJECTS,HYDER HALCROW M25 JOINT VENTURE,739371,"98,941.93",SR10 Schemes,GU2 7AR
Department for Transport,Highways England,26/06/2018,TA Cost AUC - Programme,MAJOR PROJECTS,AECOM INFRASTRUCTURE & ENVIRONMENT UK LIMITED,739840,"99,089.32",RIS 1 Schemes,RG21 7PP
Department for Transport,Highways England,12/06/2018,TA Cost AUC - ICT (A),IT DIRECTORATE,ATOS IT SERVICES UK LIMITED,738758,"99,215.73",Support General Corporate Services,WV10 6UH
Department for Transport,Highways England,04/06/2018,Contractor Costs,OPERATIONS DIRECTORATE,FMG SUPPORT (RRRM) LTD,4098002-1,"99,285.56",Customer Operations Traffic Management,HD1 6NA
Department for Transport,Highways England,14/06/2018,TA Renewal of Structures - Capital,OPERATIONS DIRECTORATE,A-ONE + INTEGRATED HIGHWAY SERVICES (CIS),APC200724,"99,546.59",Renewals of Structures,DL1 1TJ
Department for Transport,Highways England,15/06/2018,TA Cost AUC - Programme,OPERATIONS DIRECTORATE,KIER HIGHWAYS LIMITED,APC200705,"99,557.52",Environment Landscape Feasibility,SG19 2BD
Department for Transport,Highways England,13/06/2018,TA Cost AUC - Programme,COMMERCIAL & PROCUREMENT,ARCADIS LLP,738907,"100,000.00",Support General Other,M60 3NT
Department for Transport,Highways England,22/06/2018,TA Renewal of Roads - Capital,OPERATIONS DIRECTORATE,MOTT MACDONALD SWECO,739636,"100,042.38",Renewals of Roads,SO50 9NW
Department for Transport,Highways England,08/06/2018,CM - Lump Sum Fees,OPERATIONS DIRECTORATE,AMEY OW LIMITED,APC200601,"100,310.04",Technology Maintenance,OX4 4DQ
Department for Transport,Highways England,22/05/2018,Advances to Third Parties/Suppliers,MAJOR PROJECTS,UK POWER NETWORKS (OPERATIONS) LTD (CIS) DIVERT/CONNECT,91943066,"100,812.45",Complex Schemes,EN6 1AG
Department for Transport,Highways England,15/06/2018,TA Cost AUC - Programme,OPERATIONS DIRECTORATE,KIER HIGHWAYS LIMITED,APC200681,"100,938.24",Renewals of Technology,SG19 2BD
Department for Transport,Highways England,22/06/2018,TA Renewal of Roads - Capital,OPERATIONS DIRECTORATE,DEANGELO BROTHERS UK LIMITED,739567,"101,064.20",Renewals of Roads,YO51 9HY
Department for Transport,Highways England,25/06/2018,CM - Lump Sum Fees,OPERATIONS DIRECTORATE,AMEY HIGHWAYS LIMITED,CONF9070001341177656,"101,192.28",Routine Maintenance,CB25 9PG
Department for Transport,Highways England,15/06/2018,TA Cost AUC - Programme,OPERATIONS DIRECTORATE,KIER HIGHWAYS LIMITED,APC200683,"101,449.41",Renewals of Technology,SG19 2BD
Department for Transport,Highways England,28/06/2018,Consultants Costs,IT DIRECTORATE,MOUCHEL LIMITED,739998,"101,490.84",Technology Projects - Economy,OL1 9LH
Department for Transport,Highways England,20/06/2018,TA Cost AUC - ICT (A),MAJOR PROJECTS,EVERSHEDS SUTHERLAND (INT) LLP (PO),LOMD264886,"101,500.00",RIS 2 Schemes,CG10 5BT
Department for Transport,Highways England,12/06/2018,TA Cost AUC - Programme,STRATEGY & PLANNING DIR,OVE ARUP & PARTNERS,738730,"102,126.70",Support General Other,W1T 4BQ
Department for Transport,Highways England,25/06/2018,TA Cost AUC - Programme,OPERATIONS DIRECTORATE,M J CHURCH PLANT LTD,CONF9214100640012959,"103,530.71",Cycling Delivery,SN14 8LH
Department for Transport,Highways England,14/06/2018,CM - Lump Sum Fees,OPERATIONS DIRECTORATE,KIER HIGHWAYS LIMITED,CONF9130015700000003,"104,391.14",Routine Maintenance,SG19 2BD
Department for Transport,Highways England,19/06/2018,TA Renewal of Roads - Capital,OPERATIONS DIRECTORATE,INTERSERVE CONSTRUCTION LIMITED,CONF9075750341166013,"105,675.61",Renewals of Roads,B37 7HQ
Department for Transport,Highways England,11/06/2018,TA Cost AUC - Programme,MAJOR PROJECTS,GENESYS TELECOMMUNICATIONS LTD,738623,"105,772.32",SR13 Smart Motorway Scheme,GU14 7BF
Department for Transport,Highways England,19/06/2018,Consultants Costs,OPERATIONS DIRECTORATE,CONNECT PLUS (M25) LTD,739274,"105,909.42",Operate S274/S278,EN6 3NP
Department for Transport,Highways England,21/05/2018,Advances to Third Parties/Suppliers,MAJOR PROJECTS,UK POWER NETWORKS (OPERATIONS) LTD (CIS) DIVERT/CONNECT,91942958,"106,843.26",Complex Schemes,EN6 1AG
Department for Transport,Highways England,25/06/2018,CM - Lump Sum Fees,OPERATIONS DIRECTORATE,AMEY HIGHWAYS LIMITED,CONF9070001241177651,"106,984.15",Routine Maintenance,CB25 9PG
Department for Transport,Highways England,04/06/2018,TA Cost AUC - Programme,MAJOR PROJECTS,MOTT MACDONALD SWECO,738187,"107,927.36",Major Projects Pipeline Schemes,SO50 9NW
Department for Transport,Highways England,26/06/2018,TA Cost AUC - ICT (A),IT DIRECTORATE,ORACLE CORPORATION UK LTD,739875,"108,000.00",Support General Other,RG6 1RA
Department for Transport,Highways England,25/06/2018,TA Renewal of Roads - Capital,OPERATIONS DIRECTORATE,AGGREGATE INDUSTRIES UK LTD,CONF9215001040015014,"108,208.38",Renewals of Roads,LE67 1TL
Department for Transport,Highways England,14/06/2018,Contractor Costs,OPERATIONS DIRECTORATE,INTERSERVE CONSTRUCTION LIMITED,4093963-1,"108,618.66",Operate S274/S278,B37 7HQ
Department for Transport,Highways England,20/06/2018,CM - Time Based Charges,OPERATIONS DIRECTORATE,THE POLICE AND CRIME COMMISSIONER FOR SOUTH YORKSHIRE,739472,"108,675.00",Routine Maintenance,S9 2EH
Department for Transport,Highways England,27/06/2018,ICT Hardware Maintenance,IT DIRECTORATE,BENTLEY SYSTEMS (UK) LTD,739965,"108,716.63",Support General ICT Programme,EC3V 0BG
Department for Transport,Highways England,20/06/2018,Operational Vehicle rental,OPERATIONS DIRECTORATE,LEX AUTOLEASE LIMITED,739434,"108,939.55",Customer Operations Traffic Management,SK3 0RB
Department for Transport,Highways England,05/06/2018,Contractor Costs,OPERATIONS DIRECTORATE,NETWORK INFORMATION SERVICES LTD,738237,"109,426.25",Customer Operations Traffic Management,B32 1AF
Department for Transport,Highways England,20/06/2018,Prepaid expenses - programme,FINANCE & BUSINESS SERVICES,EMERSON MANAGEMENT SERVICES LIMITED,739429,"110,381.40",Corporate,SK9 7LF
Department for Transport,Highways England,20/06/2018,Operational Vehicle rental,OPERATIONS DIRECTORATE,LEX AUTOLEASE LIMITED,4093294-1,"110,773.50",Customer Operations Traffic Management,SK3 0RB
Department for Transport,Highways England,12/06/2018,Prepaid expenses - admin,FINANCE & BUSINESS SERVICES,LONDON BOROUGH OF HOUNSLOW,738709,"111,321.00",Corporate,TW3 4DN
Department for Transport,Highways England,13/06/2018,Prepaid expenses - programme,FINANCE & BUSINESS SERVICES,A & J MUCKLOW (INVESTMENTS) LIMITED,738915,"111,750.00",Corporate,B63 3JS
Department for Transport,Highways England,05/06/2018,TA Cost AUC - Programme,OPERATIONS DIRECTORATE,ROADLINK (A69) LTD,738249,"111,846.97",LNMS Other Economy,NE43 7TN
Department for Transport,Highways England,05/06/2018,TA Cost AUC - Programme,OPERATIONS DIRECTORATE,ROADLINK (A69) LTD,738247,"111,846.99",LNMS Other Economy,NE43 7TN
Department for Transport,Highways England,28/06/2018,TA Cost AUC - Programme,MAJOR PROJECTS,UK POWER NETWORKS (OPERATIONS) LTD (CIS) DIVERT/CONNECT,740101,"111,901.82",Complex Schemes,EN6 1AG
Department for Transport,Highways England,11/06/2018,TA Cost AUC - Programme,MAJOR PROJECTS,ARCADIS-CH2M JOINT VENTURE,738625,"112,042.88",SR13 Smart Motorway Scheme,W6 7EF
Department for Transport,Highways England,19/06/2018,Contractor Costs,OPERATIONS DIRECTORATE,NETWORK INFORMATION SERVICES LTD,739324,"112,170.40",Customer Operations Traffic Management,B32 1AF
Department for Transport,Highways England,15/05/2018,TA Cost AUC - Programme,OPERATIONS DIRECTORATE,A-ONE + INTEGRATED HIGHWAY SERVICES (CIS),APC200574,"112,344.93",Air Quality,DL1 1TJ
Department for Transport,Highways England,14/06/2018,TA Renewal of Structures - Capital,OPERATIONS DIRECTORATE,A-ONE + INTEGRATED HIGHWAY SERVICES (CIS),APC200733,"112,534.96",Renewals of Structures,DL1 1TJ
Department for Transport,Highways England,25/06/2018,TA Renewal of Roads - Capital,OPERATIONS DIRECTORATE,FOREST TRAFFIC SERVICES LTD,CONF9214601140017627,"112,814.74",Renewals of Roads,NP19 4PN
Department for Transport,Highways England,26/06/2018,TEC - Technology Maintenance,IT DIRECTORATE,REDFLEX TRAFFIC SYSTEMS LIMITED,739821,"113,263.70",Technology Maintenance,SL1 4TU
Department for Transport,Highways England,14/06/2018,TA Cost AUC - Programme,MAJOR PROJECTS,ATKINS LTD,738931,"114,350.40",RIS 2 Schemes,KT18 5BW
Department for Transport,Highways England,25/06/2018,TA Renewal of Roads - Capital,OPERATIONS DIRECTORATE,WSP UK LIMITED,739705,"114,680.76",Renewals of Roads,WC2A 1AF
Department for Transport,Highways England,19/06/2018,TA Renewal of Roads - Capital,OPERATIONS DIRECTORATE,FORKERS LIMITED,CONF9075650341164055,"115,520.50",Renewals of Roads,B70 0TX
Department for Transport,Highways England,26/06/2018,TEC - Technology Maintenance,IT DIRECTORATE,REDFLEX TRAFFIC SYSTEMS LIMITED,739822,"115,632.10",Technology Maintenance,SL1 4TU
Department for Transport,Highways England,18/06/2018,TA Cost AUC - Programme,MAJOR PROJECTS,JACOBS UK LTD,739185,"115,754.15",Support Enhancements,G2 7HX
Department for Transport,Highways England,12/06/2018,Contractor Costs,OPERATIONS DIRECTORATE,FMG SUPPORT (RRRM) LTD,738719,"115,831.70",Customer Operations Traffic Management,HD1 6NA
Department for Transport,Highways England,11/06/2018,Consultants Costs,MAJOR PROJECTS,COSTAIN GALLIFORD TRY SM JV,738652,"116,044.76",Innovation Safety Delivery,NN6 7SL
Department for Transport,Highways England,15/05/2018,TA Cost AUC - Programme,OPERATIONS DIRECTORATE,CONNECT PLUS (M25) LTD,APC200508,"116,177.61",RIS 1 Schemes,EN6 3NP
Department for Transport,Highways England,25/06/2018,TA Cost AUC - Programme,MAJOR PROJECTS,MOTT MACDONALD SWECO,739680,"116,412.83",RIS 2 Schemes,SO50 9NW
Department for Transport,Highways England,13/06/2018,TA Cost AUC - Programme,MAJOR PROJECTS,AECOM,738301,"117,947.20",Feasibility,B4 6AT
Department for Transport,Highways England,18/06/2018,TA Cost AUC - Programme,MAJOR PROJECTS,ATKINS LTD,739213,"118,173.24",RIS 1 Schemes,KT18 5BW
Department for Transport,Highways England,14/06/2018,Contractor Costs,OPERATIONS DIRECTORATE,ROADLINK (A69) LTD,739066,"118,310.89",Renewals of Roads,NE43 7TN
Department for Transport,Highways England,28/06/2018,TA Cost AUC - Programme,MAJOR PROJECTS,UK POWER NETWORKS (OPERATIONS) LTD (CIS) DIVERT/CONNECT,740012,"118,596.02",Complex Schemes,EN6 1AG
Department for Transport,Highways England,12/06/2018,TA Cost AUC - ICT (A),IT DIRECTORATE,ATOS IT SERVICES UK LIMITED,738739,"119,050.46",Support General Corporate Services,WV10 6UH
Department for Transport,Highways England,19/06/2018,TA Renewal of Roads - Capital,OPERATIONS DIRECTORATE,CARNELL SUPPORT SERVICES,CONF9076350341168085,"119,102.71",Renewals of Roads,ST19 5DJ
Department for Transport,Highways England,27/06/2018,TA Cost AUC - Programme,MAJOR PROJECTS,WSP UK LIMITED,739967,"119,614.74",SR13 RIP Schemes,WC2A 1AF
Department for Transport,Highways England,29/05/2018,Consultants Costs,STRATEGY & PLANNING DIR,TRANSPORT FOR THE NORTH,PWI/324972979,"120,000.00",Support General Other,M1 3BN
Department for Transport,Highways England,14/06/2018,Consultants Costs,OPERATIONS DIRECTORATE,OVE ARUP & PARTNERS,739053,"121,353.89",Protocol SRC (Severn River Crossing),W1T 4BQ
Department for Transport,Highways England,12/06/2018,TA Cost AUC - Programme,OPERATIONS DIRECTORATE,GEOFFREY OSBORNE LTD,738782,"121,852.85",LNMS Safety,RH2 9PY
Department for Transport,Highways England,14/06/2018,TA Cost AUC - Programme,MAJOR PROJECTS,ATKINS LTD,738934,"122,705.23",RIS 2 Schemes,KT18 5BW
Department for Transport,Highways England,01/06/2018,TA Cost AUC - Programme,MAJOR PROJECTS,CONNECT PLUS (M25) LTD,738119,"122,909.27",Innovation Safety Feasibility,EN6 3NP
Department for Transport,Highways England,15/06/2018,TA Cost AUC - Programme,"SAFETY, ENGINEERING AND STANDARDS",KIER HIGHWAYS LIMITED,APC200659,"124,036.64",Innovation Safety Delivery,SG19 2BD
Department for Transport,Highways England,14/06/2018,Consultants Costs,OPERATIONS DIRECTORATE,OVE ARUP & PARTNERS,739054,"124,618.61",Protocol SRC (Severn River Crossing),W1T 4BQ
Department for Transport,Highways England,23/05/2018,TA Cost AUC - Programme,OPERATIONS DIRECTORATE,SOUTH WEST HIGHWAYS LTD,CONF9214300540010377,"125,672.68",Environment Biod. Delivery,EX5 2HB
Department for Transport,Highways England,25/06/2018,TA Renewal of Roads - Capital,OPERATIONS DIRECTORATE,TARMAC TRADING LIMITED,CONF9214901040017778,"126,589.67",Renewals of Roads,B37 7BQ
Department for Transport,Highways England,12/06/2018,TA Cost AUC - Programme,OPERATIONS DIRECTORATE,KIER HIGHWAYS LIMITED,APC200629,"126,640.34",LNMS Other Economy,SG19 2BD
Department for Transport,Highways England,25/06/2018,CM - Lump Sum Fees,OPERATIONS DIRECTORATE,RINGWAY INFRASTRUCTURE SERVICES LTD,CONF9210005940017524,"126,764.68",Routine Maintenance,EN1 1TH
Department for Transport,Highways England,20/06/2018,Consultants Costs,OPERATIONS DIRECTORATE,CONNECT PLUS (M25) LTD,739467,"127,008.71",Technology Projects - Economy,EN6 3NP
Department for Transport,Highways England,12/06/2018,TA Cost AUC - ICT (A),IT DIRECTORATE,ATOS IT SERVICES UK LIMITED,738757,"127,478.83",Support General Corporate Services,WV10 6UH
Department for Transport,Highways England,20/06/2018,TA Cost AUC - ICT (A),MAJOR PROJECTS,EVERSHEDS SUTHERLAND (INT) LLP (PO),LOMD264890,"127,500.00",RIS 2 Schemes,CG10 5BT
Department for Transport,Highways England,12/06/2018,TA Cost AUC - Programme,OPERATIONS DIRECTORATE,GEOFFREY OSBORNE LTD,738782,"128,286.25",Safety Delivery,RH2 9PY
Department for Transport,Highways England,20/06/2018,TA Cost AUC - Programme,MAJOR PROJECTS,AECOM INFRASTRUCTURE & ENVIRONMENT UK LIMITED,739448,"128,290.57",SR13 RIP Schemes,RG21 7PP
Department for Transport,Highways England,08/06/2018,TA Cost AUC - Programme,OPERATIONS DIRECTORATE,DYNNIQ,CONF9133800541195111,"129,345.30",Renewals of Technology,RG24 8WZ
Department for Transport,Highways England,20/06/2018,TA Cost AUC - Programme,"SAFETY, ENGINEERING AND STANDARDS",GENESYS TELECOMMUNICATIONS LTD,739394,"129,610.00",Innovation Safety Delivery,GU14 7BF
Department for Transport,Highways England,08/06/2018,TA Renewal of Roads - Capital,OPERATIONS DIRECTORATE,KIER HIGHWAYS LIMITED,APC200602,"129,977.15",Renewals of Roads,SG19 2BD
Department for Transport,Highways England,13/06/2018,Consultants Costs,OPERATIONS DIRECTORATE,CONNECT PLUS (M25) LTD,738800,"130,479.72",Technology Projects - Economy,EN6 3NP
Department for Transport,Highways England,22/06/2018,TA Cost AUC - Programme,MAJOR PROJECTS,WSP UK LIMITED,739642,"130,535.36",Feasibility,WC2A 1AF
Department for Transport,Highways England,07/06/2018,TA Cost AUC - Programme,MAJOR PROJECTS,ARCADIS-CH2M JOINT VENTURE,738415,"130,681.67",SR13 Smart Motorway Scheme,W6 7EF
Department for Transport,Highways England,15/06/2018,ICT Software Purchase,IT DIRECTORATE,ATOS IT SERVICES UK LIMITED,737522,"132,000.00",Support General Corporate Services,WV10 6UH
Department for Transport,Highways England,05/06/2018,TA Cost AUC - Programme,MAJOR PROJECTS,AECOM INFRASTRUCTURE & ENVIRONMENT UK LIMITED,738250,"133,083.49",SR13 RIP Schemes,RG21 7PP
Department for Transport,Highways England,19/06/2018,TA Renewal of Roads - Capital,OPERATIONS DIRECTORATE,GROUND CONTROL LIMITED,CONF9074650341167734,"133,108.88",Renewals of Roads,TF11 9JB
Department for Transport,Highways England,26/06/2018,TA Cost AUC - ICT (A),MAJOR PROJECTS,EVERSHEDS SUTHERLAND (INTERNATIONAL) LLP (TR140),LOMD264978,"133,241.01",Legacy Schemes,CF10 5BT
Department for Transport,Highways England,19/06/2018,TA Cost AUC - Programme,OPERATIONS DIRECTORATE,CHEVRON TRAFFIC MANAGEMENT LIMITED,CONF9075450441163418,"133,344.85",LNMS Other Economy,OX9 3XA
Department for Transport,Highways England,08/06/2018,TA Renewal of Roads - Capital,OPERATIONS DIRECTORATE,HANSON CONTRACTING,CONF9133200941185428,"134,060.67",Renewals of Roads,SL6 4JJ
Department for Transport,Highways England,08/06/2018,TA Renewal of Roads - Capital,OPERATIONS DIRECTORATE,W J NORTH LIMITED,CONF9135100641240095,"134,827.51",Renewals of Roads,ST5 6AZ
Department for Transport,Highways England,04/06/2018,TA Cost AUC - Programme,MAJOR PROJECTS,CADENT GAS LIMITED (CIS) DIVERT/CONNECT,738205,"135,700.25",SR10 Schemes,WV1 9AW
Department for Transport,Highways England,19/06/2018,TA Renewal of Roads - Capital,OPERATIONS DIRECTORATE,AECOM INFRASTRUCTURE & ENVIRONMENT UK LIMITED,739294,"136,234.12",Renewals of Roads,RG21 7PP
Department for Transport,Highways England,25/06/2018,CM - Lump Sum Fees,OPERATIONS DIRECTORATE,AMEY HIGHWAYS LIMITED,CONF9070001341177653,"136,571.52",Routine Maintenance,CB25 9PG
Department for Transport,Highways England,15/05/2018,Consultants Costs,OPERATIONS DIRECTORATE,A-ONE + INTEGRATED HIGHWAY SERVICES (CIS),APC200574,"136,632.46",Renewals of Roads,DL1 1TJ
Department for Transport,Highways England,13/06/2018,Facilities Management Charges,FINANCE & BUSINESS SERVICES,INTERSERVE (FACILITIES MANAGEMENT)LTD,738815,"137,249.58",Customer Operations Traffic Management,B70 1DA
Department for Transport,Highways England,12/06/2018,TA Cost AUC - ICT (A),IT DIRECTORATE,ATOS IT SERVICES UK LIMITED,738734,"139,871.10",Support General Corporate Services,WV10 6UH
Department for Transport,Highways England,27/06/2018,TA Cost AUC - Programme,"SAFETY, ENGINEERING AND STANDARDS",WSP UK LIMITED,739922,"139,893.97",Innovation Safety Delivery,WC2A 1AF
Department for Transport,Highways England,20/06/2018,Contractor Costs,OPERATIONS DIRECTORATE,AUTOLINK CONCESSIONAIRES (A19) LIMITED,739374,"140,929.00",Renewals of Roads,TS23 1PX
Department for Transport,Highways England,15/06/2018,TA Cost AUC - Programme,OPERATIONS DIRECTORATE,KIER HIGHWAYS LIMITED,APC200683,"141,561.06",Environment Carbon Delivery,SG19 2BD
Department for Transport,Highways England,26/06/2018,Contractor Costs,IT DIRECTORATE,ADVANCED 365 LIMITED,739818,"142,077.72",Technology Projects - Economy,SL3 9LL
Department for Transport,Highways England,22/06/2018,TA Cost AUC - Programme,MAJOR PROJECTS,MOTT MACDONALD SWECO,739628,"142,988.84",RIS 2 Schemes,SO50 9NW
Department for Transport,Highways England,25/06/2018,TA Renewal of Roads - Capital,OPERATIONS DIRECTORATE,W J SOUTH WEST LIMITED,CONF9214401040016788,"143,062.87",Renewals of Roads,TA21 9AD
Department for Transport,Highways England,14/06/2018,CM - Time Based Charges,OPERATIONS DIRECTORATE,A-ONE + INTEGRATED HIGHWAY SERVICES (CIS),APC200696,"143,594.55",Routine Maintenance,DL1 1TJ
Department for Transport,Highways England,28/06/2018,Contractor Costs,IT DIRECTORATE,XPO SUPPLY CHAIN UK LTD,740018,"145,000.00",Technology Maintenance,NN5 7SL
Department for Transport,Highways England,15/06/2018,CM - Compensation / Variation Costs,OPERATIONS DIRECTORATE,KIER HIGHWAYS LIMITED,APC200720,"145,439.46",Winter Maintenance - Assets,SG19 2BD
Department for Transport,Highways England,25/06/2018,ICT Consultancy Costs,IT DIRECTORATE,LEIDOS INNOVATIONS UK LTD,739663,"145,584.39",Support General Corporate Services,G3 8EP
Department for Transport,Highways England,14/06/2018,TA Cost AUC - Programme,OPERATIONS DIRECTORATE,A-ONE + INTEGRATED HIGHWAY SERVICES (CIS),APC200733,"147,512.48",TM - Network Resilience,DL1 1TJ
Department for Transport,Highways England,27/06/2018,TA Cost AUC - Programme,MAJOR PROJECTS,ATKINS LTD,739897,"148,034.43",RIS 1 Schemes,KT18 5BW
Department for Transport,Highways England,22/06/2018,TA Cost AUC - Programme,MAJOR PROJECTS,CH2M HILL UNITED KINGDOM,739619,"149,156.42",Support Enhancements,W6 7EF
Department for Transport,Highways England,27/06/2018,CM - Lump Sum Fees,OPERATIONS DIRECTORATE,BALFOUR BEATTY CIVIL ENGINEERING LTD,739946,"149,907.54",Technology Maintenance,SW1V 1LQ
Department for Transport,Highways England,20/06/2018,TA Renewal of Structures - Capital,OPERATIONS DIRECTORATE,GEOFFREY OSBORNE LTD,739375,"150,000.00",Renewals of Structures,RH2 9PY
Department for Transport,Highways England,26/06/2018,TA Cost AUC - ICT (A),MAJOR PROJECTS,EVERSHEDS SUTHERLAND (INTERNATIONAL) LLP (TR140),LOMD264970,"150,000.00",RIS 2 Schemes,CF10 5BT
Department for Transport,Highways England,22/06/2018,TA Cost AUC - Programme,MAJOR PROJECTS,CH2M HILL UNITED KINGDOM,739604,"150,243.95",Support Enhancements,W6 7EF
Department for Transport,Highways England,19/06/2018,TA Renewal of Roads - Capital,OPERATIONS DIRECTORATE,NORTH MIDLAND CONST PLC,CONF9074550341167737,"151,441.41",Renewals of Roads,NG17 2HW
Department for Transport,Highways England,15/06/2018,TA Cost AUC - Programme,MAJOR PROJECTS,JACOBS UK LTD,739161,"151,669.41",SR13 Smart Motorway Scheme,G2 7HX
Department for Transport,Highways England,27/06/2018,TA Cost AUC - Programme,MAJOR PROJECTS,COLAS LTD,739937,"152,288.04",SR13 Smart Motorway Scheme,RH10 4NF
Department for Transport,Highways England,22/06/2018,TA Cost AUC - Programme,MAJOR PROJECTS,CH2M HILL UNITED KINGDOM,739614,"152,940.70",Support Enhancements,W6 7EF
Department for Transport,Highways England,22/06/2018,TA Cost AUC - Programme,MAJOR PROJECTS,CH2M HILL UNITED KINGDOM,739607,"153,326.09",Support Enhancements,W6 7EF
Department for Transport,Highways England,22/06/2018,TEC - Technology Maintenance,IT DIRECTORATE,CUBIC TRANSPORTATION SYSTEMS (ITMS) LIMITED,739575,"153,701.36",Technology Maintenance,RH1 5LA
Department for Transport,Highways England,13/06/2018,TA Cost AUC - Programme,OPERATIONS DIRECTORATE,INTERSERVE CONSTRUCTION LIMITED,738879,"153,852.36",RIS 1 Schemes,B37 7HQ
Department for Transport,Highways England,19/06/2018,TA Renewal of Roads - Capital,OPERATIONS DIRECTORATE,GROUND CONTROL LIMITED,CONF9074650341164606,"154,012.02",Renewals of Roads,TF11 9JB
Department for Transport,Highways England,28/06/2018,TA Cost AUC - Programme,"SAFETY, ENGINEERING AND STANDARDS",TRL LTD,740115,"154,626.07",Innovation Safety Delivery,RG40 3GA
Department for Transport,Highways England,15/06/2018,TA Cost AUC - Programme,OPERATIONS DIRECTORATE,KIER HIGHWAYS LIMITED,APC200683,"155,246.19",Cycling Delivery,SG19 2BD
Department for Transport,Highways England,25/06/2018,TA Cost AUC - Programme,MAJOR PROJECTS,CH2M HILL UNITED KINGDOM,3002245,"155,827.01",Support Enhancements,W6 7EF
Department for Transport,Highways England,01/06/2018,ICT Software Purchase,IT DIRECTORATE,ATOS IT SERVICES UK LIMITED,4099202-1,"156,673.97",Support General Corporate Services,WV10 6UH
Department for Transport,Highways England,20/06/2018,TA Cost AUC - Programme,MAJOR PROJECTS,WSP UK LIMITED,739456,"156,838.75",Feasibility,WC2A 1AF
Department for Transport,Highways England,28/06/2018,TA Cost AUC - Programme,MAJOR PROJECTS,ARCADIS LLP,740093,"156,977.38",SR13 Smart Motorway Scheme,M60 3NT
Department for Transport,Highways England,08/06/2018,TA Renewal of Roads - Capital,OPERATIONS DIRECTORATE,TARMAC TRADING LIMITED,CONF9133101341195471,"157,001.61",Renewals of Roads,B37 7BQ
Department for Transport,Highways England,12/06/2018,TA Cost AUC - ICT (A),IT DIRECTORATE,ATOS IT SERVICES UK LIMITED,738750,"160,121.40",Support General Corporate Services,WV10 6UH
Department for Transport,Highways England,08/06/2018,TA Renewal of Roads - Capital,OPERATIONS DIRECTORATE,HANSON CONTRACTING,CONF9133200941256120,"160,186.03",Renewals of Roads,SL6 4JJ
Department for Transport,Highways England,22/06/2018,TA Renewal of Roads - Capital,OPERATIONS DIRECTORATE,MIDLAND EXPRESSWAY LIMITED,739631,"161,990.68",Renewals of Roads,WS14 0PQ
Department for Transport,Highways England,18/06/2018,TA Cost AUC - Programme,MAJOR PROJECTS,MOTT MACDONALD SWECO,739222,"162,746.83",Feasibility,SO50 9NW
Department for Transport,Highways England,05/06/2018,TA Cost AUC - Programme,MAJOR PROJECTS,MOTT MACDONALD SWECO,737872,"165,077.84",Feasibility,SO50 9NW
Department for Transport,Highways England,12/06/2018,Consultants Costs,OPERATIONS DIRECTORATE,KIER HIGHWAYS LIMITED,APC200621,"166,187.42",Technology Maintenance,SG19 2BD
Department for Transport,Highways England,22/06/2018,TA Cost AUC - Programme,MAJOR PROJECTS,CH2M HILL UNITED KINGDOM,739610,"166,828.94",Support Enhancements,W6 7EF
Department for Transport,Highways England,19/06/2018,TA Cost AUC - Programme,MAJOR PROJECTS,AECOM INFRASTRUCTURE & ENVIRONMENT UK LIMITED,739326,"168,791.90",RIS 1 Schemes,RG21 7PP
Department for Transport,Highways England,15/06/2018,Consultants Costs,OPERATIONS DIRECTORATE,MCKINSEY & COMPANY,739120,"169,538.70",Operate General Management Costs,SW1Y 4UH
Department for Transport,Highways England,15/06/2018,Contractor Costs,OPERATIONS DIRECTORATE,BALFOUR BEATTY MOTT MACDONALD AREA 10 ASC,APC200644,"169,886.85",Routine Maintenance,WA3 7PG
Department for Transport,Highways England,28/06/2018,TA Cost AUC - Programme,MAJOR PROJECTS,MOTT MACDONALD SWECO,740128,"172,505.89",RIS 2 Schemes,SO50 9NW
Department for Transport,Highways England,27/06/2018,TA Cost AUC - ICT (A),IT DIRECTORATE,THALES UK LIMITED,739974,"172,845.08",Operate General Management Costs,KT15 2NX
Department for Transport,Highways England,15/06/2018,TA Cost AUC - Programme,MAJOR PROJECTS,MOTT MACDONALD SWECO,739146,"173,335.39",SR13 Smart Motorway Scheme,SO50 9NW
Department for Transport,Highways England,05/06/2018,TA Cost AUC - Programme,MAJOR PROJECTS,AECOM,738305,"173,922.90",Feasibility,B4 6AT
Department for Transport,Highways England,25/06/2018,TA Renewal of Roads - Capital,OPERATIONS DIRECTORATE,AGGREGATE INDUSTRIES UK LTD,CONF9215001040016632,"174,965.37",Renewals of Roads,LE67 1TL
Department for Transport,Highways England,07/06/2018,TA Cost AUC - ICT (A),MAJOR PROJECTS,GOWLING WLG (UK) LLP (TR140),LOMD264668,"175,000.00",RIS 1 Schemes,SE1 2AU
Department for Transport,Highways England,22/06/2018,TA Cost AUC - Programme,MAJOR PROJECTS,CH2M HILL UNITED KINGDOM,739617,"176,688.62",Support Enhancements,W6 7EF
Department for Transport,Highways England,25/06/2018,TA Cost AUC - Programme,MAJOR PROJECTS,XACTIUM LIMITED,739751,"176,803.20",Support General ICT Programme,S7 1NF
Department for Transport,Highways England,13/06/2018,Facilities Management Charges,FINANCE & BUSINESS SERVICES,INTERSERVE (FACILITIES MANAGEMENT)LTD,738815,"177,077.15",Support General Ex Admin,B70 1DA
Department for Transport,Highways England,22/06/2018,TA Cost AUC - Programme,MAJOR PROJECTS,CH2M HILL UNITED KINGDOM,739612,"177,778.74",Support Enhancements,W6 7EF
Department for Transport,Highways England,08/06/2018,TA Cost AUC - Programme,MAJOR PROJECTS,OVE ARUP & PARTNERS,738524,"177,982.55",SR13 Smart Motorway Scheme,W1T 4BQ
Department for Transport,Highways England,22/06/2018,TA Cost AUC - Programme,MAJOR PROJECTS,CH2M HILL UNITED KINGDOM,739609,"178,497.32",Support Enhancements,W6 7EF
Department for Transport,Highways England,23/05/2018,TA Renewal of Roads - Capital,OPERATIONS DIRECTORATE,HANSON CONTRACTING,CONF9214800840016671,"179,850.00",Renewals of Roads,SL6 4JJ
Department for Transport,Highways England,07/06/2018,Prepaid expenses - admin,FINANCE & BUSINESS SERVICES,EDDISONS COMMERCIAL PROPERTY MANAGEMENT LIMITED,738404,"180,000.00",Corporate,WC2H 0AU
Department for Transport,Highways England,14/06/2018,Consultants Costs,OPERATIONS DIRECTORATE,OVE ARUP & PARTNERS,739055,"181,592.06",Protocol SRC (Severn River Crossing),W1T 4BQ
Department for Transport,Highways England,22/06/2018,CM - Lump Sum Fees,OPERATIONS DIRECTORATE,TELENT TECHNOLOGY SERVICES LIMITED,739571,"182,792.01",Technology Maintenance,CV34 5AH
Department for Transport,Highways England,22/06/2018,TA Cost AUC - Programme,MAJOR PROJECTS,CH2M HILL UNITED KINGDOM,739605,"184,014.64",Support Enhancements,W6 7EF
Department for Transport,Highways England,11/06/2018,Insurance - Buildings,FINANCE & BUSINESS SERVICES,BATH & NORTH EAST SOMERSET COUNCIL,738593,"185,971.76",Operate General Management Costs,BA1 1WF
Department for Transport,Highways England,08/06/2018,TA Renewal of Structures - Capital,OPERATIONS DIRECTORATE,KIER HIGHWAYS LIMITED,APC200604,"187,896.24",Renewals of Structures,SG19 2BD
Department for Transport,Highways England,20/04/2018,Advances to Third Parties/Suppliers,MAJOR PROJECTS,ANGLIAN WATER SERVICES LTD (CIS) DIVERT/CONNECT,80011875,"192,042.00",Complex Schemes,CM20 9HA
Department for Transport,Highways England,07/06/2018,TEC - Technology Maintenance,IT DIRECTORATE,WSP UK LIMITED,738434,"192,133.87",Maintenance Other,WC2A 1AF
Department for Transport,Highways England,12/06/2018,TA Renewal of Roads - Capital,OPERATIONS DIRECTORATE,KIER HIGHWAYS LIMITED,APC200622,"193,416.78",Renewals of Roads,SG19 2BD
Department for Transport,Highways England,20/06/2018,TA Cost AUC - Programme,MAJOR PROJECTS,INTERSERVE CONSTRUCTION LIMITED,739442,"193,438.00",RIS 1 Schemes,B37 7HQ
Department for Transport,Highways England,19/06/2018,TA Cost AUC - Programme,MAJOR PROJECTS,MOTT MACDONALD SWECO,739347,"193,691.89",Feasibility,SO50 9NW
Department for Transport,Highways England,27/06/2018,TA Cost AUC - Programme,MAJOR PROJECTS,GEORGE CORDEROY & CO,739899,"194,083.17",Complex Schemes,ME18 5NN
Department for Transport,Highways England,20/06/2018,TA Cost AUC - Programme,MAJOR PROJECTS,AECOM,739493,"194,462.56",Feasibility,B4 6AT
Department for Transport,Highways England,25/06/2018,TA Renewal of Roads - Capital,OPERATIONS DIRECTORATE,AGGREGATE INDUSTRIES UK LTD,CONF9215001040016629,"199,079.72",Renewals of Roads,LE67 1TL
Department for Transport,Highways England,19/06/2018,TA Cost AUC - Programme,OPERATIONS DIRECTORATE,CONNECT PLUS (M25) LTD,APC200729,"199,820.28",Renewals of Technology,EN6 3NP
Department for Transport,Highways England,15/06/2018,RM Cost Reimbursable,OPERATIONS DIRECTORATE,KIER HIGHWAYS LIMITED,APC200705,"201,562.32",Routine Maintenance,SG19 2BD
Department for Transport,Highways England,08/06/2018,TA Cost AUC - Programme,MAJOR PROJECTS,NATIONAL GRID PLC (CIS) DIVERT/CONNECT,738466,"202,400.00",RIS 1 Schemes,WV1 9NZ
Department for Transport,Highways England,01/06/2018,TA Cost AUC - Programme,MAJOR PROJECTS,CONNECT PLUS (M25) LTD,738122,"204,091.24",Innovation Safety Feasibility,EN6 3NP
Department for Transport,Highways England,13/06/2018,TA Cost AUC - Programme,MAJOR PROJECTS,AECOM,738923,"204,341.78",Feasibility,B4 6AT
Department for Transport,Highways England,13/06/2018,TA Renewal of Structures - Capital,OPERATIONS DIRECTORATE,KIER HIGHWAYS LIMITED,APC200668,"204,759.77",Renewals of Structures,SG19 2BD
Department for Transport,Highways England,29/06/2018,ICT Consultancy Costs,IT DIRECTORATE,NETCOMPANY UK LTD,740281,"206,015.00",Support General Corporate Services,DE1 2BU
Department for Transport,Highways England,20/06/2018,TA Cost AUC - Programme,MAJOR PROJECTS,AECOM,739484,"206,050.14",Feasibility,B4 6AT
Department for Transport,Highways England,26/06/2018,TA Cost AUC - Programme,MAJOR PROJECTS,WSP UK LIMITED,739786,"206,500.93",Feasibility,WC2A 1AF
Department for Transport,Highways England,13/06/2018,Consultants Costs,OPERATIONS DIRECTORATE,CONNECT PLUS (M25) LTD,738798,"207,359.33",Technology Projects - Economy,EN6 3NP
Department for Transport,Highways England,15/06/2018,TA Cost AUC - Programme,OPERATIONS DIRECTORATE,BALFOUR BEATTY MOTT MACDONALD AREA 10 ASC,APC200647,"207,395.87",Cycling Delivery,WA3 7PG
Department for Transport,Highways England,15/06/2018,TA Renewal of Structures - Capital,OPERATIONS DIRECTORATE,KIER HIGHWAYS LIMITED,APC200705,"207,888.17",Renewals of Structures,SG19 2BD
Department for Transport,Highways England,11/06/2018,TA Cost AUC - Programme,MAJOR PROJECTS,COSTAIN LIMITED,738664,"208,500.39",SR10 Schemes,SL6 4UB
Department for Transport,Highways England,12/06/2018,CM - Compensation / Variation Costs,OPERATIONS DIRECTORATE,KIER HIGHWAYS LIMITED,APC200641,"208,519.92",Routine Maintenance,SG19 2BD
Department for Transport,Highways England,27/06/2018,TA Cost AUC - Programme,MAJOR PROJECTS,WSP UK LIMITED,739986,"212,127.80",RIS 1 Schemes,WC2A 1AF
Department for Transport,Highways England,07/06/2018,ICT Hardware Maintenance,IT DIRECTORATE,CGI IT UK LIMITED,738393,"212,959.26",Support General Corporate Services,RG2 6UA
Department for Transport,Highways England,12/06/2018,TA Cost AUC - Programme,MAJOR PROJECTS,ATKINS LTD,738680,"216,414.76",RIS 1 Schemes,KT18 5BW
Department for Transport,Highways England,26/06/2018,TA Cost AUC - Programme,MAJOR PROJECTS,MOTT MACDONALD SWECO,739780,"216,590.61",Feasibility,SO50 9NW
Department for Transport,Highways England,14/05/2018,TA Cost AUC - Programme,OPERATIONS DIRECTORATE,KIER HIGHWAYS LIMITED,APC200392,"217,034.75",Renewals of Technology,SG19 2BD
Department for Transport,Highways England,12/06/2018,TA Cost AUC - Programme,MAJOR PROJECTS,JACOBS UK LTD,738733,"221,521.16",RIS 1 Schemes,G2 7HX
Department for Transport,Highways England,08/06/2018,TA Cost AUC - Programme,MAJOR PROJECTS,COSTAIN LIMITED,738530,"222,294.88",SR10 Schemes,SL6 4UB
Department for Transport,Highways England,12/06/2018,TA Renewal of Structures - Capital,OPERATIONS DIRECTORATE,KIER HIGHWAYS LIMITED,APC200626,"222,310.07",Renewals of Structures,SG19 2BD
Department for Transport,Highways England,01/06/2018,Consultants Costs,OPERATIONS DIRECTORATE,JC PEACOCK AND COMPANY LIMITED,738146,"222,689.46",Protocol Strategic Salt,KA8 8AE
Department for Transport,Highways England,15/06/2018,CM - Third Party Damage,OPERATIONS DIRECTORATE,BALFOUR BEATTY MOTT MACDONALD AREA 10 ASC,APC200679,"222,821.29",Routine Maintenance,WA3 7PG
Department for Transport,Highways England,15/05/2018,TA Renewal of Roads - Capital,OPERATIONS DIRECTORATE,CONNECT PLUS (M25) LTD,APC200508,"225,114.59",Renewals of Roads,EN6 3NP
Department for Transport,Highways England,28/06/2018,TA Cost AUC - Programme,MAJOR PROJECTS,ARCADIS-CH2M JOINT VENTURE,740054,"225,759.44",Support Enhancements,W6 7EF
Department for Transport,Highways England,28/06/2018,TA Renewal of Roads - Capital,OPERATIONS DIRECTORATE,JOHN GRAHAM CONSTRUCTION LTD,740132,"227,048.21",Renewals of Roads,BT26 6HX
Department for Transport,Highways England,11/05/2018,TA Cost AUC - Programme,OPERATIONS DIRECTORATE,CONNECT PLUS (M25) LTD,APC200543,"227,202.43",Renewals of Technology,EN6 3NP
Department for Transport,Highways England,19/06/2018,TA Cost AUC - Programme,MAJOR PROJECTS,MOTT MACDONALD SWECO,739345,"230,436.25",Feasibility,SO50 9NW
Department for Transport,Highways England,05/06/2018,TA Cost AUC - Programme,MAJOR PROJECTS,ANGLIAN WATER SERVICES LTD (CIS) DIVERT/CONNECT,738251,"230,450.40",Complex Schemes,CM20 9HA
Department for Transport,Highways England,15/06/2018,RM TM for RTMC,OPERATIONS DIRECTORATE,KIER HIGHWAYS LIMITED,APC200713,"238,646.83",Technology Maintenance,SG19 2BD
Department for Transport,Highways England,01/06/2018,Consultants Costs,OPERATIONS DIRECTORATE,JC PEACOCK AND COMPANY LIMITED,738147,"239,529.18",Protocol Strategic Salt,KA8 8AE
Department for Transport,Highways England,15/05/2018,TA Renewal of Structures - Capital,OPERATIONS DIRECTORATE,GEOFFREY OSBORNE LTD,APC200576,"241,056.52",Renewals of Structures,RH2 9PY
Department for Transport,Highways England,25/06/2018,CM - Lump Sum Fees,OPERATIONS DIRECTORATE,AMEY HIGHWAYS LIMITED,CONF9070001341177648,"241,764.60",Routine Maintenance,CB25 9PG
Department for Transport,Highways England,20/06/2018,Consultants Costs,OPERATIONS DIRECTORATE,CONNECT PLUS (M25) LTD,739471,"242,510.20",Technology Projects - Economy,EN6 3NP
Department for Transport,Highways England,27/06/2018,TA Cost AUC - Programme,MAJOR PROJECTS,JACOBS UK LTD,739938,"242,921.72",SR13 Smart Motorway Scheme,G2 7HX
Department for Transport,Highways England,26/06/2018,TA Renewal of Roads - Capital,OPERATIONS DIRECTORATE,GEOFFREY OSBORNE LTD,739835,"245,859.58",Renewals of Roads,RH2 9PY
Department for Transport,Highways England,25/06/2018,Consultants Costs,OPERATIONS DIRECTORATE,WORKING TIME SOLUTIONS LIMITED,739734,"246,840.00",Operate General Other,M1 1JB
Department for Transport,Highways England,19/06/2018,TA Cost AUC - Programme,MAJOR PROJECTS,WSP UK LIMITED,739257,"247,801.12",Feasibility,WC2A 1AF
Department for Transport,Highways England,15/06/2018,Consultants Costs,OPERATIONS DIRECTORATE,MCKINSEY & COMPANY,739175,"249,140.00",Operate General Management Costs,SW1Y 4UH
Department for Transport,Highways England,15/06/2018,TA Cost AUC - Programme,OPERATIONS DIRECTORATE,KIER HIGHWAYS LIMITED,APC200681,"249,194.17",Innovation Safety Delivery,SG19 2BD
Department for Transport,Highways England,15/06/2018,CM - Third Party Damage,OPERATIONS DIRECTORATE,KIER HIGHWAYS LIMITED,APC200681,"249,251.51",Routine Maintenance,SG19 2BD
Department for Transport,Highways England,15/06/2018,TA Cost AUC - Programme,MAJOR PROJECTS,WSP UK LIMITED,739091,"250,300.51",Feasibility,WC2A 1AF
Department for Transport,Highways England,12/06/2018,TA Cost AUC - Programme,OPERATIONS DIRECTORATE,KIER HIGHWAYS LIMITED,APC200630,"250,974.51",Renewals of Technology,SG19 2BD
Department for Transport,Highways England,29/06/2018,ICT Software Maintenance,IT DIRECTORATE,BYTES SOFTWARE SERVICES LTD,740224,"252,000.00",Support General ICT Programme,KT22 7TW
Department for Transport,Highways England,05/06/2018,TA Cost AUC - Programme,MAJOR PROJECTS,AECOM,738299,"257,617.93",Feasibility,B4 6AT
Department for Transport,Highways England,25/06/2018,TA Renewal of Roads - Capital,OPERATIONS DIRECTORATE,AGGREGATE INDUSTRIES UK LTD,CONF9215001040016633,"259,401.19",Renewals of Roads,LE67 1TL
Department for Transport,Highways England,19/06/2018,TA Cost AUC - Programme,MAJOR PROJECTS,JACOBS UK LTD,739329,"259,401.35",SR13 Smart Motorway Scheme,G2 7HX
Department for Transport,Highways England,13/06/2018,PFI Service Payments,OPERATIONS DIRECTORATE,UK HIGHWAYS M40 LTD,738863,"260,000.00",Operate Roads PFI Service Payments,OX16 3YT
Department for Transport,Highways England,26/06/2018,TA Cost AUC - Programme,MAJOR PROJECTS,MOTT MACDONALD SWECO,739865,"262,421.65",Feasibility,SO50 9NW
Department for Transport,Highways England,25/06/2018,TA Cost AUC - Programme,MAJOR PROJECTS,ATKINS LTD,739698,"262,701.53",RIS 1 Schemes,KT18 5BW
Department for Transport,Highways England,12/06/2018,TA Cost AUC - Programme,MAJOR PROJECTS,KIER HIGHWAYS LIMITED,APC200635,"262,839.42",SR13 Smart Motorway Scheme,SG19 2BD
Department for Transport,Highways England,05/06/2018,Prepaid expenses - admin,FINANCE & BUSINESS SERVICES,JONES LANG LASALLE,738311,"264,566.25",Corporate,BS8 9AQ
Department for Transport,Highways England,07/06/2018,CM - Lump Sum Fees,OPERATIONS DIRECTORATE,NETWORK RAIL,738388,"266,363.60",Routine Maintenance,M60 7WY
Department for Transport,Highways England,05/06/2018,TA Cost AUC - ICT (A),OPERATIONS DIRECTORATE,ANGLO SCANDINAVIAN ESTATES 5 LLP,738220,"266,440.96",Operate General Management Costs,SW1W 8NS
Department for Transport,Highways England,26/06/2018,TA Renewal of Roads - Capital,OPERATIONS DIRECTORATE,JOHN GRAHAM CONSTRUCTION LTD,739809,"266,658.06",Renewals of Roads,BT26 6HX
Department for Transport,Highways England,25/06/2018,TA Renewal of Roads - Capital,OPERATIONS DIRECTORATE,W J SOUTH WEST LIMITED,CONF9214401040017765,"274,712.31",Renewals of Roads,TA21 9AD
Department for Transport,Highways England,20/06/2018,Prepaid expenses - admin,FINANCE & BUSINESS SERVICES,SAVILLS (UK) LTD,739438,"277,515.60",Corporate,M2 4AW
Department for Transport,Highways England,12/06/2018,TA Renewal of Structures - Capital,OPERATIONS DIRECTORATE,GEOFFREY OSBORNE LTD,738782,"278,805.12",Renewals of Structures,RH2 9PY
Department for Transport,Highways England,15/06/2018,Consultants Costs,OPERATIONS DIRECTORATE,MCKINSEY & COMPANY,739114,"279,267.19",Operate General Management Costs,SW1Y 4UH
Department for Transport,Highways England,25/06/2018,TA Renewal of Roads - Capital,OPERATIONS DIRECTORATE,VOLKERFITZPATRICK LIMITED,739707,"282,530.36",Renewals of Roads,EN11 9BX
Department for Transport,Highways England,28/06/2018,TA Cost AUC - Programme,MAJOR PROJECTS,AECOM INFRASTRUCTURE & ENVIRONMENT UK LIMITED,740130,"288,874.88",RIS 1 Schemes,RG21 7PP
Department for Transport,Highways England,05/06/2018,Contractor Costs,OPERATIONS DIRECTORATE,LAING O'ROURKE CONSTRUCTION LTD (SRC) (NON CIS),738272,"289,501.04",Protocol SRC (Severn River Crossing),DA2 6SN
Department for Transport,Highways England,13/06/2018,TA Cost AUC - Programme,MAJOR PROJECTS,ARCADIS CONSULTING (UK) LIMITED,738921,"289,545.09",RIS 1 Schemes,CF3 0EY
Department for Transport,Highways England,22/06/2018,TA Cost AUC - Programme,MAJOR PROJECTS,WSP UK LIMITED,739641,"291,906.81",Feasibility,WC2A 1AF
Department for Transport,Highways England,06/06/2018,TA Cost AUC - Programme,MAJOR PROJECTS,JACOBS UK LTD,738350,"293,532.23",SR13 Smart Motorway Scheme,G2 7HX
Department for Transport,Highways England,19/06/2018,TA Renewal of Roads - Capital,OPERATIONS DIRECTORATE,TARMAC TRADING LIMITED,CONF9076050341162171,"293,613.21",Renewals of Roads,B37 7BQ
Department for Transport,Highways England,15/06/2018,TA Cost AUC - Programme,MAJOR PROJECTS,KIER HIGHWAYS LIMITED,APC200705,"293,820.88",Feasibility,SG19 2BD
Department for Transport,Highways England,19/06/2018,TA Renewal of Roads - Capital,OPERATIONS DIRECTORATE,GROUND CONTROL LIMITED,CONF9074650341168129,"295,099.59",Renewals of Roads,TF11 9JB
Department for Transport,Highways England,05/06/2018,Rental charges - Buildings,FINANCE & BUSINESS SERVICES,DEPARTMENT FOR EDUCATION,738271,"295,246.59",Support General Ex Admin,SW1P 3BT
Department for Transport,Highways England,05/06/2018,Rental charges - Buildings,FINANCE & BUSINESS SERVICES,DEPARTMENT FOR EDUCATION,738274,"296,860.00",Support General Ex Admin,SW1P 3BT
Department for Transport,Highways England,05/06/2018,Rental charges - Buildings,FINANCE & BUSINESS SERVICES,DEPARTMENT FOR EDUCATION,738275,"296,860.00",Support General Ex Admin,SW1P 3BT
Department for Transport,Highways England,06/06/2018,Contractor Costs,FINANCE & BUSINESS SERVICES,HM COURTS & TRIBUNALS SERVICE,738337,"299,136.00",Protocol Dart Charge,NP20 9FN
Department for Transport,Highways England,04/06/2018,TA Cost AUC - Programme,OPERATIONS DIRECTORATE,INTERSERVE CONSTRUCTION LIMITED,APC200580,"302,640.83",RIS 1 Schemes,B37 7HQ
Department for Transport,Highways England,08/06/2018,TA Cost AUC - Programme,MAJOR PROJECTS,COSTAIN LIMITED,738517,"306,408.88",SR10 Schemes,SL6 4UB
Department for Transport,Highways England,26/06/2018,TA Cost AUC - Programme,MAJOR PROJECTS,ARCADIS CONSULTING (UK) LIMITED,739827,"308,715.20",RIS 1 Schemes,CF3 0EY
Department for Transport,Highways England,08/06/2018,TA Renewal of Roads - Capital,OPERATIONS DIRECTORATE,TARMAC TRADING LIMITED,CONF9133101341216771,"312,556.27",Renewals of Roads,B37 7BQ
Department for Transport,Highways England,29/06/2018,Consultants Costs,OPERATIONS DIRECTORATE,JC PEACOCK AND COMPANY LIMITED,740204,"312,596.61",Protocol Strategic Salt,KA8 8AE
Department for Transport,Highways England,14/06/2018,TA Renewal of Roads - Capital,OPERATIONS DIRECTORATE,A-ONE + INTEGRATED HIGHWAY SERVICES (CIS),APC200696,"314,081.30",Renewals of Roads,DL1 1TJ
Department for Transport,Highways England,19/06/2018,TA Renewal of Roads - Capital,OPERATIONS DIRECTORATE,CARNELL SUPPORT SERVICES,CONF9076350341167739,"314,694.11",Renewals of Roads,ST19 5DJ
Department for Transport,Highways England,13/06/2018,Electricity,FINANCE & BUSINESS SERVICES,EDF ENERGY (NON CIS) CHARGES,738903,"316,640.83",Support General Ex Admin,PL3 5XQ
Department for Transport,Highways England,22/06/2018,TA Cost AUC - Programme,MAJOR PROJECTS,CH2M HILL UNITED KINGDOM,739618,"316,826.35",Support Enhancements,W6 7EF
Department for Transport,Highways England,15/06/2018,Consultants Costs,OPERATIONS DIRECTORATE,MCKINSEY & COMPANY,739113,"319,190.63",Operate General Management Costs,SW1Y 4UH
Department for Transport,Highways England,04/06/2018,ICT Consultancy Costs,IT DIRECTORATE,ERNST & YOUNG LLP,738166,"319,232.33",Support General Ex Admin,SE1 2AF
